BODY,BODY NAME,SERVICE CODE,ORGANISATIONAL UNIT,ORGANISATIONAL UNIT CODE,EXPENDITURE CATEGORY,EXPENDITURE CODE,DATE (POSTING DATE),TRANSACTION NUMBER,AMOUNT,SUPPLIER NAME,SUPPLIER ID
WARRINGTON BOROUGH COUNCIL,http://opendatacommunities.org/id/unitary-authority/warrington,ET0,Construction Stores Overhead Account,41320,Materials,400500,24/01/2022,5100484229,2759.4,Cromwell Polythene Ltd,112559
WARRINGTON BOROUGH COUNCIL,http://opendatacommunities.org/id/unitary-authority/warrington,ET0,Construction Stores Overhead Account,41320,Materials,400500,24/01/2022,5100484229,1414.4,Cromwell Polythene Ltd,112559
WARRINGTON BOROUGH COUNCIL,http://opendatacommunities.org/id/unitary-authority/warrington,FWB,BCF - Equipment Store,54930,Equipment Purchase & Contract,400000,01/02/2022,5100485056,2656,Newlyn Healthcare Ltd,101429
WARRINGTON BOROUGH COUNCIL,http://opendatacommunities.org/id/unitary-authority/warrington,FWB,BCF - Equipment Store,54930,Equipment Purchase & Contract,400000,01/02/2022,5100485057,2636,Newlyn Healthcare Ltd,101429
WARRINGTON BOROUGH COUNCIL,http://opendatacommunities.org/id/unitary-authority/warrington,FWB,BCF - Equipment Store,54930,Equipment Purchase & Contract,400000,15/02/2022,5100486316,3701,Newlyn Healthcare Ltd,101429
WARRINGTON BOROUGH COUNCIL,http://opendatacommunities.org/id/unitary-authority/warrington,DG0,Development Control,43430,Consult.& Prof. Serv,440000,14/02/2022,5100486625,1258,Vivid Resourcing Limited,115752
WARRINGTON BOROUGH COUNCIL,http://opendatacommunities.org/id/unitary-authority/warrington,RSC,One - Off ICT Costs,23200,Consult.& Prof. Serv,440000,14/02/2022,5100486655,2385,Phoenix Software Ltd,105022
WARRINGTON BOROUGH COUNCIL,http://opendatacommunities.org/id/unitary-authority/warrington,ET0,Core Operational Business,41730,Outdoor Pursuit,490550,16/02/2022,5100486910,2320,PPC Concrete Products Ltd,118649
WARRINGTON BOROUGH COUNCIL,http://opendatacommunities.org/id/unitary-authority/warrington,ENO,Highways LTP,82004,Bridges - Structural,532800,18/02/2022,5100487163,120000,Tarmac,100489
WARRINGTON BOROUGH COUNCIL,http://opendatacommunities.org/id/unitary-authority/warrington,NEO,IT Projects,83003,Computer Software - Maintenance,450850,02/03/2022,5100488277,17817.22,Phoenix Software Ltd,105022
WARRINGTON BOROUGH COUNCIL,http://opendatacommunities.org/id/unitary-authority/warrington,ET0,Sankey Canal Maintenace,44125,Consult.& Prof. Serv,440000,08/03/2022,5100488546,2400,Charles Morgan,117236
WARRINGTON BOROUGH COUNCIL,http://opendatacommunities.org/id/unitary-authority/warrington,ET0,Sankey Canal Maintenace,44125,Consult.& Prof. Serv,440000,08/03/2022,5100488547,540,Charles Morgan,117236
WARRINGTON BOROUGH COUNCIL,http://opendatacommunities.org/id/unitary-authority/warrington,FWB,Children's Contracts,31116,Accommodation Allowance,550650,04/03/2022,5100488596,736,Weavers Close Limited,116929
WARRINGTON BOROUGH COUNCIL,http://opendatacommunities.org/id/unitary-authority/warrington,FWB,Training,31203,Subscriptions,470000,08/03/2022,5100489003,15911.18,Edge Hill University,104687
WARRINGTON BOROUGH COUNCIL,http://opendatacommunities.org/id/unitary-authority/warrington,ET0,Surface Car Parks,44322,Equipment Purchase & Contract,400000,08/03/2022,5100489006,1231.23,Flowbird Smart City UK Ltd,100854
WARRINGTON BOROUGH COUNCIL,http://opendatacommunities.org/id/unitary-authority/warrington,FWB,DSG - Medical Needs,32002,Eotas Pupil Funding,490350,09/03/2022,5100489140,560,Integra People,116891
WARRINGTON BOROUGH COUNCIL,http://opendatacommunities.org/id/unitary-authority/warrington,ET0,Traffic and Safety,44350,Equipment Purchase & Contract,400000,10/03/2022,5100489249,1390,Auto Items Ltd,110058
WARRINGTON BOROUGH COUNCIL,http://opendatacommunities.org/id/unitary-authority/warrington,RSC,IT - Contracts,23600,Stationery,430150,10/03/2022,5100489256,1530,Phoenix Software Ltd,105022
WARRINGTON BOROUGH COUNCIL,http://opendatacommunities.org/id/unitary-authority/warrington,FWB,Permanence staff teams,31021,Fees (Including Agents Fees),441450,10/03/2022,5100489257,910,Child Psychology Service CIC,115739
WARRINGTON BOROUGH COUNCIL,http://opendatacommunities.org/id/unitary-authority/warrington,FWB,Inclusion,32207,Training,190150,10/03/2022,5100489273,600,SynRJ Limited,115874
WARRINGTON BOROUGH COUNCIL,http://opendatacommunities.org/id/unitary-authority/warrington,FWB,DSG Post-16 Special Educational Needs,32309,Fees (Including Agents Fees),441450,10/03/2022,5100489299,1348.75,TutorRight Limited,116990
WARRINGTON BOROUGH COUNCIL,http://opendatacommunities.org/id/unitary-authority/warrington,FWB,DSG Post-16 Special Educational Needs,32309,Fees (Including Agents Fees),441450,10/03/2022,5100489300,780,TutorRight Limited,116990
WARRINGTON BOROUGH COUNCIL,http://opendatacommunities.org/id/unitary-authority/warrington,ET0,New Bus Depot Dallam Lane,40048,Consult.& Prof. Serv,440000,10/03/2022,5100489338,1000,Janus Building Design Ltd,118058
WARRINGTON BOROUGH COUNCIL,http://opendatacommunities.org/id/unitary-authority/warrington,PIO,People & Improvement Other,85002,Minor Adaptations<750,400700,10/03/2022,5100489347,4529.7,Access-Able (UK) Limited,114939
WARRINGTON BOROUGH COUNCIL,http://opendatacommunities.org/id/unitary-authority/warrington,FWB,SI Project Wk Evidence informed practice,35074,Consult.& Prof. Serv,440000,11/03/2022,5100489369,30000,Educational Success Partners Ltd,118655
WARRINGTON BOROUGH COUNCIL,http://opendatacommunities.org/id/unitary-authority/warrington,PIO,People & Improvement Other,85002,Lifts from Stock,400850,11/03/2022,5100489425,2460,AMW Lift & Mobility Services Ltd,112766
WARRINGTON BOROUGH COUNCIL,http://opendatacommunities.org/id/unitary-authority/warrington,PIO,People & Improvement Other,85002,Lifts from Stock,400850,11/03/2022,5100489426,910,AMW Lift & Mobility Services Ltd,112766
WARRINGTON BOROUGH COUNCIL,http://opendatacommunities.org/id/unitary-authority/warrington,PIO,People & Improvement Other,85002,Lifts from Stock,400850,11/03/2022,5100489428,910,AMW Lift & Mobility Services Ltd,112766
WARRINGTON BOROUGH COUNCIL,http://opendatacommunities.org/id/unitary-authority/warrington,PIO,People & Improvement Other,85002,Lifts from Stock,400850,11/03/2022,5100489429,5302.28,AMW Lift & Mobility Services Ltd,112766
WARRINGTON BOROUGH COUNCIL,http://opendatacommunities.org/id/unitary-authority/warrington,PIO,People & Improvement Other,85002,Lifts from Stock,400850,11/03/2022,5100489430,4170,AMW Lift & Mobility Services Ltd,112766
WARRINGTON BOROUGH COUNCIL,http://opendatacommunities.org/id/unitary-authority/warrington,PIO,People & Improvement Other,85002,Lifts from Stock,400850,11/03/2022,5100489431,4420,AMW Lift & Mobility Services Ltd,112766
WARRINGTON BOROUGH COUNCIL,http://opendatacommunities.org/id/unitary-authority/warrington,PIO,People & Improvement Other,85002,Lifts from Stock,400850,11/03/2022,5100489432,3028.35,AMW Lift & Mobility Services Ltd,112766
WARRINGTON BOROUGH COUNCIL,http://opendatacommunities.org/id/unitary-authority/warrington,PIO,People & Improvement Other,85002,Lifts from Stock,400850,11/03/2022,5100489433,2981,AMW Lift & Mobility Services Ltd,112766
WARRINGTON BOROUGH COUNCIL,http://opendatacommunities.org/id/unitary-authority/warrington,ET0,Urban Traffic Management Control,44370,Signal Equipment,531650,11/03/2022,5100489463,1997.01,Yunex Limited,101162
WARRINGTON BOROUGH COUNCIL,http://opendatacommunities.org/id/unitary-authority/warrington,ET0,Urban Traffic Management Control,44370,Signal Equipment,531650,11/03/2022,5100489464,790.38,Yunex Limited,101162
WARRINGTON BOROUGH COUNCIL,http://opendatacommunities.org/id/unitary-authority/warrington,DG0,West Annexe,45161,Maintenance of Plant & Machinery,250050,11/03/2022,5100489466,620,Generator Power Ltd,117550
WARRINGTON BOROUGH COUNCIL,http://opendatacommunities.org/id/unitary-authority/warrington,DG0,West Annexe,45161,Maintenance of Plant & Machinery,250050,11/03/2022,5100489467,794.92,Generator Power Ltd,117550
WARRINGTON BOROUGH COUNCIL,http://opendatacommunities.org/id/unitary-authority/warrington,DG0,West Annexe,45161,Maintenance of Plant & Machinery,250050,11/03/2022,5100489468,682.2,Generator Power Ltd,117550
WARRINGTON BOROUGH COUNCIL,http://opendatacommunities.org/id/unitary-authority/warrington,ET0,Land Drainage,44120,Consult.& Prof. Serv,440000,11/03/2022,5100489469,14764.68,Ginger Lehmann Ltd,116636
WARRINGTON BOROUGH COUNCIL,http://opendatacommunities.org/id/unitary-authority/warrington,ET0,Land Drainage,44120,Consult.& Prof. Serv,440000,11/03/2022,5100489470,4200,Ginger Lehmann Ltd,116636
WARRINGTON BOROUGH COUNCIL,http://opendatacommunities.org/id/unitary-authority/warrington,ET0,Land Drainage,44120,Consult.& Prof. Serv,440000,11/03/2022,5100489471,6547.5,Ginger Lehmann Ltd,116636
WARRINGTON BOROUGH COUNCIL,http://opendatacommunities.org/id/unitary-authority/warrington,ET0,Land Drainage,44120,Consult.& Prof. Serv,440000,11/03/2022,5100489472,7007.58,Ginger Lehmann Ltd,116636
WARRINGTON BOROUGH COUNCIL,http://opendatacommunities.org/id/unitary-authority/warrington,DG0,Development Control,43430,Consult.& Prof. Serv,440000,11/03/2022,5100489485,2800,Kings Chambers,101921
WARRINGTON BOROUGH COUNCIL,http://opendatacommunities.org/id/unitary-authority/warrington,ET0,Building Facilities,41112,Equipment Purchase & Contract,400000,14/03/2022,5100489674,1812,Bunzl Cleaning And Hygiene Supplies,104650
WARRINGTON BOROUGH COUNCIL,http://opendatacommunities.org/id/unitary-authority/warrington,COR,New Market - Operational Account,47000,Annual Maintenance,442100,14/03/2022,5100489710,993.38,Leymac Engineering Services Ltd,112589
WARRINGTON BOROUGH COUNCIL,http://opendatacommunities.org/id/unitary-authority/warrington,RSC,ICT Centralised Budget,23100,Computer Software - Maintenance,450850,14/03/2022,5100489717,76000,Civica Uk Ltd,100585
WARRINGTON BOROUGH COUNCIL,http://opendatacommunities.org/id/unitary-authority/warrington,ENO,Open Spaces,82006,Consult.& Prof. Serv,440000,14/03/2022,5100489720,7571.16,DSSR,115093
WARRINGTON BOROUGH COUNCIL,http://opendatacommunities.org/id/unitary-authority/warrington,RSC,Communications,13000,Agency Supply - GF,180000,14/03/2022,5100489731,750,9 Yards Limited,118658
WARRINGTON BOROUGH COUNCIL,http://opendatacommunities.org/id/unitary-authority/warrington,RSC,IT - Contracts,23600,ICT Comms - Line Rental,450200,14/03/2022,5100489751,4800,TNP - The Networking People,110271
WARRINGTON BOROUGH COUNCIL,http://opendatacommunities.org/id/unitary-authority/warrington,ENO,Highways LTP,82004,Signal Equipment,531650,14/03/2022,5100489754,18730,Yunex Limited,101162
WARRINGTON BOROUGH COUNCIL,http://opendatacommunities.org/id/unitary-authority/warrington,RSC,ICT Centralised Budget,23100,Computer Software - Maintenance,450850,14/03/2022,5100489791,897.64,Enterprise Software Systems,100898
WARRINGTON BOROUGH COUNCIL,http://opendatacommunities.org/id/unitary-authority/warrington,COR,New Market - Operational Account,47000,Annual Maintenance,442100,15/03/2022,5100489844,756.37,Leymac Engineering Services Ltd,112589
WARRINGTON BOROUGH COUNCIL,http://opendatacommunities.org/id/unitary-authority/warrington,ET0,New Bus Depot Dallam Lane,40048,Consult.& Prof. Serv,440000,15/03/2022,5100489870,7750,4ward Management Ltd,118056
WARRINGTON BOROUGH COUNCIL,http://opendatacommunities.org/id/unitary-authority/warrington,ENO,Highways LTP,82004,Signal Equipment,531650,15/03/2022,5100489871,14181,Yunex Limited,101162
WARRINGTON BOROUGH COUNCIL,http://opendatacommunities.org/id/unitary-authority/warrington,ENO,Priority Infrastructure,82009,Legal Costs Incurred,440200,15/03/2022,5100489873,12820,CBRE Limited,113065
WARRINGTON BOROUGH COUNCIL,http://opendatacommunities.org/id/unitary-authority/warrington,FWB,Contracts - SM Commissioning Team 1,55910,Public Health Contract Payments,540000,16/03/2022,5100489918,51000,Wirral Borough Council,440052
WARRINGTON BOROUGH COUNCIL,http://opendatacommunities.org/id/unitary-authority/warrington,ET0,Cemeteries,41410,Grounds Maintenance - External,280000,16/03/2022,5100489921,513,Agrovista Uk Ltd,101700
WARRINGTON BOROUGH COUNCIL,http://opendatacommunities.org/id/unitary-authority/warrington,PIO,People & Improvement Other,85002,Lifts from Stock,400850,16/03/2022,5100489934,2400,AMW Lift & Mobility Services Ltd,112766
WARRINGTON BOROUGH COUNCIL,http://opendatacommunities.org/id/unitary-authority/warrington,PIO,People & Improvement Other,85002,Lifts from Stock,400850,16/03/2022,5100489935,5353.35,AMW Lift & Mobility Services Ltd,112766
WARRINGTON BOROUGH COUNCIL,http://opendatacommunities.org/id/unitary-authority/warrington,ET0,Finance Office Services,42110,Training,190150,16/03/2022,5100489936,504,APSE,110706
WARRINGTON BOROUGH COUNCIL,http://opendatacommunities.org/id/unitary-authority/warrington,ET0,Finance Office Services,42110,Training,190150,16/03/2022,5100489936,1242,APSE,110706
WARRINGTON BOROUGH COUNCIL,http://opendatacommunities.org/id/unitary-authority/warrington,ENO,Highways LTP,82004,Consult.& Prof. Serv,440000,16/03/2022,5100489937,9405,Bikeright,101692
WARRINGTON BOROUGH COUNCIL,http://opendatacommunities.org/id/unitary-authority/warrington,COR,Other Commercial Prop.,43560,Consult.& Prof. Serv,440000,16/03/2022,5100489981,1301.6,Brabners LLP,117064
WARRINGTON BOROUGH COUNCIL,http://opendatacommunities.org/id/unitary-authority/warrington,COR,Other Commercial Prop.,43560,Consult.& Prof. Serv,440000,16/03/2022,5100489982,2242,Brabners LLP,117064
WARRINGTON BOROUGH COUNCIL,http://opendatacommunities.org/id/unitary-authority/warrington,FWB,Director Adult Social Care,54000,Consult.& Prof. Serv,440000,17/03/2022,5100490016,7668.45,Ellis Williams Architects,103022
WARRINGTON BOROUGH COUNCIL,http://opendatacommunities.org/id/unitary-authority/warrington,ENO,Highways Other,82005,Clean Repair Drains,531000,18/03/2022,5100490020,2795.8,Xylem Water Solutions UK LTD,117633
WARRINGTON BOROUGH COUNCIL,http://opendatacommunities.org/id/unitary-authority/warrington,ET0,Land Drainage,44120,Consult.& Prof. Serv,440000,16/03/2022,5100490021,5250,Xylem Water Solutions UK LTD,117633
WARRINGTON BOROUGH COUNCIL,http://opendatacommunities.org/id/unitary-authority/warrington,NEO,IT Projects,83003,Computer Software - Maintenance,450850,16/03/2022,5100490022,17817.22,Phoenix Software Ltd,105022
WARRINGTON BOROUGH COUNCIL,http://opendatacommunities.org/id/unitary-authority/warrington,RSC,Council Tax & Recovery,10320,Other Advertising & Publicity,450050,16/03/2022,5100490023,1585,Newsquest Media Group,100070
WARRINGTON BOROUGH COUNCIL,http://opendatacommunities.org/id/unitary-authority/warrington,NEO,IT Projects,83003,Computer Software - Maintenance,450850,16/03/2022,5100490028,17817.22,Phoenix Software Ltd,105022
WARRINGTON BOROUGH COUNCIL,http://opendatacommunities.org/id/unitary-authority/warrington,ENO,Highways LTP,82004,Signal Equipment,531650,16/03/2022,5100490042,1931,Jacobs Uk Ltd,101283
WARRINGTON BOROUGH COUNCIL,http://opendatacommunities.org/id/unitary-authority/warrington,DG0,Development Control,43430,Periodicals & Publ.,430250,16/03/2022,5100490056,1013.82,TMP UK Ltd,108498
WARRINGTON BOROUGH COUNCIL,http://opendatacommunities.org/id/unitary-authority/warrington,DG0,Development Control,43430,Periodicals & Publ.,430250,16/03/2022,5100490057,590.42,TMP UK Ltd,108498
WARRINGTON BOROUGH COUNCIL,http://opendatacommunities.org/id/unitary-authority/warrington,ET0,Taxi and Private Hire Licensing,44450,Consult.& Prof. Serv,440000,16/03/2022,5100490058,897.9,Oyster Partnership,116595
WARRINGTON BOROUGH COUNCIL,http://opendatacommunities.org/id/unitary-authority/warrington,FWB,Bungalow 1,31315,Materials,400500,16/03/2022,5100490062,2472,Safespaces,101218
WARRINGTON BOROUGH COUNCIL,http://opendatacommunities.org/id/unitary-authority/warrington,ET0,Trading Standards North West,41564,Training,190150,16/03/2022,5100490063,2205,Trading Standards South West CIC,118659
WARRINGTON BOROUGH COUNCIL,http://opendatacommunities.org/id/unitary-authority/warrington,ENO,Highways LTP,82004,Consult.& Prof. Serv,440000,16/03/2022,5100490073,9747.5,Mott Macdonald Ltd,104950
WARRINGTON BOROUGH COUNCIL,http://opendatacommunities.org/id/unitary-authority/warrington,COR,New Market - Operational Account,47000,"Campaigns,  Projects and Events",491950,17/03/2022,5100490137,600,t/a Big Comedy UK,118554
WARRINGTON BOROUGH COUNCIL,http://opendatacommunities.org/id/unitary-authority/warrington,ET0,Vehicle & Plant Acq.,41312,Vehicle & Plant Purchase,301350,17/03/2022,5100490144,887.5,Tudor (UK) ltd T/A Tudor Env.,118563
WARRINGTON BOROUGH COUNCIL,http://opendatacommunities.org/id/unitary-authority/warrington,ET0,Vehicle & Plant Acq.,41312,Vehicle & Plant Purchase,301350,17/03/2022,5100490144,887.5,Tudor (UK) ltd T/A Tudor Env.,118563
WARRINGTON BOROUGH COUNCIL,http://opendatacommunities.org/id/unitary-authority/warrington,RSC,ICT Centralised Budget,23100,Computer Software - Maintenance,450850,17/03/2022,5100490148,3973,Stm Environmental Ltd,102172
WARRINGTON BOROUGH COUNCIL,http://opendatacommunities.org/id/unitary-authority/warrington,DG0,Development Control,43430,Consult.& Prof. Serv,440000,17/03/2022,5100490149,714,Vivid Resourcing Limited,115752
WARRINGTON BOROUGH COUNCIL,http://opendatacommunities.org/id/unitary-authority/warrington,RSC,Welfare Support,10360,Computer Software - Maintenance,450850,17/03/2022,5100490165,8000,Capita Business Services Ltd,105516
WARRINGTON BOROUGH COUNCIL,http://opendatacommunities.org/id/unitary-authority/warrington,RSC,ICT Centralised Budget,23100,Computer Software - Maintenance,450850,17/03/2022,5100490168,3443.47,Clearvision (CM) 2005 Ltd,116525
WARRINGTON BOROUGH COUNCIL,http://opendatacommunities.org/id/unitary-authority/warrington,IGO,Property & Estates,86001,Maintenance of Plant & Machinery,250050,17/03/2022,5100490169,35327.17,Complete Roofing Systems Ltd,112314
WARRINGTON BOROUGH COUNCIL,http://opendatacommunities.org/id/unitary-authority/warrington,CYP,Childrens & Young People,81000,Specific Work,200200,17/03/2022,5100490170,5932.75,Complete Roofing Systems Ltd,112314
WARRINGTON BOROUGH COUNCIL,http://opendatacommunities.org/id/unitary-authority/warrington,ET0,Facilities Management,41422,Equipment Purchase & Contract,400000,17/03/2022,5100490171,8390,David Webster & Sons Ltd,102202
WARRINGTON BOROUGH COUNCIL,http://opendatacommunities.org/id/unitary-authority/warrington,FWB,Training,31203,Training,190150,17/03/2022,5100490177,5800,The Frontline,117585
WARRINGTON BOROUGH COUNCIL,http://opendatacommunities.org/id/unitary-authority/warrington,FWB,Child & Adults Safeguarding Board,53180,Looked after children in Warrington,301000,17/03/2022,5100490182,608,Food 4 Thought,107735
WARRINGTON BOROUGH COUNCIL,http://opendatacommunities.org/id/unitary-authority/warrington,DG0,West Annexe,43112,Security Systems,250000,17/03/2022,5100490198,2688.9,Chubb Fire and Security Ltd,105335
WARRINGTON BOROUGH COUNCIL,http://opendatacommunities.org/id/unitary-authority/warrington,FWB,Mental Capacity Act,54650,Consult.& Prof. Serv,440000,18/03/2022,5100490263,2430,Reed Talent Solutions Limited,118453
WARRINGTON BOROUGH COUNCIL,http://opendatacommunities.org/id/unitary-authority/warrington,RSC,IT - Contracts,23600,Computer Software - Maintenance,450850,18/03/2022,5100490268,4527.46,Phoenix Software Ltd,105022
WARRINGTON BOROUGH COUNCIL,http://opendatacommunities.org/id/unitary-authority/warrington,ET0,Marshall Gardens,42115,Equipment Purchase & Contract,400000,18/03/2022,5100490270,4807,Alfred Bagnall & Sons (North West),118529
WARRINGTON BOROUGH COUNCIL,http://opendatacommunities.org/id/unitary-authority/warrington,ET0,Marshall Gardens,42115,Equipment Purchase & Contract,400000,18/03/2022,5100490271,980,Alfred Bagnall & Sons (North West),118529
WARRINGTON BOROUGH COUNCIL,http://opendatacommunities.org/id/unitary-authority/warrington,ET0,Trading Standards North West,41564,"Campaigns,  Projects and Events",491950,21/03/2022,5100490394,1068,Treble 5 Treble 1 Limited,111335
WARRINGTON BOROUGH COUNCIL,http://opendatacommunities.org/id/unitary-authority/warrington,FWB,Virtual School,31112,Looked after children in Warrington,301000,21/03/2022,5100490397,520,Over Hall Community School,400726
WARRINGTON BOROUGH COUNCIL,http://opendatacommunities.org/id/unitary-authority/warrington,RSC,One - Off ICT Costs,23200,Consult.& Prof. Serv,440000,21/03/2022,5100490421,2500,Civica Uk Ltd,100585
WARRINGTON BOROUGH COUNCIL,http://opendatacommunities.org/id/unitary-authority/warrington,ET0,Urban Traffic Management Control,44370,Signal Equipment,531650,21/03/2022,5100490426,2078.08,Yunex Limited,101162
WARRINGTON BOROUGH COUNCIL,http://opendatacommunities.org/id/unitary-authority/warrington,CYP,Childrens & Young People,81000,Specific Work,200200,21/03/2022,5100490435,22163.15,Longworth & Sons Ltd,116007
WARRINGTON BOROUGH COUNCIL,http://opendatacommunities.org/id/unitary-authority/warrington,CYP,Primary,81001,Consult.& Prof. Serv,440000,21/03/2022,5100490442,1142.02,Watts Group Limited,118593
WARRINGTON BOROUGH COUNCIL,http://opendatacommunities.org/id/unitary-authority/warrington,DG0,West Annexe,45161,Maintenance of Plant & Machinery,250050,21/03/2022,5100490458,1140.61,Generator Power Ltd,117550
WARRINGTON BOROUGH COUNCIL,http://opendatacommunities.org/id/unitary-authority/warrington,NEO,IT Projects,83003,Computer Hardware - Purchase,450700,21/03/2022,5100490471,36295,Dell,104659
WARRINGTON BOROUGH COUNCIL,http://opendatacommunities.org/id/unitary-authority/warrington,NEO,IT Projects,83003,Computer Hardware - Purchase,450700,21/03/2022,5100490471,2801,Dell,104659
WARRINGTON BOROUGH COUNCIL,http://opendatacommunities.org/id/unitary-authority/warrington,ET0,Transport Holding Account,41311,Accidental Damage - Sub Contractors,301200,21/03/2022,5100490476,988.75,Wyke Commercial Services Ltd,115203
WARRINGTON BOROUGH COUNCIL,http://opendatacommunities.org/id/unitary-authority/warrington,ENO,Priority Infrastructure,82009,Consult.& Prof. Serv,440000,21/03/2022,5100490488,2839.85,Sanderson Weatherall LLP,117413
WARRINGTON BOROUGH COUNCIL,http://opendatacommunities.org/id/unitary-authority/warrington,ET0,Walton Hall Catering,41433,Consult.& Prof. Serv,440000,22/03/2022,5100490529,1350,Carringtons Catering Ltd,116708
WARRINGTON BOROUGH COUNCIL,http://opendatacommunities.org/id/unitary-authority/warrington,FWB,Rapid Response  NHSE,57300,Computer Hardware - Purchase,450700,22/03/2022,5100490534,920.36,Dell,104659
WARRINGTON BOROUGH COUNCIL,http://opendatacommunities.org/id/unitary-authority/warrington,ET0,Transport Holding Account,41311,Vehicle Hire Charges,320000,22/03/2022,5100490542,7242.84,Northgate Vehicle Hire (North West),104871
WARRINGTON BOROUGH COUNCIL,http://opendatacommunities.org/id/unitary-authority/warrington,DG0,BMP EXT Beaumont PS,45446,Specific Work,200200,22/03/2022,5100490557,1192,Conditioned Air Technology Limited,118707
WARRINGTON BOROUGH COUNCIL,http://opendatacommunities.org/id/unitary-authority/warrington,DG0,Development Control,43430,Consult.& Prof. Serv,440000,22/03/2022,5100490559,2000,Nexus Planning Ltd,116754
WARRINGTON BOROUGH COUNCIL,http://opendatacommunities.org/id/unitary-authority/warrington,ET0,Vehicle & Plant Acq.,41312,Vehicle & Plant Purchase,301350,22/03/2022,5100490569,522,Dick Leigh Chainsaw Specialist,104876
WARRINGTON BOROUGH COUNCIL,http://opendatacommunities.org/id/unitary-authority/warrington,ET0,Vehicle & Plant Acq.,41312,Vehicle & Plant Purchase,301350,22/03/2022,5100490569,522,Dick Leigh Chainsaw Specialist,104876
WARRINGTON BOROUGH COUNCIL,http://opendatacommunities.org/id/unitary-authority/warrington,ET0,Vehicle & Plant Acq.,41312,Vehicle & Plant Purchase,301350,22/03/2022,5100490569,522,Dick Leigh Chainsaw Specialist,104876
WARRINGTON BOROUGH COUNCIL,http://opendatacommunities.org/id/unitary-authority/warrington,ET0,Vehicle & Plant Acq.,41312,Vehicle & Plant Purchase,301350,22/03/2022,5100490569,522,Dick Leigh Chainsaw Specialist,104876
WARRINGTON BOROUGH COUNCIL,http://opendatacommunities.org/id/unitary-authority/warrington,ET0,Vehicle & Plant Acq.,41312,Vehicle & Plant Purchase,301350,22/03/2022,5100490569,522,Dick Leigh Chainsaw Specialist,104876
WARRINGTON BOROUGH COUNCIL,http://opendatacommunities.org/id/unitary-authority/warrington,ET0,Vehicle & Plant Acq.,41312,Vehicle & Plant Purchase,301350,22/03/2022,5100490569,522,Dick Leigh Chainsaw Specialist,104876
WARRINGTON BOROUGH COUNCIL,http://opendatacommunities.org/id/unitary-authority/warrington,ET0,Vehicle & Plant Acq.,41312,Vehicle & Plant Purchase,301350,22/03/2022,5100490569,522,Dick Leigh Chainsaw Specialist,104876
WARRINGTON BOROUGH COUNCIL,http://opendatacommunities.org/id/unitary-authority/warrington,ET0,Vehicle & Plant Acq.,41312,Vehicle & Plant Purchase,301350,22/03/2022,5100490569,522,Dick Leigh Chainsaw Specialist,104876
WARRINGTON BOROUGH COUNCIL,http://opendatacommunities.org/id/unitary-authority/warrington,PIO,People & Improvement Other,85002,Lifts from Stock,400850,22/03/2022,5100490605,5829,AMW Lift & Mobility Services Ltd,112766
WARRINGTON BOROUGH COUNCIL,http://opendatacommunities.org/id/unitary-authority/warrington,FWB,BCF - Padgate House,54760,Agency Supply - GF,180000,22/03/2022,5100490609,970.8,Bluetree Healthcare Limited,117310
WARRINGTON BOROUGH COUNCIL,http://opendatacommunities.org/id/unitary-authority/warrington,DG0,Development Control,43430,Consult.& Prof. Serv,440000,22/03/2022,5100490612,697.5,Vivid Resourcing Limited,115752
WARRINGTON BOROUGH COUNCIL,http://opendatacommunities.org/id/unitary-authority/warrington,DG0,Development Control,43430,Consult.& Prof. Serv,440000,22/03/2022,5100490613,1258,Vivid Resourcing Limited,115752
WARRINGTON BOROUGH COUNCIL,http://opendatacommunities.org/id/unitary-authority/warrington,ENO,Highways Other,82005,Named Drainage Schm,532100,22/03/2022,5100490622,20244.65,Dowhigh Ltd,105350
WARRINGTON BOROUGH COUNCIL,http://opendatacommunities.org/id/unitary-authority/warrington,ET0,Building Control Services,43410,Consult.& Prof. Serv,440000,22/03/2022,5100490624,650,Matchtech Group UK Ltd,116841
WARRINGTON BOROUGH COUNCIL,http://opendatacommunities.org/id/unitary-authority/warrington,ET0,Transport Holding Account,41311,Training,190150,22/03/2022,5100490625,914,Logistics UK,104733
WARRINGTON BOROUGH COUNCIL,http://opendatacommunities.org/id/unitary-authority/warrington,FWB,DSG - Medical Needs,32002,Eotas Pupil Funding,490350,23/03/2022,5100490628,4625,Network Ventures Ltd,110554
WARRINGTON BOROUGH COUNCIL,http://opendatacommunities.org/id/unitary-authority/warrington,FWB,DSG - Medical Needs,32002,Eotas Pupil Funding,490350,23/03/2022,5100490680,4828.5,Network Ventures Ltd,110554
WARRINGTON BOROUGH COUNCIL,http://opendatacommunities.org/id/unitary-authority/warrington,PIO,People & Improvement Other,85002,Lifts from Stock,400850,23/03/2022,5100490681,2500,AMW Lift & Mobility Services Ltd,112766
WARRINGTON BOROUGH COUNCIL,http://opendatacommunities.org/id/unitary-authority/warrington,PIO,People & Improvement Other,85002,Lifts from Stock,400850,23/03/2022,5100490696,3989.31,Prism Medical UK,108616
WARRINGTON BOROUGH COUNCIL,http://opendatacommunities.org/id/unitary-authority/warrington,ET0,Marshall Gardens,42115,Outdoor Pursuit,490550,23/03/2022,5100490701,3173.1,Ground-Guards Ltd,112904
WARRINGTON BOROUGH COUNCIL,http://opendatacommunities.org/id/unitary-authority/warrington,DG0,Development Control,43430,Periodicals & Publ.,430250,23/03/2022,5100490713,802.12,TMP UK Ltd,108498
WARRINGTON BOROUGH COUNCIL,http://opendatacommunities.org/id/unitary-authority/warrington,FWB,Virtual School,31112,Looked after children in Warrington,301000,23/03/2022,5100490748,950,Innovation Enterprise Academy,400246
WARRINGTON BOROUGH COUNCIL,http://opendatacommunities.org/id/unitary-authority/warrington,ENO,Highways LTP,82004,Signal Equipment,531650,23/03/2022,5100490752,24441,Yunex Limited,101162
WARRINGTON BOROUGH COUNCIL,http://opendatacommunities.org/id/unitary-authority/warrington,ENO,Highways LTP,82004,Signal Equipment,531650,23/03/2022,5100490754,16709,Yunex Limited,101162
WARRINGTON BOROUGH COUNCIL,http://opendatacommunities.org/id/unitary-authority/warrington,RSC,IT - Contracts,23600,Computer Software - Maintenance,450850,23/03/2022,5100490775,2963.52,Phoenix Software Ltd,105022
WARRINGTON BOROUGH COUNCIL,http://opendatacommunities.org/id/unitary-authority/warrington,RSC,IT - Contracts,23600,Computer Software - Maintenance,450850,23/03/2022,5100490776,3114.72,Phoenix Software Ltd,105022
WARRINGTON BOROUGH COUNCIL,http://opendatacommunities.org/id/unitary-authority/warrington,ENO,Environmental Projects,82007,Building Work,200850,24/03/2022,5100490851,4022.79,Complete Home Energy Systems,111861
WARRINGTON BOROUGH COUNCIL,http://opendatacommunities.org/id/unitary-authority/warrington,ENO,Environmental Projects,82007,Building Work,200850,24/03/2022,5100490853,4629.05,Complete Home Energy Systems,111861
WARRINGTON BOROUGH COUNCIL,http://opendatacommunities.org/id/unitary-authority/warrington,ENO,Environmental Projects,82007,Building Work,200850,24/03/2022,5100490856,4629.05,Complete Home Energy Systems,111861
WARRINGTON BOROUGH COUNCIL,http://opendatacommunities.org/id/unitary-authority/warrington,ENO,Environmental Projects,82007,Building Work,200850,24/03/2022,5100490859,4168.23,Complete Home Energy Systems,111861
WARRINGTON BOROUGH COUNCIL,http://opendatacommunities.org/id/unitary-authority/warrington,NEO,Neighbourhood & Community Other,83002,Equipment Purchase & Contract,400000,24/03/2022,5100490870,32748.83,Livewire,110692
WARRINGTON BOROUGH COUNCIL,http://opendatacommunities.org/id/unitary-authority/warrington,FWB,SCM St Peter's Primary School,33150,Annual Maintenance,442100,24/03/2022,5100490892,582.3,Leymac Engineering Services Ltd,112589
WARRINGTON BOROUGH COUNCIL,http://opendatacommunities.org/id/unitary-authority/warrington,FWB,SCM Great Sankey Primary School,33153,Annual Maintenance,442100,24/03/2022,5100490894,731.91,Leymac Engineering Services Ltd,112589
WARRINGTON BOROUGH COUNCIL,http://opendatacommunities.org/id/unitary-authority/warrington,FWB,SCM St Peter's Primary School,33150,Annual Maintenance,442100,24/03/2022,5100490904,1309.43,Leymac Engineering Services Ltd,112589
WARRINGTON BOROUGH COUNCIL,http://opendatacommunities.org/id/unitary-authority/warrington,FWB,BCF - Equipment Store,54930,Equipment Purchase & Contract,400000,24/03/2022,5100490907,845,Katnic Ltd t/a H&M,118079
WARRINGTON BOROUGH COUNCIL,http://opendatacommunities.org/id/unitary-authority/warrington,FWB,SCM Croft Primary School,33144,Annual Maintenance,442100,24/03/2022,5100490908,570.68,Leymac Engineering Services Ltd,112589
WARRINGTON BOROUGH COUNCIL,http://opendatacommunities.org/id/unitary-authority/warrington,FWB,SCM Grappenhall Heys Primary School,33166,Annual Maintenance,442100,24/03/2022,5100490920,1022.55,Leymac Engineering Services Ltd,112589
WARRINGTON BOROUGH COUNCIL,http://opendatacommunities.org/id/unitary-authority/warrington,ENO,Highways Other,82005,Environmental Works,531050,24/03/2022,5100490936,2829,Dowhigh Ltd,105350
WARRINGTON BOROUGH COUNCIL,http://opendatacommunities.org/id/unitary-authority/warrington,ENO,Highways Other,82005,Carriageway-Resurfacing,532250,24/03/2022,5100490944,1000,Tarmac,100489
WARRINGTON BOROUGH COUNCIL,http://opendatacommunities.org/id/unitary-authority/warrington,ET0,New Bus Depot Dallam Lane,40048,Consult.& Prof. Serv,440000,24/03/2022,5100490945,7750,Janus Building Design Ltd,118058
WARRINGTON BOROUGH COUNCIL,http://opendatacommunities.org/id/unitary-authority/warrington,ET0,LACF - LCWIP Scheme Development,44525,Consult.& Prof. Serv,440000,24/03/2022,5100490951,1100,Jacobs Uk Ltd,101283
WARRINGTON BOROUGH COUNCIL,http://opendatacommunities.org/id/unitary-authority/warrington,PIO,People & Improvement Other,85002,Minor Adaptations<750,400700,24/03/2022,5100490956,5251.5,Access-Able (UK) Limited,114939
WARRINGTON BOROUGH COUNCIL,http://opendatacommunities.org/id/unitary-authority/warrington,DG0,Local Plan,43445,Consult.& Prof. Serv,440000,24/03/2022,5100490958,500,BE Ltd,109670
WARRINGTON BOROUGH COUNCIL,http://opendatacommunities.org/id/unitary-authority/warrington,FWB,DSG - Medical Needs,32002,Eotas Pupil Funding,490350,24/03/2022,5100490966,567.5,TutorRight Limited,116990
WARRINGTON BOROUGH COUNCIL,http://opendatacommunities.org/id/unitary-authority/warrington,ENO,Highways LTP,82004,Signal Equipment,531650,24/03/2022,5100490969,21254,Yunex Limited,101162
WARRINGTON BOROUGH COUNCIL,http://opendatacommunities.org/id/unitary-authority/warrington,ENO,Highways LTP,82004,Signal Equipment,531650,24/03/2022,5100490970,20527,Yunex Limited,101162
WARRINGTON BOROUGH COUNCIL,http://opendatacommunities.org/id/unitary-authority/warrington,ENO,Environmental Projects,82007,Building Work,200850,24/03/2022,5100490978,4314.9,Complete Home Energy Systems,111861
WARRINGTON BOROUGH COUNCIL,http://opendatacommunities.org/id/unitary-authority/warrington,FWB,Virtual School,31112,Looked after children in Warrington,301000,24/03/2022,5100490982,960,Rainford High Technology College,115164
WARRINGTON BOROUGH COUNCIL,http://opendatacommunities.org/id/unitary-authority/warrington,FWB,Virtual School,31112,Looked after children in Warrington,301000,24/03/2022,5100490982,660,Rainford High Technology College,115164
WARRINGTON BOROUGH COUNCIL,http://opendatacommunities.org/id/unitary-authority/warrington,FWB,Training,31203,Subscriptions,470000,24/03/2022,5100490983,9056.88,Research In Practice,116053
WARRINGTON BOROUGH COUNCIL,http://opendatacommunities.org/id/unitary-authority/warrington,FWB,Training,31203,Subscriptions,470000,24/03/2022,5100490983,1725.12,Research In Practice,116053
WARRINGTON BOROUGH COUNCIL,http://opendatacommunities.org/id/unitary-authority/warrington,FWB,Divert / Health Project,33307,Rent Of Premises,220000,24/03/2022,5100490988,975,Culture Warrington,100957
WARRINGTON BOROUGH COUNCIL,http://opendatacommunities.org/id/unitary-authority/warrington,ENO,Environmental Projects,82007,Building Work,200850,24/03/2022,5100490990,4022.79,Complete Home Energy Systems,111861
WARRINGTON BOROUGH COUNCIL,http://opendatacommunities.org/id/unitary-authority/warrington,ENO,Environmental Projects,82007,Building Work,200850,24/03/2022,5100490996,4629.05,Complete Home Energy Systems,111861
WARRINGTON BOROUGH COUNCIL,http://opendatacommunities.org/id/unitary-authority/warrington,ET0,Fair Trading & Investigations,41500,Training,190150,24/03/2022,5100491011,1750,Closha Associates Limited,118701
WARRINGTON BOROUGH COUNCIL,http://opendatacommunities.org/id/unitary-authority/warrington,ET0,Waste Recycling,41820,Waste Initiatives,443200,25/03/2022,5100491077,10362.56,Contenur UK Ltd,117538
WARRINGTON BOROUGH COUNCIL,http://opendatacommunities.org/id/unitary-authority/warrington,ENO,Highways LTP,82004,Signal Equipment,531650,25/03/2022,5100491081,6898.88,Jacobs Uk Ltd,101283
WARRINGTON BOROUGH COUNCIL,http://opendatacommunities.org/id/unitary-authority/warrington,FWB,Private Sector Hsg.,43660,Equipment Purchase & Contract,400000,25/03/2022,5100491088,1860,Warrington Housing Current Acc,101208
WARRINGTON BOROUGH COUNCIL,http://opendatacommunities.org/id/unitary-authority/warrington,COR,New Market - Operational Account,47000,Annual Maintenance,442100,25/03/2022,5100491092,1041.96,Leymac Engineering Services Ltd,112589
WARRINGTON BOROUGH COUNCIL,http://opendatacommunities.org/id/unitary-authority/warrington,FWB,BCF - Telecare/Sensory,54560,Health Awareness,441950,25/03/2022,5100491096,950,Porters Care Limited,118515
WARRINGTON BOROUGH COUNCIL,http://opendatacommunities.org/id/unitary-authority/warrington,FWB,BCF - Telecare/Sensory,54560,Health Awareness,441950,25/03/2022,5100491097,581.5,Porters Care Limited,118515
WARRINGTON BOROUGH COUNCIL,http://opendatacommunities.org/id/unitary-authority/warrington,FWB,BCF - Telecare/Sensory,54560,Health Awareness,441950,25/03/2022,5100491098,3600,Porters Care Limited,118515
WARRINGTON BOROUGH COUNCIL,http://opendatacommunities.org/id/unitary-authority/warrington,ENO,Highways Other,82005,Environmental Works,531050,25/03/2022,5100491115,85772.12,A E Yates Ltd,109758
WARRINGTON BOROUGH COUNCIL,http://opendatacommunities.org/id/unitary-authority/warrington,RSC,ICT Centralised Budget,23100,Computer Software - Maintenance,450850,25/03/2022,5100491116,106301.14,Capita Business Services Ltd,105516
WARRINGTON BOROUGH COUNCIL,http://opendatacommunities.org/id/unitary-authority/warrington,ENO,Highways Other,82005,Environmental Works,531050,25/03/2022,5100491118,169507.73,A E Yates Ltd,109758
WARRINGTON BOROUGH COUNCIL,http://opendatacommunities.org/id/unitary-authority/warrington,NEO,IT Projects,83003,Computer Software - Maintenance,450850,25/03/2022,5100491121,53451.66,Phoenix Software Ltd,105022
WARRINGTON BOROUGH COUNCIL,http://opendatacommunities.org/id/unitary-authority/warrington,FWB,Temporary Accomodation,43652,Maintenance Work - Sub Contractors,301150,28/03/2022,5100491258,580,DANL Limited,116459
WARRINGTON BOROUGH COUNCIL,http://opendatacommunities.org/id/unitary-authority/warrington,ET0,Bus Interchange,44460,Security Systems,250000,28/03/2022,5100491334,6446.97,Step up Security Ltd,116851
WARRINGTON BOROUGH COUNCIL,http://opendatacommunities.org/id/unitary-authority/warrington,ET0,Traffic and Safety,44350,Unlit Signs,531200,28/03/2022,5100491339,815,Blue Arrow Traffic Management Ltd,109292
WARRINGTON BOROUGH COUNCIL,http://opendatacommunities.org/id/unitary-authority/warrington,ENO,Highways LTP,82004,Consult.& Prof. Serv,440000,28/03/2022,5100491353,3794.55,Aecom Limited,101037
WARRINGTON BOROUGH COUNCIL,http://opendatacommunities.org/id/unitary-authority/warrington,ENO,Highways Other,82005,Consult.& Prof. Serv,440000,28/03/2022,5100491354,3577.39,Aecom Limited,101037
WARRINGTON BOROUGH COUNCIL,http://opendatacommunities.org/id/unitary-authority/warrington,ET0,Land Drainage,44120,Consult.& Prof. Serv,440000,28/03/2022,5100491355,7199.73,Aecom Limited,101037
WARRINGTON BOROUGH COUNCIL,http://opendatacommunities.org/id/unitary-authority/warrington,ET0,Strategic Transportation,44510,Consult.& Prof. Serv,440000,28/03/2022,5100491356,12183.75,Aecom Limited,101037
WARRINGTON BOROUGH COUNCIL,http://opendatacommunities.org/id/unitary-authority/warrington,NEP,Neighbourhood & Community Services,83000,ICT Comms - Line Maintenance,450250,28/03/2022,5100491359,975,TNP - The Networking People,110271
WARRINGTON BOROUGH COUNCIL,http://opendatacommunities.org/id/unitary-authority/warrington,ET0,Land Drainage,44120,Clean Repair Drains,531000,28/03/2022,5100491379,3050,General Utilities Services Ltd,101975
WARRINGTON BOROUGH COUNCIL,http://opendatacommunities.org/id/unitary-authority/warrington,ET0,Land Drainage,44120,Clean Repair Drains,531000,28/03/2022,5100491380,2885,General Utilities Services Ltd,101975
WARRINGTON BOROUGH COUNCIL,http://opendatacommunities.org/id/unitary-authority/warrington,ET0,Land Drainage,44120,Clean Repair Drains,531000,28/03/2022,5100491381,1465,General Utilities Services Ltd,101975
WARRINGTON BOROUGH COUNCIL,http://opendatacommunities.org/id/unitary-authority/warrington,ENO,Open Spaces,82006,Equipment Purchase & Contract,400000,28/03/2022,5100491383,1210,David Webster & Sons Ltd,102202
WARRINGTON BOROUGH COUNCIL,http://opendatacommunities.org/id/unitary-authority/warrington,ET0,Facilities Management,41422,Materials,400500,28/03/2022,5100491384,580,David Webster & Sons Ltd,102202
WARRINGTON BOROUGH COUNCIL,http://opendatacommunities.org/id/unitary-authority/warrington,ENO,Open Spaces,82006,Equipment Purchase & Contract,400000,28/03/2022,5100491385,1660,David Webster & Sons Ltd,102202
WARRINGTON BOROUGH COUNCIL,http://opendatacommunities.org/id/unitary-authority/warrington,COR,New Market - Operational Account,47000,Equipment Purchase & Contract,400000,01/04/2022,5100491404,9983.96,Blacka Acoustics Ltd,118719
WARRINGTON BOROUGH COUNCIL,http://opendatacommunities.org/id/unitary-authority/warrington,ET0,Waste Disposal,41830,Residual Waste Disposal,530500,01/04/2022,5100491405,254267.74,Viridor Energy Limited,118588
WARRINGTON BOROUGH COUNCIL,http://opendatacommunities.org/id/unitary-authority/warrington,ET0,Waste Disposal,41830,Residual Waste Disposal,530500,01/04/2022,5100491406,70201.79,Viridor Energy Limited,118588
WARRINGTON BOROUGH COUNCIL,http://opendatacommunities.org/id/unitary-authority/warrington,ET0,Waste Disposal,41830,Residual Waste Disposal,530500,01/04/2022,5100491407,60355.2,Viridor Energy Limited,118588
WARRINGTON BOROUGH COUNCIL,http://opendatacommunities.org/id/unitary-authority/warrington,ET0,Street Lighting Client,44241,Lighting Energy Char,531550,29/03/2022,5100491447,935.89,Npower Electricity,101884
WARRINGTON BOROUGH COUNCIL,http://opendatacommunities.org/id/unitary-authority/warrington,DG0,Kickstart,22244,"Campaigns,  Projects and Events",491950,01/04/2022,5100491448,1010.75,CRS Law Ltd,118158
WARRINGTON BOROUGH COUNCIL,http://opendatacommunities.org/id/unitary-authority/warrington,FWB,WBC All age Exploitation and Abuse,53185,Consult.& Prof. Serv,440000,01/04/2022,5100491450,20000,Davis & Associates Consultancy Ltd,118596
WARRINGTON BOROUGH COUNCIL,http://opendatacommunities.org/id/unitary-authority/warrington,ET0,Core Operational Business,41730,Materials,400500,01/04/2022,5100491453,6430,Duttons Traffic Management Services,115913
WARRINGTON BOROUGH COUNCIL,http://opendatacommunities.org/id/unitary-authority/warrington,ET0,Core Operational Business,41730,Materials,400500,01/04/2022,5100491455,1995,Duttons Traffic Management Services,115913
WARRINGTON BOROUGH COUNCIL,http://opendatacommunities.org/id/unitary-authority/warrington,COR,New Market - Operational Account,47000,Window Cleaning,270000,01/04/2022,5100491457,1847.18,The Floorbrite Group Limited,117930
WARRINGTON BOROUGH COUNCIL,http://opendatacommunities.org/id/unitary-authority/warrington,ET0,Cemeteries,41410,Grounds Maintenance - External,280000,01/04/2022,5100491458,4200,Friends Of Burtonwood Cemetery,101139
WARRINGTON BOROUGH COUNCIL,http://opendatacommunities.org/id/unitary-authority/warrington,ET0,LACF - Behavioural Change Promotion,44526,"Campaigns,  Projects and Events",491950,01/04/2022,5100491465,3896.66,Halfords Ltd,104764
WARRINGTON BOROUGH COUNCIL,http://opendatacommunities.org/id/unitary-authority/warrington,ET0,LACF - Behavioural Change Promotion,44526,"Campaigns,  Projects and Events",491950,01/04/2022,5100491465,1498.34,Halfords Ltd,104764
WARRINGTON BOROUGH COUNCIL,http://opendatacommunities.org/id/unitary-authority/warrington,FWB,Virtual School,31112,Looked after children in Warrington,301000,01/04/2022,5100491468,2000,King David High School,400617
WARRINGTON BOROUGH COUNCIL,http://opendatacommunities.org/id/unitary-authority/warrington,COR,New Market - Operational Account,47000,Annual Maintenance,442100,01/04/2022,5100491470,720.48,Kone Escalators,105477
WARRINGTON BOROUGH COUNCIL,http://opendatacommunities.org/id/unitary-authority/warrington,FWB,Building Safer Communities,16000,Payment of Grants,470050,01/04/2022,5100491472,800,Livewire,110692
WARRINGTON BOROUGH COUNCIL,http://opendatacommunities.org/id/unitary-authority/warrington,ET0,Bus Interchange,44460,Cross Boundary Service Expenses,530300,01/04/2022,5100491474,16136.15,Merseytravel,104933
WARRINGTON BOROUGH COUNCIL,http://opendatacommunities.org/id/unitary-authority/warrington,PIO,People & Improvement Other,85002,Lifts from Stock,400850,01/04/2022,5100491482,2400,AMW Lift & Mobility Services Ltd,112766
WARRINGTON BOROUGH COUNCIL,http://opendatacommunities.org/id/unitary-authority/warrington,PIO,People & Improvement Other,85002,Lifts from Stock,400850,01/04/2022,5100491483,4870,AMW Lift & Mobility Services Ltd,112766
WARRINGTON BOROUGH COUNCIL,http://opendatacommunities.org/id/unitary-authority/warrington,PIO,People & Improvement Other,85002,Lifts from Stock,400850,01/04/2022,5100491484,4540,AMW Lift & Mobility Services Ltd,112766
WARRINGTON BOROUGH COUNCIL,http://opendatacommunities.org/id/unitary-authority/warrington,PIO,People & Improvement Other,85002,Lifts from Stock,400850,01/04/2022,5100491485,1379.5,AMW Lift & Mobility Services Ltd,112766
WARRINGTON BOROUGH COUNCIL,http://opendatacommunities.org/id/unitary-authority/warrington,PIO,People & Improvement Other,85002,Lifts from Stock,400850,01/04/2022,5100491486,2400,AMW Lift & Mobility Services Ltd,112766
WARRINGTON BOROUGH COUNCIL,http://opendatacommunities.org/id/unitary-authority/warrington,PIO,People & Improvement Other,85002,Lifts from Stock,400850,01/04/2022,5100491487,2532.3,AMW Lift & Mobility Services Ltd,112766
WARRINGTON BOROUGH COUNCIL,http://opendatacommunities.org/id/unitary-authority/warrington,PIO,People & Improvement Other,85002,Lifts from Stock,400850,01/04/2022,5100491488,4770,AMW Lift & Mobility Services Ltd,112766
WARRINGTON BOROUGH COUNCIL,http://opendatacommunities.org/id/unitary-authority/warrington,PIO,People & Improvement Other,85002,Lifts from Stock,400850,01/04/2022,5100491489,2636,AMW Lift & Mobility Services Ltd,112766
WARRINGTON BOROUGH COUNCIL,http://opendatacommunities.org/id/unitary-authority/warrington,PIO,People & Improvement Other,85002,Lifts from Stock,400850,01/04/2022,5100491490,2400,AMW Lift & Mobility Services Ltd,112766
WARRINGTON BOROUGH COUNCIL,http://opendatacommunities.org/id/unitary-authority/warrington,FWB,Social Care Records,54311,Computer Software - Maintenance,450850,01/04/2022,5100491494,3000,Access UK Ltd,118542
WARRINGTON BOROUGH COUNCIL,http://opendatacommunities.org/id/unitary-authority/warrington,ENO,Highways Other,82005,Outdoor Pursuit,490550,01/04/2022,5100491495,2488.32,Marthall Tree Products,101343
WARRINGTON BOROUGH COUNCIL,http://opendatacommunities.org/id/unitary-authority/warrington,FWB,BCF - Padgate House,54760,Agency Supply - GF,180000,01/04/2022,5100491496,582.48,Bluetree Healthcare Limited,117310
WARRINGTON BOROUGH COUNCIL,http://opendatacommunities.org/id/unitary-authority/warrington,ET0,Facilities Management,41422,Maintenance Work - Sub Contractors,301150,01/04/2022,5100491497,5544,Bounceback Safety Surfaces Ltd,106410
WARRINGTON BOROUGH COUNCIL,http://opendatacommunities.org/id/unitary-authority/warrington,ET0,Walton Hall Catering,41433,Consult.& Prof. Serv,440000,01/04/2022,5100491504,1500,Carringtons Catering Ltd,116708
WARRINGTON BOROUGH COUNCIL,http://opendatacommunities.org/id/unitary-authority/warrington,RSC,IT - Contracts,23600,Computer Hardware - Maintenance,450750,01/04/2022,5100491506,1879,Cheshire East Council,410116
WARRINGTON BOROUGH COUNCIL,http://opendatacommunities.org/id/unitary-authority/warrington,ET0,Schools (Street Scene),41733,Materials,400500,01/04/2022,5100491509,3355,Duttons Traffic Management Services,115913
WARRINGTON BOROUGH COUNCIL,http://opendatacommunities.org/id/unitary-authority/warrington,RSC,ICT Centralised Budget,23100,Computer Software - Maintenance,450850,01/04/2022,5100491514,600,Key Terra Firma Ltd,100763
WARRINGTON BOROUGH COUNCIL,http://opendatacommunities.org/id/unitary-authority/warrington,RSC,ICT Centralised Budget,23100,Computer Software - Maintenance,450850,01/04/2022,5100491517,3060,Envitech Europe Ltd,112725
WARRINGTON BOROUGH COUNCIL,http://opendatacommunities.org/id/unitary-authority/warrington,RSC,IT - Contracts,23600,Stationery,430150,01/04/2022,5100491518,18696,Edenhouse Solutions Ltd,114416
WARRINGTON BOROUGH COUNCIL,http://opendatacommunities.org/id/unitary-authority/warrington,ET0,Construction Stores Overhead Account,41320,Uniforms,420000,01/04/2022,5100491523,623.29,Parker Merchanting Ltd,105007
WARRINGTON BOROUGH COUNCIL,http://opendatacommunities.org/id/unitary-authority/warrington,FWB,Contracts - SM Commissioning Team 1,55910,Drug Action,443600,07/04/2022,5100491525,20902.75,NHS Business Services Authority,113435
WARRINGTON BOROUGH COUNCIL,http://opendatacommunities.org/id/unitary-authority/warrington,ENO,Highways LTP,82004,Consult.& Prof. Serv,440000,01/04/2022,5100491527,735,Atkins Ltd,105752
WARRINGTON BOROUGH COUNCIL,http://opendatacommunities.org/id/unitary-authority/warrington,FWB,DSG Post-16 Special Educational Needs,32309,Fees (Including Agents Fees),441450,01/04/2022,5100491530,926.25,TutorRight Limited,116990
WARRINGTON BOROUGH COUNCIL,http://opendatacommunities.org/id/unitary-authority/warrington,FWB,Building Safer Communities,16000,Payment of Grants,470050,01/04/2022,5100491532,13510,Police & Crime Commissioner Ches,104596
WARRINGTON BOROUGH COUNCIL,http://opendatacommunities.org/id/unitary-authority/warrington,DG0,Kickstart,22244,"Campaigns,  Projects and Events",491950,01/04/2022,5100491534,500,Westmnster Finance Limited,118064
WARRINGTON BOROUGH COUNCIL,http://opendatacommunities.org/id/unitary-authority/warrington,ET0,Marshall Gardens,42115,Maintenance Work - Sub Contractors,301150,01/04/2022,5100491535,612.5,Uniqwin UK,105210
WARRINGTON BOROUGH COUNCIL,http://opendatacommunities.org/id/unitary-authority/warrington,FWB,OT/Equip - Childrens,54315,Equipment Purchase & Contract,400000,01/04/2022,5100491538,3600,Scan Mobility,105107
WARRINGTON BOROUGH COUNCIL,http://opendatacommunities.org/id/unitary-authority/warrington,ET0,Bus Interchange,44460,Annual Maintenance,442100,01/04/2022,5100491543,1200,Metcalfe's Window Cleaning Services,117558
WARRINGTON BOROUGH COUNCIL,http://opendatacommunities.org/id/unitary-authority/warrington,FWB,Mental Capacity Act,54650,Consult.& Prof. Serv,440000,01/04/2022,5100491544,2670,Reed Talent Solutions Limited,118453
WARRINGTON BOROUGH COUNCIL,http://opendatacommunities.org/id/unitary-authority/warrington,FWB,Special Schools Transport,33208,Stationery,430150,01/04/2022,5100491545,1728.48,Arrivals Star,101879
WARRINGTON BOROUGH COUNCIL,http://opendatacommunities.org/id/unitary-authority/warrington,ET0,Land Drainage,44120,Annual Maintenance,442100,07/04/2022,5100491587,3500,Swarco Traffic Ltd,105574
WARRINGTON BOROUGH COUNCIL,http://opendatacommunities.org/id/unitary-authority/warrington,ET0,Street Lighting Client,44241,Lighting Energy Char,531550,01/04/2022,5100491588,13303.07,Npower Electricity,101884
WARRINGTON BOROUGH COUNCIL,http://opendatacommunities.org/id/unitary-authority/warrington,ET0,Street Lighting Client,44241,Lighting Energy Char,531550,01/04/2022,5100491590,11272.69,Npower Electricity,101884
WARRINGTON BOROUGH COUNCIL,http://opendatacommunities.org/id/unitary-authority/warrington,ENO,Highways Other,82005,Patching Cat2,532300,01/04/2022,5100491593,695.32,Tarmac,100489
WARRINGTON BOROUGH COUNCIL,http://opendatacommunities.org/id/unitary-authority/warrington,ET0,Or Rm C'way & F'way,44260,M.C.R.Flexible Cat1,530850,01/04/2022,5100491595,1209.62,Tarmac,100489
WARRINGTON BOROUGH COUNCIL,http://opendatacommunities.org/id/unitary-authority/warrington,ET0,Or Rm C'way & F'way,44260,M.C.R.Flexible Cat1,530850,01/04/2022,5100491596,900.4,Tarmac,100489
WARRINGTON BOROUGH COUNCIL,http://opendatacommunities.org/id/unitary-authority/warrington,ET0,Recreation & Games,41431,Outdoor Pursuit,490550,01/04/2022,5100491597,5740.9,Tarmac,100489
WARRINGTON BOROUGH COUNCIL,http://opendatacommunities.org/id/unitary-authority/warrington,ENO,Highways LTP,82004,Traffic Section,531150,01/04/2022,5100491598,1795,Tarmac,100489
WARRINGTON BOROUGH COUNCIL,http://opendatacommunities.org/id/unitary-authority/warrington,COR,Hatters Row,43710,Security Systems,250000,01/04/2022,5100491599,3616.88,Uniqwin UK,105210
WARRINGTON BOROUGH COUNCIL,http://opendatacommunities.org/id/unitary-authority/warrington,IGO,Property & Estates,86001,Consult.& Prof. Serv,440000,01/04/2022,5100491601,35355,Wsp Uk Ltd,103007
WARRINGTON BOROUGH COUNCIL,http://opendatacommunities.org/id/unitary-authority/warrington,RSC,One - Off ICT Costs,23200,Computer Software - Maintenance,450850,01/04/2022,5100491602,11850.52,Phoenix Software Ltd,105022
WARRINGTON BOROUGH COUNCIL,http://opendatacommunities.org/id/unitary-authority/warrington,RSC,One - Off ICT Costs,23200,Computer Software - Maintenance,450850,01/04/2022,5100491602,1706.48,Phoenix Software Ltd,105022
WARRINGTON BOROUGH COUNCIL,http://opendatacommunities.org/id/unitary-authority/warrington,ENO,Highways Other,82005,Consult.& Prof. Serv,440000,28/04/2022,5100491605,3320.92,Network Rail Commercial Property,105053
WARRINGTON BOROUGH COUNCIL,http://opendatacommunities.org/id/unitary-authority/warrington,RSC,Communications,13000,"Campaigns,  Projects and Events",491950,01/04/2022,5100491606,750,Newsquest Media Group,100070
WARRINGTON BOROUGH COUNCIL,http://opendatacommunities.org/id/unitary-authority/warrington,FWB,Virtual School,31112,Looked after children in Warrington,301000,01/04/2022,5100491608,600,No Isolation Ltd,118641
WARRINGTON BOROUGH COUNCIL,http://opendatacommunities.org/id/unitary-authority/warrington,FWB,Training,31203,Training,190150,01/04/2022,5100491615,525,Open Forum Events Ltd,114060
WARRINGTON BOROUGH COUNCIL,http://opendatacommunities.org/id/unitary-authority/warrington,ET0,Taxi and Private Hire Licensing,44450,Consult.& Prof. Serv,440000,01/04/2022,5100491618,1110,Oyster Partnership,116595
WARRINGTON BOROUGH COUNCIL,http://opendatacommunities.org/id/unitary-authority/warrington,FWB,SEN Projects,32301,Fees (Including Agents Fees),441450,01/04/2022,5100491619,12000,Woolston Community Primary (Acad),400612
WARRINGTON BOROUGH COUNCIL,http://opendatacommunities.org/id/unitary-authority/warrington,PIO,People & Improvement Other,85002,Lifts from Stock,400850,01/04/2022,5100491630,1050,Prism Medical UK,108616
WARRINGTON BOROUGH COUNCIL,http://opendatacommunities.org/id/unitary-authority/warrington,DG0,Kickstart,22244,"Campaigns,  Projects and Events",491950,01/04/2022,5100491634,1657.55,JJ Bear t/a Sigma,118224
WARRINGTON BOROUGH COUNCIL,http://opendatacommunities.org/id/unitary-authority/warrington,ET0,Street Lighting (Other Works),44243,Materials,400500,01/04/2022,5100491635,3830,Signs Northwest,109586
WARRINGTON BOROUGH COUNCIL,http://opendatacommunities.org/id/unitary-authority/warrington,FWB,BCF - Equipment Store,54930,Equipment Purchase & Contract,400000,01/04/2022,5100491636,1671,Smitcare Limited,101585
WARRINGTON BOROUGH COUNCIL,http://opendatacommunities.org/id/unitary-authority/warrington,ET0,Core Operational Business,41730,Diesel,300100,07/04/2022,5100491638,3924.5,Standard Fuel Oils Ltd,117478
WARRINGTON BOROUGH COUNCIL,http://opendatacommunities.org/id/unitary-authority/warrington,ENO,Highways LTP,82004,Carriageway-Resurfacing,532250,01/04/2022,5100491639,19675.3,Tarmac,100489
WARRINGTON BOROUGH COUNCIL,http://opendatacommunities.org/id/unitary-authority/warrington,FWB,Collaborative Training Group,33301,Training,190150,01/04/2022,5100491641,1138.5,TRM Academy Ltd,118432
WARRINGTON BOROUGH COUNCIL,http://opendatacommunities.org/id/unitary-authority/warrington,FWB,Collaborative Training Group,33301,Training,190150,01/04/2022,5100491642,759,TRM Academy Ltd,118432
WARRINGTON BOROUGH COUNCIL,http://opendatacommunities.org/id/unitary-authority/warrington,DG0,Development Control,43430,Consult.& Prof. Serv,440000,01/04/2022,5100491644,1258,Vivid Resourcing Limited,115752
WARRINGTON BOROUGH COUNCIL,http://opendatacommunities.org/id/unitary-authority/warrington,DG0,Development Control,43430,Consult.& Prof. Serv,440000,01/04/2022,5100491645,930,Vivid Resourcing Limited,115752
WARRINGTON BOROUGH COUNCIL,http://opendatacommunities.org/id/unitary-authority/warrington,FWB,Private Sector Hsg.,43660,Equipment Purchase & Contract,400000,01/04/2022,5100491660,1582.44,Warrington Housing Current Acc,101208
WARRINGTON BOROUGH COUNCIL,http://opendatacommunities.org/id/unitary-authority/warrington,FWB,Private Sector Hsg.,43660,Equipment Purchase & Contract,400000,01/04/2022,5100491661,1828.43,Warrington Housing Current Acc,101208
WARRINGTON BOROUGH COUNCIL,http://opendatacommunities.org/id/unitary-authority/warrington,ET0,P.F.I.,43630,Fees (Including Agents Fees),441450,01/04/2022,5100491662,45125,Your Housing Group,102933
WARRINGTON BOROUGH COUNCIL,http://opendatacommunities.org/id/unitary-authority/warrington,ET0,P.F.I.,43630,Fees (Including Agents Fees),441450,01/04/2022,5100491663,45125,Your Housing Group,102933
WARRINGTON BOROUGH COUNCIL,http://opendatacommunities.org/id/unitary-authority/warrington,ET0,P.F.I.,43630,Fees (Including Agents Fees),441450,01/04/2022,5100491664,45125,Your Housing Group,102933
WARRINGTON BOROUGH COUNCIL,http://opendatacommunities.org/id/unitary-authority/warrington,FWB,Staffing - Cluster Central & South,31540,Training,190150,01/04/2022,5100491665,3966.66,Village Hotel & Leisure Club,105220
WARRINGTON BOROUGH COUNCIL,http://opendatacommunities.org/id/unitary-authority/warrington,ET0,Dropped Crossings,44211,Equipment Purchase & Contract,400000,01/04/2022,5100491685,6076,Tarmac,100489
WARRINGTON BOROUGH COUNCIL,http://opendatacommunities.org/id/unitary-authority/warrington,ET0,Tour of Britan September 2020,42190,"Campaigns,  Projects and Events",491950,01/04/2022,5100491685,1122,Tarmac,100489
WARRINGTON BOROUGH COUNCIL,http://opendatacommunities.org/id/unitary-authority/warrington,ET0,Or Rm C'way & F'way,44260,M.C.R.Flexible Cat1,530850,01/04/2022,5100491685,6520.73,Tarmac,100489
WARRINGTON BOROUGH COUNCIL,http://opendatacommunities.org/id/unitary-authority/warrington,ET0,Or Rm C'way & F'way,44260,Fct Cat1,530950,01/04/2022,5100491685,4479.06,Tarmac,100489
WARRINGTON BOROUGH COUNCIL,http://opendatacommunities.org/id/unitary-authority/warrington,ET0,Or Rm C'way & F'way,44260,Sign Maint Cat1,531300,01/04/2022,5100491685,615.32,Tarmac,100489
WARRINGTON BOROUGH COUNCIL,http://opendatacommunities.org/id/unitary-authority/warrington,ENO,Highways Other,82005,Patching Cat2,532300,01/04/2022,5100491685,1244.7,Tarmac,100489
WARRINGTON BOROUGH COUNCIL,http://opendatacommunities.org/id/unitary-authority/warrington,ENO,Highways LTP,82004,Traffic Section,531150,01/04/2022,5100491687,14975,Tarmac,100489
WARRINGTON BOROUGH COUNCIL,http://opendatacommunities.org/id/unitary-authority/warrington,RSC,Business Intelligence,12300,Consult.& Prof. Serv,440000,01/04/2022,5100491688,9950,Phoenix Software Ltd,105022
WARRINGTON BOROUGH COUNCIL,http://opendatacommunities.org/id/unitary-authority/warrington,FWB,Social Care Records,54311,Computer Hardware - Maintenance,450750,01/04/2022,5100491689,5000,Access UK Ltd,118542
WARRINGTON BOROUGH COUNCIL,http://opendatacommunities.org/id/unitary-authority/warrington,ET0,Street Lighting Client,44241,Lighting Energy Char,531550,01/04/2022,5100491698,75861.05,Npower Electricity,101884
WARRINGTON BOROUGH COUNCIL,http://opendatacommunities.org/id/unitary-authority/warrington,ET0,Street Lighting Client,44241,Lighting Energy Char,531550,01/04/2022,5100491699,89218.38,Npower Electricity,101884
WARRINGTON BOROUGH COUNCIL,http://opendatacommunities.org/id/unitary-authority/warrington,ET0,Trading Standards North West,41564,"Campaigns,  Projects and Events",491950,01/04/2022,5100491706,3836.47,Salford City Council,410033
WARRINGTON BOROUGH COUNCIL,http://opendatacommunities.org/id/unitary-authority/warrington,ET0,Fair Trading & Investigations,41500,"Campaigns,  Projects and Events",491950,01/04/2022,5100491707,1588,Capita Business Services Ltd,105516
WARRINGTON BOROUGH COUNCIL,http://opendatacommunities.org/id/unitary-authority/warrington,DG0,Kickstart,22244,"Campaigns,  Projects and Events",491950,01/04/2022,5100491708,3973.41,Go Earth Ltd,118059
WARRINGTON BOROUGH COUNCIL,http://opendatacommunities.org/id/unitary-authority/warrington,ET0,Facilities Management,41422,Materials,400500,01/04/2022,5100491710,1009.2,Safeguard Nw Ltd,105412
WARRINGTON BOROUGH COUNCIL,http://opendatacommunities.org/id/unitary-authority/warrington,ET0,Taxi and Private Hire Licensing,44450,Consult.& Prof. Serv,440000,01/04/2022,5100491711,6000,Idox Software Ltd,102179
WARRINGTON BOROUGH COUNCIL,http://opendatacommunities.org/id/unitary-authority/warrington,RSC,ICT Centralised Budget,23100,Computer Software - Maintenance,450850,01/04/2022,5100491713,13605.27,Mitrefinch Ltd,104942
WARRINGTON BOROUGH COUNCIL,http://opendatacommunities.org/id/unitary-authority/warrington,FWB,Winter Preventions,53140,Security Systems,250000,01/04/2022,5100491714,918.03,Torus,101005
WARRINGTON BOROUGH COUNCIL,http://opendatacommunities.org/id/unitary-authority/warrington,FWB,Winter Preventions,53140,Security Systems,250000,01/04/2022,5100491715,1931.83,Torus,101005
WARRINGTON BOROUGH COUNCIL,http://opendatacommunities.org/id/unitary-authority/warrington,FWB,Winter Preventions,53140,Security Systems,250000,01/04/2022,5100491716,2912.36,Torus,101005
WARRINGTON BOROUGH COUNCIL,http://opendatacommunities.org/id/unitary-authority/warrington,FWB,Winter Preventions,53140,Security Systems,250000,01/04/2022,5100491717,1773.16,Torus,101005
WARRINGTON BOROUGH COUNCIL,http://opendatacommunities.org/id/unitary-authority/warrington,FWB,Winter Preventions,53140,Security Systems,250000,01/04/2022,5100491718,2668.33,Torus,101005
WARRINGTON BOROUGH COUNCIL,http://opendatacommunities.org/id/unitary-authority/warrington,FWB,Winter Preventions,53140,Security Systems,250000,01/04/2022,5100491719,1643.09,Torus,101005
WARRINGTON BOROUGH COUNCIL,http://opendatacommunities.org/id/unitary-authority/warrington,ET0,Trading Standards North West,41564,"Campaigns,  Projects and Events",491950,01/04/2022,5100491722,700,Wagtail UK Limited,108156
WARRINGTON BOROUGH COUNCIL,http://opendatacommunities.org/id/unitary-authority/warrington,ET0,Trading Standards North West,41564,"Campaigns,  Projects and Events",491950,01/04/2022,5100491723,700,Wagtail UK Limited,108156
WARRINGTON BOROUGH COUNCIL,http://opendatacommunities.org/id/unitary-authority/warrington,RSC,Business Intelligence,12300,Consult.& Prof. Serv,440000,01/04/2022,5100491731,9950,Phoenix Software Ltd,105022
WARRINGTON BOROUGH COUNCIL,http://opendatacommunities.org/id/unitary-authority/warrington,FWB,Supporting People Contracts,53260,Sheltd/Xtra Care Hsing and Comm Alarms,535050,31/03/2022,5100491732,1442.44,Warrington Housing Current Acc,101208
WARRINGTON BOROUGH COUNCIL,http://opendatacommunities.org/id/unitary-authority/warrington,FWB,Supporting People Contracts,53260,Young People and/or Care Leavers,535150,31/03/2022,5100491733,76711.38,Arena Options,101746
WARRINGTON BOROUGH COUNCIL,http://opendatacommunities.org/id/unitary-authority/warrington,FWB,3rd Sector Contracts,53920,Payment of Grants,470050,31/03/2022,5100491734,17797.5,WIRED,109547
WARRINGTON BOROUGH COUNCIL,http://opendatacommunities.org/id/unitary-authority/warrington,FWB,Supporting People Contracts,53260,People with Mental Health Problems,535200,31/03/2022,5100491735,5712.37,Independent Living Alliance Ltd,111037
WARRINGTON BOROUGH COUNCIL,http://opendatacommunities.org/id/unitary-authority/warrington,FWB,Supporting People Contracts,53260,Young People and/or Care Leavers,535150,31/03/2022,5100491736,19583.33,Forum Birkenhead Housing Associ.,118085
WARRINGTON BOROUGH COUNCIL,http://opendatacommunities.org/id/unitary-authority/warrington,FWB,DSG Sensory,32010,Equipment Purchase & Contract,400000,01/04/2022,5100491771,1580,Connevans Ltd,104632
WARRINGTON BOROUGH COUNCIL,http://opendatacommunities.org/id/unitary-authority/warrington,DG0,Employment Skills,22210,Materials,400500,01/04/2022,5100491772,4000,Warrington Football Club Ltd,440015
WARRINGTON BOROUGH COUNCIL,http://opendatacommunities.org/id/unitary-authority/warrington,FWB,DSG Independent School Fees,32011,Fees (Including Agents Fees),441450,01/04/2022,5100491774,3272,Reflexion Care Group Limited,117938
WARRINGTON BOROUGH COUNCIL,http://opendatacommunities.org/id/unitary-authority/warrington,FWB,DSG Inter Authority Recoupment,32009,Fees (Including Agents Fees),441450,01/04/2022,5100491775,4542.86,Little Bollington CofE Primary Sch,400591
WARRINGTON BOROUGH COUNCIL,http://opendatacommunities.org/id/unitary-authority/warrington,ENO,Highways LTP,82004,Environmental Works,531050,01/04/2022,5100491779,6050,Blue Arrow Traffic Management Ltd,109292
WARRINGTON BOROUGH COUNCIL,http://opendatacommunities.org/id/unitary-authority/warrington,FWB,Supporting People Contracts,53260,Risk of Homelessness and Floating Suppor,535100,31/03/2022,5100491794,10242,Warrington Womens Aid Ltd,440000
WARRINGTON BOROUGH COUNCIL,http://opendatacommunities.org/id/unitary-authority/warrington,FWB,Supporting People Contracts,53260,Risk of Homelessness and Floating Suppor,535100,31/03/2022,5100491795,16666.66,Room at the Inn and The Y Project,440065
WARRINGTON BOROUGH COUNCIL,http://opendatacommunities.org/id/unitary-authority/warrington,FWB,Catalyst Choices,54495,CP ExternalOther Exp,440800,01/04/2022,5100491797,30000,Walton Lea Partnership,102953
WARRINGTON BOROUGH COUNCIL,http://opendatacommunities.org/id/unitary-authority/warrington,ET0,Trading Standards North West,41564,"Campaigns,  Projects and Events",491950,01/04/2022,5100491799,2000,Oldham Metropolitan Borough,102958
WARRINGTON BOROUGH COUNCIL,http://opendatacommunities.org/id/unitary-authority/warrington,ENO,Highways LTP,82004,Environmental Works,531050,01/04/2022,5100491800,5500,Blue Arrow Traffic Management Ltd,109292
WARRINGTON BOROUGH COUNCIL,http://opendatacommunities.org/id/unitary-authority/warrington,ENO,Highways LTP,82004,Environmental Works,531050,01/04/2022,5100491801,6325,Blue Arrow Traffic Management Ltd,109292
WARRINGTON BOROUGH COUNCIL,http://opendatacommunities.org/id/unitary-authority/warrington,DG0,Development Control,43430,Periodicals & Publ.,430250,07/04/2022,5100491811,548.08,TMP UK Ltd,108498
WARRINGTON BOROUGH COUNCIL,http://opendatacommunities.org/id/unitary-authority/warrington,FWB,BCF - Equipment Store,54930,Equipment Purchase & Contract,400000,01/04/2022,5100491818,750,Nottingham Rehab Limited,101513
WARRINGTON BOROUGH COUNCIL,http://opendatacommunities.org/id/unitary-authority/warrington,FWB,BCF - Equipment Store,54930,Equipment Purchase & Contract,400000,01/04/2022,5100491818,850,Nottingham Rehab Limited,101513
WARRINGTON BOROUGH COUNCIL,http://opendatacommunities.org/id/unitary-authority/warrington,DG0,Kickstart,22244,"Campaigns,  Projects and Events",491950,01/04/2022,5100491819,1510.75,MKM Building Supplies Ltd,118088
WARRINGTON BOROUGH COUNCIL,http://opendatacommunities.org/id/unitary-authority/warrington,ET0,Construction Stores Overhead Account,41320,Materials,400500,01/04/2022,5100491822,2759.4,Cromwell Polythene Ltd,112559
WARRINGTON BOROUGH COUNCIL,http://opendatacommunities.org/id/unitary-authority/warrington,ET0,Construction Stores Overhead Account,41320,Materials,400500,01/04/2022,5100491822,1414.4,Cromwell Polythene Ltd,112559
WARRINGTON BOROUGH COUNCIL,http://opendatacommunities.org/id/unitary-authority/warrington,FWB,DSG Post-16 Special Educational Needs,32309,Fees (Including Agents Fees),441450,01/04/2022,5100491823,21703.15,Warrington & Vale Royal College,440101
WARRINGTON BOROUGH COUNCIL,http://opendatacommunities.org/id/unitary-authority/warrington,ET0,Domestic (Drivers & Collectors),41840,Bulky Waste Collections,442600,01/04/2022,5100491825,8217,Changing Lives Together,111607
WARRINGTON BOROUGH COUNCIL,http://opendatacommunities.org/id/unitary-authority/warrington,DG0,West Annexe,45161,Maintenance of Plant & Machinery,250050,01/04/2022,5100491828,814.2,Generator Power Ltd,117550
WARRINGTON BOROUGH COUNCIL,http://opendatacommunities.org/id/unitary-authority/warrington,DG0,Strategic Partner Projects,53135,Consult.& Prof. Serv,440000,01/04/2022,5100491829,700,In Hand Design,102233
WARRINGTON BOROUGH COUNCIL,http://opendatacommunities.org/id/unitary-authority/warrington,FWB,Inclusion,32207,Fees (Including Agents Fees),441450,01/04/2022,5100491832,1000,Lightbulb EMDR Ltd,118581
WARRINGTON BOROUGH COUNCIL,http://opendatacommunities.org/id/unitary-authority/warrington,FWB,Winter Preventions,53140,Security Systems,250000,01/04/2022,5100491833,2266.92,Arena Housing,102199
WARRINGTON BOROUGH COUNCIL,http://opendatacommunities.org/id/unitary-authority/warrington,FWB,Winter Preventions,53140,Security Systems,250000,01/04/2022,5100491834,1000,Arena Housing,102199
WARRINGTON BOROUGH COUNCIL,http://opendatacommunities.org/id/unitary-authority/warrington,FWB,Winter Preventions,53140,Security Systems,250000,01/04/2022,5100491836,2497.45,Frontis Homes Ltd,117988
WARRINGTON BOROUGH COUNCIL,http://opendatacommunities.org/id/unitary-authority/warrington,ET0,Transport Holding Account,41311,Veh Maint. Materials,300000,01/04/2022,5100491838,1030.34,F R Sharrock Ltd,105122
WARRINGTON BOROUGH COUNCIL,http://opendatacommunities.org/id/unitary-authority/warrington,RSC,ICT- Schools,23500,Computer Software - Maintenance,450850,01/04/2022,5100491843,18210,Redstor,102218
WARRINGTON BOROUGH COUNCIL,http://opendatacommunities.org/id/unitary-authority/warrington,FWB,BCF - Equipment Store,54930,Equipment Purchase & Contract,400000,01/04/2022,5100491846,795,Select Medical Ltd,115968
WARRINGTON BOROUGH COUNCIL,http://opendatacommunities.org/id/unitary-authority/warrington,ET0,Victoria Park Depot,41332,Maintenance of Plant & Machinery,250050,01/04/2022,5100491852,10540.25,Hardcore Crushing Ltd,116843
WARRINGTON BOROUGH COUNCIL,http://opendatacommunities.org/id/unitary-authority/warrington,FWB,BCF - Equipment Store,54930,Equipment Purchase & Contract,400000,01/04/2022,5100491855,2398.8,Healthcare Matters,110751
WARRINGTON BOROUGH COUNCIL,http://opendatacommunities.org/id/unitary-authority/warrington,FWB,BCF - Equipment Store,54930,Equipment Purchase & Contract,400000,01/04/2022,5100491855,2116.5,Healthcare Matters,110751
WARRINGTON BOROUGH COUNCIL,http://opendatacommunities.org/id/unitary-authority/warrington,FWB,BCF - Equipment Store,54930,Equipment Purchase & Contract,400000,01/04/2022,5100491856,1411,Healthcare Matters,110751
WARRINGTON BOROUGH COUNCIL,http://opendatacommunities.org/id/unitary-authority/warrington,FWB,BCF - Equipment Store,54930,Equipment Purchase & Contract,400000,01/04/2022,5100491857,2116.5,Healthcare Matters,110751
WARRINGTON BOROUGH COUNCIL,http://opendatacommunities.org/id/unitary-authority/warrington,FWB,BCF - Equipment Store,54930,Equipment Purchase & Contract,400000,01/04/2022,5100491857,736.8,Healthcare Matters,110751
WARRINGTON BOROUGH COUNCIL,http://opendatacommunities.org/id/unitary-authority/warrington,FWB,Care Call,54550,Equipment Purchase & Contract,400000,07/04/2022,5100491858,652,Doro Care (UK) Ltd (Careium),115633
WARRINGTON BOROUGH COUNCIL,http://opendatacommunities.org/id/unitary-authority/warrington,FWB,Inclusion,32207,Fees (Including Agents Fees),441450,01/04/2022,5100491900,2500,Stoddart Cross Psychology,118344
WARRINGTON BOROUGH COUNCIL,http://opendatacommunities.org/id/unitary-authority/warrington,ET0,Or Rm C'way & F'way,44260,Fct Cat1,530950,01/04/2022,5100491901,3398.95,Tarmac,100489
WARRINGTON BOROUGH COUNCIL,http://opendatacommunities.org/id/unitary-authority/warrington,ENO,Highways LTP,82004,Patching Cat2,532300,01/04/2022,5100491903,1290.3,Tarmac,100489
WARRINGTON BOROUGH COUNCIL,http://opendatacommunities.org/id/unitary-authority/warrington,ET0,Victoria Park Depot,41332,Building Work,200850,01/04/2022,5100491904,8400,Kensite Services Limited,106202
WARRINGTON BOROUGH COUNCIL,http://opendatacommunities.org/id/unitary-authority/warrington,FWB,Mental Capacity Act,54650,Consult.& Prof. Serv,440000,01/04/2022,5100491911,4900,Reed Talent Solutions Limited,118453
WARRINGTON BOROUGH COUNCIL,http://opendatacommunities.org/id/unitary-authority/warrington,ENO,Highways Other,82005,Environmental Works,531050,01/04/2022,5100491918,1500,Pm Surveys Ltd,100711
WARRINGTON BOROUGH COUNCIL,http://opendatacommunities.org/id/unitary-authority/warrington,FWB,BCF - Equipment Store,54930,Equipment Purchase & Contract,400000,01/04/2022,5100491919,980,Lisclare Ltd,100553
WARRINGTON BOROUGH COUNCIL,http://opendatacommunities.org/id/unitary-authority/warrington,FWB,Inclusion,32207,Fees (Including Agents Fees),441450,01/04/2022,5100491921,1000,TD Psychology Ltd,118558
WARRINGTON BOROUGH COUNCIL,http://opendatacommunities.org/id/unitary-authority/warrington,FWB,Inclusion,32207,Fees (Including Agents Fees),441450,01/04/2022,5100491923,500,Leggett Consultancy,118590
WARRINGTON BOROUGH COUNCIL,http://opendatacommunities.org/id/unitary-authority/warrington,FWB,DSG Independent School Fees,32011,Fees (Including Agents Fees),441450,01/04/2022,5100491924,7513.52,Weston Point College,110596
WARRINGTON BOROUGH COUNCIL,http://opendatacommunities.org/id/unitary-authority/warrington,FWB,DSG Independent School Fees,32011,Fees (Including Agents Fees),441450,01/04/2022,5100491925,49374.4,Weston Point College,110596
WARRINGTON BOROUGH COUNCIL,http://opendatacommunities.org/id/unitary-authority/warrington,RSC,Audit Services,10200,Consult.& Prof. Serv,440000,01/04/2022,5100491926,1600,Tameside M B,440155
WARRINGTON BOROUGH COUNCIL,http://opendatacommunities.org/id/unitary-authority/warrington,ENO,Highways LTP,82004,Consult.& Prof. Serv,440000,01/04/2022,5100491927,31670,NSL Services Group,113509
WARRINGTON BOROUGH COUNCIL,http://opendatacommunities.org/id/unitary-authority/warrington,DG0,86 Sankey Street,43115,Consult.& Prof. Serv,440000,04/04/2022,5100492051,3850,Read Property Associates Ltd,116356
WARRINGTON BOROUGH COUNCIL,http://opendatacommunities.org/id/unitary-authority/warrington,FWB,Virtual School,31112,Looked after children in Warrington,301000,04/04/2022,5100492057,1050,Bridgewater High School Academy,400251
WARRINGTON BOROUGH COUNCIL,http://opendatacommunities.org/id/unitary-authority/warrington,DG0,Kickstart,22244,"Campaigns,  Projects and Events",491950,04/04/2022,5100492058,941.16,Go Earth Ltd,118059
WARRINGTON BOROUGH COUNCIL,http://opendatacommunities.org/id/unitary-authority/warrington,DG0,Kickstart,22244,"Campaigns,  Projects and Events",491950,04/04/2022,5100492059,1010.75,Go Earth Ltd,118059
WARRINGTON BOROUGH COUNCIL,http://opendatacommunities.org/id/unitary-authority/warrington,FWB,BCF - Equipment Store,54930,Equipment Purchase & Contract,400000,04/04/2022,5100492081,1514.69,Prism Medical UK,108616
WARRINGTON BOROUGH COUNCIL,http://opendatacommunities.org/id/unitary-authority/warrington,ET0,Town Centre (Street Scene),41732,Equipment Purchase & Contract,400000,04/04/2022,5100492086,6350,The Fountain Company Ltd,100188
WARRINGTON BOROUGH COUNCIL,http://opendatacommunities.org/id/unitary-authority/warrington,ET0,Town Centre (Street Scene),41732,Equipment Purchase & Contract,400000,04/04/2022,5100492089,10250.26,The Fountain Company Ltd,100188
WARRINGTON BOROUGH COUNCIL,http://opendatacommunities.org/id/unitary-authority/warrington,ET0,Park Development Sites,41423,Materials,400500,04/04/2022,5100492091,580,Agrovista Uk Ltd,101700
WARRINGTON BOROUGH COUNCIL,http://opendatacommunities.org/id/unitary-authority/warrington,FWB,BCF - Equipment Store,54930,Equipment Purchase & Contract,400000,04/04/2022,5100492094,864,Performance Health,105137
WARRINGTON BOROUGH COUNCIL,http://opendatacommunities.org/id/unitary-authority/warrington,ET0,Construction Stores Overhead Account,41320,Materials,400500,04/04/2022,5100492096,657,Warrington Electrical Supplies,103041
WARRINGTON BOROUGH COUNCIL,http://opendatacommunities.org/id/unitary-authority/warrington,ET0,Transport Holding Account,41311,Maintenance Work - Sub Contractors,301150,05/04/2022,5100492140,732.47,KIK ATVS LTD,107270
WARRINGTON BOROUGH COUNCIL,http://opendatacommunities.org/id/unitary-authority/warrington,FWB,Virtual School,31112,Looked after children in Warrington,301000,05/04/2022,5100492145,1200,Sandymoor Ormiston Academy,118721
WARRINGTON BOROUGH COUNCIL,http://opendatacommunities.org/id/unitary-authority/warrington,PIO,People & Improvement Other,85002,Lifts from Stock,400850,05/04/2022,5100492148,2410,TK Access Solutions Limited,105382
WARRINGTON BOROUGH COUNCIL,http://opendatacommunities.org/id/unitary-authority/warrington,ENP,Environment & Regeneration,82000,Materials,400500,05/04/2022,5100492149,4540.16,Phosco Ltd,104646
WARRINGTON BOROUGH COUNCIL,http://opendatacommunities.org/id/unitary-authority/warrington,NEP,Neighbourhood & Community Services,83000,Consult.& Prof. Serv,440000,07/04/2022,5100492150,3949,Livewire,110692
WARRINGTON BOROUGH COUNCIL,http://opendatacommunities.org/id/unitary-authority/warrington,FWB,Fearnhead Cross CH,51235,Rent Of Premises,220000,05/04/2022,5100492151,4147.68,Livewire,110692
WARRINGTON BOROUGH COUNCIL,http://opendatacommunities.org/id/unitary-authority/warrington,RSC,Coroners Service,11100,Premises - Covid 19,299919,05/04/2022,5100492153,3250,Culture Warrington,100957
WARRINGTON BOROUGH COUNCIL,http://opendatacommunities.org/id/unitary-authority/warrington,ET0,Facilities Management,41422,Grounds Maintenance - External,280000,05/04/2022,5100492155,560,Alfred Bagnall & Sons (North West),118529
WARRINGTON BOROUGH COUNCIL,http://opendatacommunities.org/id/unitary-authority/warrington,ET0,Facilities Management,41422,Grounds Maintenance - External,280000,05/04/2022,5100492157,560,Alfred Bagnall & Sons (North West),118529
WARRINGTON BOROUGH COUNCIL,http://opendatacommunities.org/id/unitary-authority/warrington,ET0,Facilities Management,41422,Grounds Maintenance - External,280000,05/04/2022,5100492158,1820,Alfred Bagnall & Sons (North West),118529
WARRINGTON BOROUGH COUNCIL,http://opendatacommunities.org/id/unitary-authority/warrington,NEO,Neighbourhood & Community Other,83002,Consult.& Prof. Serv,440000,05/04/2022,5100492161,3292.35,Whitfield & Brown Developments Ltd,105435
WARRINGTON BOROUGH COUNCIL,http://opendatacommunities.org/id/unitary-authority/warrington,FWB,Special Schools Transport,33208,Statemented - Special Unit Pupil Transpo,300750,05/04/2022,5100492169,2040,Direct Taxis,101873
WARRINGTON BOROUGH COUNCIL,http://opendatacommunities.org/id/unitary-authority/warrington,FWB,Business Development,53500,Consult.& Prof. Serv,440000,05/04/2022,5100492176,25000,Warrington & Vale Royal College,440101
WARRINGTON BOROUGH COUNCIL,http://opendatacommunities.org/id/unitary-authority/warrington,FWB,BCF - Telecare/Sensory,54560,Health Awareness,441950,05/04/2022,5100492177,600,Buddi Ltd,108559
WARRINGTON BOROUGH COUNCIL,http://opendatacommunities.org/id/unitary-authority/warrington,ENO,Highways LTP,82004,Traffic Section,531150,05/04/2022,5100492178,5477.4,Tarmac,100489
WARRINGTON BOROUGH COUNCIL,http://opendatacommunities.org/id/unitary-authority/warrington,ENO,Highways Other,82005,Traffic Section,531150,05/04/2022,5100492178,2377.98,Tarmac,100489
WARRINGTON BOROUGH COUNCIL,http://opendatacommunities.org/id/unitary-authority/warrington,ENO,Highways LTP,82004,Traffic Section,531150,05/04/2022,5100492178,754.93,Tarmac,100489
WARRINGTON BOROUGH COUNCIL,http://opendatacommunities.org/id/unitary-authority/warrington,ENO,Highways LTP,82004,Traffic Section,531150,05/04/2022,5100492178,531.85,Tarmac,100489
WARRINGTON BOROUGH COUNCIL,http://opendatacommunities.org/id/unitary-authority/warrington,ET0,Traffic and Safety,44350,Traffic Section,531150,05/04/2022,5100492178,939.05,Tarmac,100489
WARRINGTON BOROUGH COUNCIL,http://opendatacommunities.org/id/unitary-authority/warrington,ET0,Traffic and Safety,44350,Unlit Signs,531200,05/04/2022,5100492178,2766.24,Tarmac,100489
WARRINGTON BOROUGH COUNCIL,http://opendatacommunities.org/id/unitary-authority/warrington,ET0,Highways Drainage,44270,Materials,400500,05/04/2022,5100492179,16120.5,Tarmac,100489
WARRINGTON BOROUGH COUNCIL,http://opendatacommunities.org/id/unitary-authority/warrington,ENO,Highways LTP,82004,Traffic Section,531150,05/04/2022,5100492180,968.53,Tarmac,100489
WARRINGTON BOROUGH COUNCIL,http://opendatacommunities.org/id/unitary-authority/warrington,ET0,Traffic and Safety,44350,Traffic Section,531150,05/04/2022,5100492180,721.86,Tarmac,100489
WARRINGTON BOROUGH COUNCIL,http://opendatacommunities.org/id/unitary-authority/warrington,ET0,Traffic and Safety,44350,Unlit Signs,531200,05/04/2022,5100492180,4188.76,Tarmac,100489
WARRINGTON BOROUGH COUNCIL,http://opendatacommunities.org/id/unitary-authority/warrington,ET0,Traffic and Safety,44350,Public Rights Of Way,531900,05/04/2022,5100492180,2123.16,Tarmac,100489
WARRINGTON BOROUGH COUNCIL,http://opendatacommunities.org/id/unitary-authority/warrington,ENO,Highways LTP,82004,Traffic Section,531150,05/04/2022,5100492181,3528.34,Tarmac,100489
WARRINGTON BOROUGH COUNCIL,http://opendatacommunities.org/id/unitary-authority/warrington,ET0,Traffic and Safety,44350,Unlit Signs,531200,05/04/2022,5100492181,3221.6,Tarmac,100489
WARRINGTON BOROUGH COUNCIL,http://opendatacommunities.org/id/unitary-authority/warrington,ET0,Land Drainage,44120,Annual Maintenance,442100,05/04/2022,5100492184,2970,Pure utility Solutions Limited,115212
WARRINGTON BOROUGH COUNCIL,http://opendatacommunities.org/id/unitary-authority/warrington,RSC,IT - Contracts,23600,Consult.& Prof. Serv,440000,05/04/2022,5100492185,3180,Phoenix Software Ltd,105022
WARRINGTON BOROUGH COUNCIL,http://opendatacommunities.org/id/unitary-authority/warrington,FWB,Virtual School,31112,Looked after children in Warrington,301000,05/04/2022,5100492186,730,Padgate Academy,111431
WARRINGTON BOROUGH COUNCIL,http://opendatacommunities.org/id/unitary-authority/warrington,DG0,Local Plan,43445,Consult.& Prof. Serv,440000,05/04/2022,5100492187,6275,G L Hearn Limited,114557
WARRINGTON BOROUGH COUNCIL,http://opendatacommunities.org/id/unitary-authority/warrington,ET0,Transport Holding Account,41311,Diesel,300100,05/04/2022,5100492188,22445.55,Standard Fuel Oils Ltd,117478
WARRINGTON BOROUGH COUNCIL,http://opendatacommunities.org/id/unitary-authority/warrington,ET0,Transport Holding Account,41311,Petrol,300050,05/04/2022,5100492189,2592.1,Standard Fuel Oils Ltd,117478
WARRINGTON BOROUGH COUNCIL,http://opendatacommunities.org/id/unitary-authority/warrington,FWB,Virtual School,31112,Looked after children in Warrington,301000,05/04/2022,5100492191,2158,Woolston Community Primary (Acad),400612
WARRINGTON BOROUGH COUNCIL,http://opendatacommunities.org/id/unitary-authority/warrington,ENO,Highways Other,82005,Consult.& Prof. Serv,440000,05/04/2022,5100492194,650,Atkins Ltd,105752
WARRINGTON BOROUGH COUNCIL,http://opendatacommunities.org/id/unitary-authority/warrington,ET0,Walton Hall Catering,41433,Consult.& Prof. Serv,440000,05/04/2022,5100492195,1500,Carringtons Catering Ltd,116708
WARRINGTON BOROUGH COUNCIL,http://opendatacommunities.org/id/unitary-authority/warrington,DG0,Primary Schools BMP External Income,45435,Specific Work,200200,05/04/2022,5100492196,6039,Building Technology Systems Ltd,109153
WARRINGTON BOROUGH COUNCIL,http://opendatacommunities.org/id/unitary-authority/warrington,FWB,DSG Post-16 Special Educational Needs,32309,Fees (Including Agents Fees),441450,05/04/2022,5100492201,3025,Birchwood Academy High School,112025
WARRINGTON BOROUGH COUNCIL,http://opendatacommunities.org/id/unitary-authority/warrington,FWB,Collaborative Training Group,33301,Training,190150,05/04/2022,5100492203,562.5,Aim Training Project,105546
WARRINGTON BOROUGH COUNCIL,http://opendatacommunities.org/id/unitary-authority/warrington,FWB,Collaborative Training Group,33301,Training,190150,05/04/2022,5100492203,1287,Aim Training Project,105546
WARRINGTON BOROUGH COUNCIL,http://opendatacommunities.org/id/unitary-authority/warrington,FWB,CIN Team 5,31015,Personal Needs Allowance,550400,06/04/2022,5100492239,1824,Clair Noon,118732
WARRINGTON BOROUGH COUNCIL,http://opendatacommunities.org/id/unitary-authority/warrington,FWB,CIN Team 5,31015,Personal Needs Allowance,550400,06/04/2022,5100492239,2076,Clair Noon,118732
WARRINGTON BOROUGH COUNCIL,http://opendatacommunities.org/id/unitary-authority/warrington,NEO,IT Projects,83003,Computer Software - Maintenance,450850,06/04/2022,5100492244,17462.46,Phoenix Software Ltd,105022
WARRINGTON BOROUGH COUNCIL,http://opendatacommunities.org/id/unitary-authority/warrington,ET0,Crematorium,41411,Resaleables,400600,13/04/2022,5100492246,583,Viewtouch Ltd,102026
WARRINGTON BOROUGH COUNCIL,http://opendatacommunities.org/id/unitary-authority/warrington,ET0,Taxi and Private Hire Licensing,44450,Consult.& Prof. Serv,440000,06/04/2022,5100492250,1119.9,Oyster Partnership,116595
WARRINGTON BOROUGH COUNCIL,http://opendatacommunities.org/id/unitary-authority/warrington,DG0,Kickstart,22244,"Campaigns,  Projects and Events",491950,06/04/2022,5100492252,716.39,The Lymm Sanctuary Hub Limited,118181
WARRINGTON BOROUGH COUNCIL,http://opendatacommunities.org/id/unitary-authority/warrington,FWB,Virtual School,31112,Looked after children in Warrington,301000,06/04/2022,5100492254,1226.99,The Thinking Schools Academy,400571
WARRINGTON BOROUGH COUNCIL,http://opendatacommunities.org/id/unitary-authority/warrington,DG0,Strategic Partner Projects,53135,Consult.& Prof. Serv,440000,06/04/2022,5100492255,500,Culture Warrington,100957
WARRINGTON BOROUGH COUNCIL,http://opendatacommunities.org/id/unitary-authority/warrington,RSC,Printing & Graphics,23040,Materials,400500,06/04/2022,5100492256,575,WL Coller Ltd,106299
WARRINGTON BOROUGH COUNCIL,http://opendatacommunities.org/id/unitary-authority/warrington,FWB,Inclusion,32207,Fees (Including Agents Fees),441450,06/04/2022,5100492257,3987.5,University Of Manchester,104920
WARRINGTON BOROUGH COUNCIL,http://opendatacommunities.org/id/unitary-authority/warrington,FWB,Inclusion,32207,Fees (Including Agents Fees),441450,06/04/2022,5100492258,500,Leggett Consultancy,118590
WARRINGTON BOROUGH COUNCIL,http://opendatacommunities.org/id/unitary-authority/warrington,RSC,ICT Centralised Budget,23100,Computer Software - Maintenance,450850,06/04/2022,5100492259,15430.97,Trapeze Group (Uk) Ltd,105426
WARRINGTON BOROUGH COUNCIL,http://opendatacommunities.org/id/unitary-authority/warrington,FWB,Private Sector Hsg.,43660,Equipment Purchase & Contract,400000,06/04/2022,5100492263,1663.2,Warrington Housing Current Acc,101208
WARRINGTON BOROUGH COUNCIL,http://opendatacommunities.org/id/unitary-authority/warrington,RSC,IT - Contracts,23600,Computer Software - Maintenance,450850,06/04/2022,5100492267,639,Phoenix Software Ltd,105022
WARRINGTON BOROUGH COUNCIL,http://opendatacommunities.org/id/unitary-authority/warrington,RSC,IT - Contracts,23600,Computer Software - Maintenance,450850,06/04/2022,5100492268,19632.87,Phoenix Software Ltd,105022
WARRINGTON BOROUGH COUNCIL,http://opendatacommunities.org/id/unitary-authority/warrington,ENO,Highways Other,82005,Environmental Works,531050,06/04/2022,5100492280,1671.5,FDR Law,114996
WARRINGTON BOROUGH COUNCIL,http://opendatacommunities.org/id/unitary-authority/warrington,FWB,BCF - Equipment Store,54930,Equipment Purchase & Contract,400000,06/04/2022,5100492285,663.12,Healthcare Matters,110751
WARRINGTON BOROUGH COUNCIL,http://opendatacommunities.org/id/unitary-authority/warrington,FWB,BCF - Equipment Store,54930,Equipment Purchase & Contract,400000,06/04/2022,5100492285,736.8,Healthcare Matters,110751
WARRINGTON BOROUGH COUNCIL,http://opendatacommunities.org/id/unitary-authority/warrington,FWB,BCF - Equipment Store,54930,Equipment Purchase & Contract,400000,06/04/2022,5100492285,2398.8,Healthcare Matters,110751
WARRINGTON BOROUGH COUNCIL,http://opendatacommunities.org/id/unitary-authority/warrington,FWB,BCF - Equipment Store,54930,Equipment Purchase & Contract,400000,06/04/2022,5100492285,2398.7,Healthcare Matters,110751
WARRINGTON BOROUGH COUNCIL,http://opendatacommunities.org/id/unitary-authority/warrington,FWB,BCF - Equipment Store,54930,Equipment Purchase & Contract,400000,06/04/2022,5100492285,1411,Healthcare Matters,110751
WARRINGTON BOROUGH COUNCIL,http://opendatacommunities.org/id/unitary-authority/warrington,ET0,School Brow Depot,41330,Public Survey Costs,440500,06/04/2022,5100492287,570,Marlowe Fire And Security,102215
WARRINGTON BOROUGH COUNCIL,http://opendatacommunities.org/id/unitary-authority/warrington,ET0,Marshall Gardens,42115,Equipment Purchase & Contract,400000,06/04/2022,5100492290,875,Jrs Fabrications Ltd,105378
WARRINGTON BOROUGH COUNCIL,http://opendatacommunities.org/id/unitary-authority/warrington,FWB,CiC Management,30200,Specific Work,200200,06/04/2022,5100492296,17980,R C Building Services Ltd,117895
WARRINGTON BOROUGH COUNCIL,http://opendatacommunities.org/id/unitary-authority/warrington,NEO,Neighbourhood & Community Other,83002,Consult.& Prof. Serv,440000,06/04/2022,5100492299,1190,Baker Mallett LLP,116160
WARRINGTON BOROUGH COUNCIL,http://opendatacommunities.org/id/unitary-authority/warrington,FWB,BCF - Telecare/Sensory,54560,Health Awareness,441950,06/04/2022,5100492300,4180,Porters Care Limited,118515
WARRINGTON BOROUGH COUNCIL,http://opendatacommunities.org/id/unitary-authority/warrington,DG0,Development Control,43430,Consult.& Prof. Serv,440000,06/04/2022,5100492301,1173,Vivid Resourcing Limited,115752
WARRINGTON BOROUGH COUNCIL,http://opendatacommunities.org/id/unitary-authority/warrington,DG0,Development Control,43430,Consult.& Prof. Serv,440000,06/04/2022,5100492302,1072.5,Vivid Resourcing Limited,115752
WARRINGTON BOROUGH COUNCIL,http://opendatacommunities.org/id/unitary-authority/warrington,ET0,Transport Holding Account,41311,Vehicle Hire Charges,320000,06/04/2022,5100492304,1690,F G Rowland Ltd,102555
WARRINGTON BOROUGH COUNCIL,http://opendatacommunities.org/id/unitary-authority/warrington,ET0,Transport Holding Account,41311,Vehicle Hire Charges,320000,06/04/2022,5100492305,1860,F G Rowland Ltd,102555
WARRINGTON BOROUGH COUNCIL,http://opendatacommunities.org/id/unitary-authority/warrington,ET0,Park Development Sites,41423,Equipment Purchase & Contract,400000,07/04/2022,5100492321,686.88,Agrovista Uk Ltd,101700
WARRINGTON BOROUGH COUNCIL,http://opendatacommunities.org/id/unitary-authority/warrington,FWB,Special Schools Transport,33208,Statemented - Special Unit Pupil Transpo,300750,06/04/2022,5100492333,936,Direct Taxis,101873
WARRINGTON BOROUGH COUNCIL,http://opendatacommunities.org/id/unitary-authority/warrington,RSC,Parish Elections,11580,External Printing,430100,06/04/2022,5100492334,826,Print Image Network Limited,105535
WARRINGTON BOROUGH COUNCIL,http://opendatacommunities.org/id/unitary-authority/warrington,ET0,Vehicle & Plant Acq.,41312,Vehicle & Plant Purchase,301350,06/04/2022,5100492339,4106,Bateson Trailers Ltd,106576
WARRINGTON BOROUGH COUNCIL,http://opendatacommunities.org/id/unitary-authority/warrington,DG0,Kickstart,22244,"Campaigns,  Projects and Events",491950,12/04/2022,5100492341,1951.91,Go Earth Ltd,118059
WARRINGTON BOROUGH COUNCIL,http://opendatacommunities.org/id/unitary-authority/warrington,DG0,Kickstart,22244,"Campaigns,  Projects and Events",491950,12/04/2022,5100492341,1727.14,Go Earth Ltd,118059
WARRINGTON BOROUGH COUNCIL,http://opendatacommunities.org/id/unitary-authority/warrington,ET0,New Bus Depot Dallam Lane,40048,Consult.& Prof. Serv,440000,06/04/2022,5100492345,1000,Janus Building Design Ltd,118058
WARRINGTON BOROUGH COUNCIL,http://opendatacommunities.org/id/unitary-authority/warrington,FWB,BCF - Equipment Store,54930,Equipment Purchase & Contract,400000,06/04/2022,5100492351,1509.98,Prism Medical UK,108616
WARRINGTON BOROUGH COUNCIL,http://opendatacommunities.org/id/unitary-authority/warrington,FWB,BCF - Equipment Store,54930,Equipment Purchase & Contract,400000,06/04/2022,5100492352,560,Prism Medical UK,108616
WARRINGTON BOROUGH COUNCIL,http://opendatacommunities.org/id/unitary-authority/warrington,FWB,BCF - Equipment Store,54930,Equipment Purchase & Contract,400000,06/04/2022,5100492353,915.38,Prism Medical UK,108616
WARRINGTON BOROUGH COUNCIL,http://opendatacommunities.org/id/unitary-authority/warrington,FWB,BCF - Equipment Store,54930,Annual Maintenance,442100,06/04/2022,5100492354,3892.13,Prism Medical UK,108616
WARRINGTON BOROUGH COUNCIL,http://opendatacommunities.org/id/unitary-authority/warrington,FWB,BCF - Equipment Store,54930,Annual Maintenance,442100,06/04/2022,5100492355,2178.75,Prism Medical UK,108616
WARRINGTON BOROUGH COUNCIL,http://opendatacommunities.org/id/unitary-authority/warrington,DG0,Kickstart,22244,"Campaigns,  Projects and Events",491950,06/04/2022,5100492364,716.39,Planet 9 Holistic Gifts,118578
WARRINGTON BOROUGH COUNCIL,http://opendatacommunities.org/id/unitary-authority/warrington,ET0,Walton Estate,41430,Materials,400500,07/04/2022,5100492366,625.85,Keltic Clothing,102004
WARRINGTON BOROUGH COUNCIL,http://opendatacommunities.org/id/unitary-authority/warrington,RSC,One - Off ICT Costs,23200,Consult.& Prof. Serv,440000,08/04/2022,5100492368,1168.5,Edenhouse Solutions Ltd,114416
WARRINGTON BOROUGH COUNCIL,http://opendatacommunities.org/id/unitary-authority/warrington,DG0,Kickstart,22244,"Campaigns,  Projects and Events",491950,07/04/2022,5100492411,1010.75,Westmnster Finance Limited,118064
WARRINGTON BOROUGH COUNCIL,http://opendatacommunities.org/id/unitary-authority/warrington,ET0,Vehicle & Plant Acq.,41312,Vehicle & Plant Purchase,301350,07/04/2022,5100492416,31863,Turner Groundscare,105201
WARRINGTON BOROUGH COUNCIL,http://opendatacommunities.org/id/unitary-authority/warrington,ET0,Vehicle & Plant Acq.,41312,Vehicle & Plant Purchase,301350,07/04/2022,5100492417,31863,Turner Groundscare,105201
WARRINGTON BOROUGH COUNCIL,http://opendatacommunities.org/id/unitary-authority/warrington,ET0,Public Health Licensing,41550,Consult.& Prof. Serv,440000,07/04/2022,5100492419,1180,Buckingham Futures,118389
WARRINGTON BOROUGH COUNCIL,http://opendatacommunities.org/id/unitary-authority/warrington,FWB,Workforce Development,31603,Materials,400500,07/04/2022,5100492422,8250,Cheshire Without Abuse,115552
WARRINGTON BOROUGH COUNCIL,http://opendatacommunities.org/id/unitary-authority/warrington,ET0,Crematorium,41411,Maintenance of Plant & Machinery,250050,07/04/2022,5100492425,13770,IFZW Maintenance Ltd,110971
WARRINGTON BOROUGH COUNCIL,http://opendatacommunities.org/id/unitary-authority/warrington,ET0,Cemeteries,41410,Resaleables,400600,07/04/2022,5100492426,1235,Knox & Son Ltd,104857
WARRINGTON BOROUGH COUNCIL,http://opendatacommunities.org/id/unitary-authority/warrington,RSC,Professional Development Centre,21000,Materials,400500,07/04/2022,5100492429,920,Qualsafe,104058
WARRINGTON BOROUGH COUNCIL,http://opendatacommunities.org/id/unitary-authority/warrington,ET0,Building Facilities,41112,Annual Maintenance,442100,07/04/2022,5100492432,867.05,Shorrock Trichem,104724
WARRINGTON BOROUGH COUNCIL,http://opendatacommunities.org/id/unitary-authority/warrington,DG0,Kickstart,22244,"Campaigns,  Projects and Events",491950,07/04/2022,5100492435,716.39,Planet 9 Holistic Gifts,118578
WARRINGTON BOROUGH COUNCIL,http://opendatacommunities.org/id/unitary-authority/warrington,ET0,Golf Course Client,41432,Materials,400500,07/04/2022,5100492438,3850,Neil Pink J & E Decorators,114414
WARRINGTON BOROUGH COUNCIL,http://opendatacommunities.org/id/unitary-authority/warrington,RSC,ICT Centralised Budget,23100,Computer Software - Maintenance,450850,07/04/2022,5100492441,3450,Trics Consortium Limited,114366
WARRINGTON BOROUGH COUNCIL,http://opendatacommunities.org/id/unitary-authority/warrington,ET0,Highways Drainage,44270,Materials,400500,07/04/2022,5100492443,2710.58,Powerplus Fixings,105577
WARRINGTON BOROUGH COUNCIL,http://opendatacommunities.org/id/unitary-authority/warrington,RSC,Financial Protection Team,56130,Consult.& Prof. Serv,440000,07/04/2022,5100492445,828.96,Allied Publicity Services (Man) LTD,117019
WARRINGTON BOROUGH COUNCIL,http://opendatacommunities.org/id/unitary-authority/warrington,ET0,Waste Recycling,41820,Waste Initiatives,443200,07/04/2022,5100492467,1568.84,Contenur UK Ltd,117538
WARRINGTON BOROUGH COUNCIL,http://opendatacommunities.org/id/unitary-authority/warrington,ET0,Park Development Sites,41423,Materials,400500,07/04/2022,5100492473,558.56,M C & M A Stewart Haulage Ltd,105159
WARRINGTON BOROUGH COUNCIL,http://opendatacommunities.org/id/unitary-authority/warrington,DG0,Kickstart,22244,"Campaigns,  Projects and Events",491950,07/04/2022,5100492479,716.39,Go Earth Ltd,118059
WARRINGTON BOROUGH COUNCIL,http://opendatacommunities.org/id/unitary-authority/warrington,ENO,Highways LTP,82004,Patching Cat2,532300,08/04/2022,5100492519,27501.98,Tarmac,100489
WARRINGTON BOROUGH COUNCIL,http://opendatacommunities.org/id/unitary-authority/warrington,ENO,Highways Other,82005,Patching Cat2,532300,08/04/2022,5100492519,10565.52,Tarmac,100489
WARRINGTON BOROUGH COUNCIL,http://opendatacommunities.org/id/unitary-authority/warrington,ENO,Highways LTP,82004,Patching Cat2,532300,08/04/2022,5100492519,3218.19,Tarmac,100489
WARRINGTON BOROUGH COUNCIL,http://opendatacommunities.org/id/unitary-authority/warrington,ET0,Dropped Crossings,44211,Equipment Purchase & Contract,400000,08/04/2022,5100492520,5924.51,Tarmac,100489
WARRINGTON BOROUGH COUNCIL,http://opendatacommunities.org/id/unitary-authority/warrington,ET0,Or Rm C'way & F'way,44260,Fct Cat1,530950,08/04/2022,5100492520,5388.6,Tarmac,100489
WARRINGTON BOROUGH COUNCIL,http://opendatacommunities.org/id/unitary-authority/warrington,ET0,Or Rm C'way & F'way,44260,Clean Repair Drains,531000,08/04/2022,5100492520,1013.82,Tarmac,100489
WARRINGTON BOROUGH COUNCIL,http://opendatacommunities.org/id/unitary-authority/warrington,ET0,Or Rm C'way & F'way,44260,Safety Fences Cat1,531100,08/04/2022,5100492520,1980.66,Tarmac,100489
WARRINGTON BOROUGH COUNCIL,http://opendatacommunities.org/id/unitary-authority/warrington,ET0,Or Rm C'way & F'way,44260,Sign Maint Cat1,531300,08/04/2022,5100492520,737.43,Tarmac,100489
WARRINGTON BOROUGH COUNCIL,http://opendatacommunities.org/id/unitary-authority/warrington,ET0,Or Rm C'way & F'way,44260,Patching Cat2,532300,08/04/2022,5100492520,3177.85,Tarmac,100489
WARRINGTON BOROUGH COUNCIL,http://opendatacommunities.org/id/unitary-authority/warrington,ET0,Or Rm C'way & F'way,44260,M.C.R.Flexible Cat1,530850,08/04/2022,5100492521,40000,Tarmac,100489
WARRINGTON BOROUGH COUNCIL,http://opendatacommunities.org/id/unitary-authority/warrington,ET0,Or Rm C'way & F'way,44260,M.C.R.Flexible Cat1,530850,08/04/2022,5100492522,11536.99,Tarmac,100489
WARRINGTON BOROUGH COUNCIL,http://opendatacommunities.org/id/unitary-authority/warrington,ET0,Or Rm C'way & F'way,44260,M.C.R.Flexible Cat1,530850,08/04/2022,5100492523,20794.92,Tarmac,100489
WARRINGTON BOROUGH COUNCIL,http://opendatacommunities.org/id/unitary-authority/warrington,ET0,Or Rm C'way & F'way,44260,Fct Cat1,530950,08/04/2022,5100492523,2866.55,Tarmac,100489
WARRINGTON BOROUGH COUNCIL,http://opendatacommunities.org/id/unitary-authority/warrington,ET0,Or Rm C'way & F'way,44260,Clean Repair Drains,531000,08/04/2022,5100492523,2516.93,Tarmac,100489
WARRINGTON BOROUGH COUNCIL,http://opendatacommunities.org/id/unitary-authority/warrington,ENO,Highways LTP,82004,Patching Cat2,532300,08/04/2022,5100492523,6092.93,Tarmac,100489
WARRINGTON BOROUGH COUNCIL,http://opendatacommunities.org/id/unitary-authority/warrington,ENO,Highways LTP,82004,Patching Cat2,532300,08/04/2022,5100492523,1877.04,Tarmac,100489
WARRINGTON BOROUGH COUNCIL,http://opendatacommunities.org/id/unitary-authority/warrington,ENO,Highways Other,82005,Patching Cat2,532300,08/04/2022,5100492523,671.44,Tarmac,100489
WARRINGTON BOROUGH COUNCIL,http://opendatacommunities.org/id/unitary-authority/warrington,ET0,Engineering,44210,Equipment Purchase & Contract,400000,08/04/2022,5100492524,784.38,Tarmac,100489
WARRINGTON BOROUGH COUNCIL,http://opendatacommunities.org/id/unitary-authority/warrington,ET0,Or Rm C'way & F'way,44260,M.C.R.Flexible Cat1,530850,08/04/2022,5100492524,3363.91,Tarmac,100489
WARRINGTON BOROUGH COUNCIL,http://opendatacommunities.org/id/unitary-authority/warrington,ET0,Or Rm C'way & F'way,44260,Fct Cat1,530950,08/04/2022,5100492524,1055.27,Tarmac,100489
WARRINGTON BOROUGH COUNCIL,http://opendatacommunities.org/id/unitary-authority/warrington,ET0,Or Rm C'way & F'way,44260,Safety Fences Cat1,531100,08/04/2022,5100492524,1255.6,Tarmac,100489
WARRINGTON BOROUGH COUNCIL,http://opendatacommunities.org/id/unitary-authority/warrington,ET0,Or Rm C'way & F'way,44260,M.C.R.Flexible Cat1,530850,08/04/2022,5100492525,25356.72,Tarmac,100489
WARRINGTON BOROUGH COUNCIL,http://opendatacommunities.org/id/unitary-authority/warrington,ET0,Tour of Britan September 2020,42190,"Campaigns,  Projects and Events",491950,08/04/2022,5100492526,8323.2,Tarmac,100489
WARRINGTON BOROUGH COUNCIL,http://opendatacommunities.org/id/unitary-authority/warrington,ET0,Or Rm C'way & F'way,44260,M.C.R.Flexible Cat1,530850,08/04/2022,5100492526,4508.4,Tarmac,100489
WARRINGTON BOROUGH COUNCIL,http://opendatacommunities.org/id/unitary-authority/warrington,ENO,Highways Other,82005,Environmental Works,531050,28/04/2022,5100492527,6108.28,Tarmac,100489
WARRINGTON BOROUGH COUNCIL,http://opendatacommunities.org/id/unitary-authority/warrington,RSC,Welfare Support,10360,"Campaigns,  Projects and Events",491950,28/04/2022,5100492530,7390,Changing Lives Together,111607
WARRINGTON BOROUGH COUNCIL,http://opendatacommunities.org/id/unitary-authority/warrington,CYP,Childrens & Young People,81000,Consult.& Prof. Serv,440000,08/04/2022,5100492543,25000,Strzala Achitects Ltd,113295
WARRINGTON BOROUGH COUNCIL,http://opendatacommunities.org/id/unitary-authority/warrington,ET0,Transport Holding Account,41311,Veh Maint. Materials,300000,08/04/2022,5100492545,733.19,Probrush,103996
WARRINGTON BOROUGH COUNCIL,http://opendatacommunities.org/id/unitary-authority/warrington,ET0,Crematorium,41411,Maintenance of Plant & Machinery,250050,08/04/2022,5100492547,5844.6,IFZW Maintenance Ltd,110971
WARRINGTON BOROUGH COUNCIL,http://opendatacommunities.org/id/unitary-authority/warrington,ET0,Transport Holding Account,41311,Vehicle Hire Charges,320000,28/04/2022,5100492554,1817,Riverside Truck Rental Ltd,101057
WARRINGTON BOROUGH COUNCIL,http://opendatacommunities.org/id/unitary-authority/warrington,ET0,PW&F Management Operations,41427,Kennel Fees,440550,08/04/2022,5100492581,520.3,Animal Wardens Ltd,103042
WARRINGTON BOROUGH COUNCIL,http://opendatacommunities.org/id/unitary-authority/warrington,ET0,Cemeteries,41410,Materials,400500,08/04/2022,5100492582,969.85,Elite Digital Systems Limited,114251
WARRINGTON BOROUGH COUNCIL,http://opendatacommunities.org/id/unitary-authority/warrington,FWB,BCF - Equipment Store,54930,Equipment Purchase & Contract,400000,08/04/2022,5100492584,533.1,Langham Products,103643
WARRINGTON BOROUGH COUNCIL,http://opendatacommunities.org/id/unitary-authority/warrington,FWB,OT/Equip - Childrens,54315,Equipment Purchase & Contract,400000,08/04/2022,5100492587,2448,Jenx,104831
WARRINGTON BOROUGH COUNCIL,http://opendatacommunities.org/id/unitary-authority/warrington,ET0,Trading Standards North West,41564,"Campaigns,  Projects and Events",491950,08/04/2022,5100492594,700,Wagtail UK Limited,108156
WARRINGTON BOROUGH COUNCIL,http://opendatacommunities.org/id/unitary-authority/warrington,ET0,Trading Standards North West,41564,"Campaigns,  Projects and Events",491950,08/04/2022,5100492598,990,Wagtail UK Limited,108156
WARRINGTON BOROUGH COUNCIL,http://opendatacommunities.org/id/unitary-authority/warrington,FWB,Supporting People Contracts,53260,People with Mental Health Problems,535200,10/04/2022,5100492664,4461.53,Warrington Community Living,105229
WARRINGTON BOROUGH COUNCIL,http://opendatacommunities.org/id/unitary-authority/warrington,FWB,Supporting People Contracts,53260,People with Mental Health Problems,535200,10/04/2022,5100492665,2977.54,Carr Gomm,106573
WARRINGTON BOROUGH COUNCIL,http://opendatacommunities.org/id/unitary-authority/warrington,FWB,BCF - Intermediate Care at Home,54520,Stationery,430150,11/04/2022,5100492726,1508.2,Banner Group Ltd,111644
WARRINGTON BOROUGH COUNCIL,http://opendatacommunities.org/id/unitary-authority/warrington,RSC,Coroners Service,11100,Stationery,430150,11/04/2022,5100492729,525.52,Banner Group Ltd,111644
WARRINGTON BOROUGH COUNCIL,http://opendatacommunities.org/id/unitary-authority/warrington,ENO,Highways Other,82005,Consult.& Prof. Serv,440000,11/04/2022,5100492733,1000,Atkins Ltd,105752
WARRINGTON BOROUGH COUNCIL,http://opendatacommunities.org/id/unitary-authority/warrington,ET0,On Street Car Parking,44323,Events on the Highway,531350,12/04/2022,5100492779,19058,NSL Services Group,113509
WARRINGTON BOROUGH COUNCIL,http://opendatacommunities.org/id/unitary-authority/warrington,ET0,On Street Car Parking,44323,Events on the Highway,531350,12/04/2022,5100492782,17773.07,NSL Services Group,113509
WARRINGTON BOROUGH COUNCIL,http://opendatacommunities.org/id/unitary-authority/warrington,ENP,Environment & Regeneration,82000,Materials,400500,28/04/2022,5100492784,3404.15,Smith Bros (Caer Conan) Wh'Sale Ltd,105136
WARRINGTON BOROUGH COUNCIL,http://opendatacommunities.org/id/unitary-authority/warrington,ENO,Environmental Projects,82007,Consult.& Prof. Serv,440000,28/04/2022,5100492788,2160,Everson Home Solutions,118339
WARRINGTON BOROUGH COUNCIL,http://opendatacommunities.org/id/unitary-authority/warrington,FWB,BCF - Equipment Store,54930,Equipment Purchase & Contract,400000,12/04/2022,5100492790,500.6,Drive DeVilbiss Healthcare Ltd,101899
WARRINGTON BOROUGH COUNCIL,http://opendatacommunities.org/id/unitary-authority/warrington,RSC,Individual Electoral Registration,11660,External Printing,430100,12/04/2022,5100492792,1486,Print Image Network Limited,105535
WARRINGTON BOROUGH COUNCIL,http://opendatacommunities.org/id/unitary-authority/warrington,ET0,Crematorium,41411,Maintenance of Plant & Machinery,250050,12/04/2022,5100492798,5844.6,IFZW Maintenance Ltd,110971
WARRINGTON BOROUGH COUNCIL,http://opendatacommunities.org/id/unitary-authority/warrington,ET0,Transport & Environmental Improvements,44560,Consult.& Prof. Serv,440000,12/04/2022,5100492799,1229.44,BT,104542
WARRINGTON BOROUGH COUNCIL,http://opendatacommunities.org/id/unitary-authority/warrington,DG0,Site Management,43530,Security Systems,250000,12/04/2022,5100492802,791.28,Uniqwin UK,105210
WARRINGTON BOROUGH COUNCIL,http://opendatacommunities.org/id/unitary-authority/warrington,COR,Redevelopment Sites,43580,Security Systems,250000,12/04/2022,5100492805,4876.8,Sentry Security Ltd,103829
WARRINGTON BOROUGH COUNCIL,http://opendatacommunities.org/id/unitary-authority/warrington,DG0,Site Management,43530,Security Systems,250000,12/04/2022,5100492810,768,Sentry Security Ltd,103829
WARRINGTON BOROUGH COUNCIL,http://opendatacommunities.org/id/unitary-authority/warrington,ET0,Walton Estate,41430,Grounds Maintenance - External,280000,12/04/2022,5100492825,740,Griffin Contracting Services,114529
WARRINGTON BOROUGH COUNCIL,http://opendatacommunities.org/id/unitary-authority/warrington,ET0,Golf Course Client,41432,Materials,400500,12/04/2022,5100492827,4792.32,Griffin Contracting Services,114529
WARRINGTON BOROUGH COUNCIL,http://opendatacommunities.org/id/unitary-authority/warrington,ET0,Golf Course Client,41432,Materials,400500,12/04/2022,5100492830,4792.32,Griffin Contracting Services,114529
WARRINGTON BOROUGH COUNCIL,http://opendatacommunities.org/id/unitary-authority/warrington,ET0,Golf Course Client,41432,Materials,400500,12/04/2022,5100492832,4792.32,Griffin Contracting Services,114529
WARRINGTON BOROUGH COUNCIL,http://opendatacommunities.org/id/unitary-authority/warrington,ET0,Golf Course Client,41432,Materials,400500,12/04/2022,5100492835,4792.32,Griffin Contracting Services,114529
WARRINGTON BOROUGH COUNCIL,http://opendatacommunities.org/id/unitary-authority/warrington,COR,Hatters Row,43710,Security Systems,250000,12/04/2022,5100492836,4086.49,Uniqwin UK,105210
WARRINGTON BOROUGH COUNCIL,http://opendatacommunities.org/id/unitary-authority/warrington,FWB,BCF - Equipment Store,54930,Annual Maintenance,442100,12/04/2022,5100492839,1361.74,TK Access Solutions Limited,105382
WARRINGTON BOROUGH COUNCIL,http://opendatacommunities.org/id/unitary-authority/warrington,PIO,People & Improvement Other,85002,Minor Adaptations<750,400700,12/04/2022,5100492866,2000,The Excellent Ramp System,100407
WARRINGTON BOROUGH COUNCIL,http://opendatacommunities.org/id/unitary-authority/warrington,FWB,DSG Inter Authority Recoupment,32009,Fees (Including Agents Fees),441450,28/04/2022,5100492869,7851,Flintshire County Council,410037
WARRINGTON BOROUGH COUNCIL,http://opendatacommunities.org/id/unitary-authority/warrington,FWB,BCF - Equipment Store,54930,Equipment Purchase & Contract,400000,12/04/2022,5100492879,3774.3,Invacare Ltd,106115
WARRINGTON BOROUGH COUNCIL,http://opendatacommunities.org/id/unitary-authority/warrington,FWB,CiC Management,30200,Specific Work,200200,12/04/2022,5100492883,56079.6,Acorn Building Projects Ltd,105557
WARRINGTON BOROUGH COUNCIL,http://opendatacommunities.org/id/unitary-authority/warrington,FWB,Prison Substance Misuse Services,53840,Drug Action,443600,13/04/2022,5100492884,94806.67,CGL,440139
WARRINGTON BOROUGH COUNCIL,http://opendatacommunities.org/id/unitary-authority/warrington,DG0,Development Control,43430,Consult.& Prof. Serv,440000,28/04/2022,5100492885,1258,Vivid Resourcing Limited,115752
WARRINGTON BOROUGH COUNCIL,http://opendatacommunities.org/id/unitary-authority/warrington,FWB,Contracts - SM Commissioning Team 1,55910,Drug Action,443600,13/04/2022,5100492887,129229.58,CGL,440139
WARRINGTON BOROUGH COUNCIL,http://opendatacommunities.org/id/unitary-authority/warrington,FWB,BCF - Equipment Store,54930,Equipment Purchase & Contract,400000,13/04/2022,5100492889,640,Prism Medical UK,108616
WARRINGTON BOROUGH COUNCIL,http://opendatacommunities.org/id/unitary-authority/warrington,ET0,The Forge Car Park Stockton Heath,44324,Car Park Attendants,530250,12/04/2022,5100492890,2346.18,NSL Services Group,113509
WARRINGTON BOROUGH COUNCIL,http://opendatacommunities.org/id/unitary-authority/warrington,ET0,On Street Car Parking,44323,Car Park Attendants,530250,12/04/2022,5100492890,28578.33,NSL Services Group,113509
WARRINGTON BOROUGH COUNCIL,http://opendatacommunities.org/id/unitary-authority/warrington,ET0,Surface Car Parks,44322,Car Park Attendants,530250,12/04/2022,5100492890,5688.83,NSL Services Group,113509
WARRINGTON BOROUGH COUNCIL,http://opendatacommunities.org/id/unitary-authority/warrington,ET0,Time Square MSCP,44321,Car Park Attendants,530250,12/04/2022,5100492890,33788.74,NSL Services Group,113509
WARRINGTON BOROUGH COUNCIL,http://opendatacommunities.org/id/unitary-authority/warrington,ET0,Time Square MSCP,44321,Car Park Attendants,530250,12/04/2022,5100492890,799.92,NSL Services Group,113509
WARRINGTON BOROUGH COUNCIL,http://opendatacommunities.org/id/unitary-authority/warrington,ET0,The Forge Car Park Stockton Heath,44324,Car Park Attendants,530250,12/04/2022,5100492891,1300,NSL Services Group,113509
WARRINGTON BOROUGH COUNCIL,http://opendatacommunities.org/id/unitary-authority/warrington,ET0,On Street Car Parking,44323,Car Park Attendants,530250,12/04/2022,5100492891,36800,NSL Services Group,113509
WARRINGTON BOROUGH COUNCIL,http://opendatacommunities.org/id/unitary-authority/warrington,ET0,Surface Car Parks,44322,Car Park Attendants,530250,12/04/2022,5100492891,7000,NSL Services Group,113509
WARRINGTON BOROUGH COUNCIL,http://opendatacommunities.org/id/unitary-authority/warrington,ET0,Time Square MSCP,44321,Car Park Attendants,530250,12/04/2022,5100492891,33000,NSL Services Group,113509
WARRINGTON BOROUGH COUNCIL,http://opendatacommunities.org/id/unitary-authority/warrington,ET0,Warrington West Station Car Park,44326,Car Park Attendants,530250,12/04/2022,5100492891,700,NSL Services Group,113509
WARRINGTON BOROUGH COUNCIL,http://opendatacommunities.org/id/unitary-authority/warrington,FWB,Virtual School,31112,Looked after children in Warrington,301000,13/04/2022,5100492943,1100,Great Sankey High Academy School,400206
WARRINGTON BOROUGH COUNCIL,http://opendatacommunities.org/id/unitary-authority/warrington,FWB,Virtual School,31112,Looked after children in Warrington,301000,13/04/2022,5100492944,1029.16,Great Sankey High Academy School,400206
WARRINGTON BOROUGH COUNCIL,http://opendatacommunities.org/id/unitary-authority/warrington,FWB,Winter Preventions,53140,Security Systems,250000,13/04/2022,5100492952,4176.47,Torus,101005
WARRINGTON BOROUGH COUNCIL,http://opendatacommunities.org/id/unitary-authority/warrington,FWB,Winter Preventions,53140,Security Systems,250000,13/04/2022,5100492953,1153.68,Torus,101005
WARRINGTON BOROUGH COUNCIL,http://opendatacommunities.org/id/unitary-authority/warrington,FWB,Winter Preventions,53140,Security Systems,250000,13/04/2022,5100492954,3050.3,Torus,101005
WARRINGTON BOROUGH COUNCIL,http://opendatacommunities.org/id/unitary-authority/warrington,FWB,Winter Preventions,53140,Security Systems,250000,13/04/2022,5100492955,1706.94,Torus,101005
WARRINGTON BOROUGH COUNCIL,http://opendatacommunities.org/id/unitary-authority/warrington,FWB,Winter Preventions,53140,Security Systems,250000,13/04/2022,5100492956,2507.44,Torus,101005
WARRINGTON BOROUGH COUNCIL,http://opendatacommunities.org/id/unitary-authority/warrington,FWB,Winter Preventions,53140,Security Systems,250000,13/04/2022,5100492957,2586.07,Torus,101005
WARRINGTON BOROUGH COUNCIL,http://opendatacommunities.org/id/unitary-authority/warrington,FWB,Winter Preventions,53140,Security Systems,250000,13/04/2022,5100492958,1602.85,Torus,101005
WARRINGTON BOROUGH COUNCIL,http://opendatacommunities.org/id/unitary-authority/warrington,FWB,Winter Preventions,53140,Security Systems,250000,13/04/2022,5100492959,3107.27,Torus,101005
WARRINGTON BOROUGH COUNCIL,http://opendatacommunities.org/id/unitary-authority/warrington,ENO,Highways LTP,82004,Consult.& Prof. Serv,440000,13/04/2022,5100492965,8597.81,Aecom Limited,101037
WARRINGTON BOROUGH COUNCIL,http://opendatacommunities.org/id/unitary-authority/warrington,ET0,Local Bus Contracts,44430,Cross Boundary Service Expenses,530300,13/04/2022,5100492966,19475,Transport for Greater Manchester,104749
WARRINGTON BOROUGH COUNCIL,http://opendatacommunities.org/id/unitary-authority/warrington,ET0,Construction Stores Overhead Account,41320,Uniforms,420000,13/04/2022,5100492971,749,Parker Merchanting Ltd,105007
WARRINGTON BOROUGH COUNCIL,http://opendatacommunities.org/id/unitary-authority/warrington,FWB,BCF - Equipment Store,54930,Equipment Purchase & Contract,400000,13/04/2022,5100493005,500,Smitcare Limited,101585
WARRINGTON BOROUGH COUNCIL,http://opendatacommunities.org/id/unitary-authority/warrington,FWB,Virtual School,31112,Looked after children in Warrington,301000,13/04/2022,5100493013,630,Beamont Collegiate Academy,111598
WARRINGTON BOROUGH COUNCIL,http://opendatacommunities.org/id/unitary-authority/warrington,FWB,Virtual School,31112,Looked after children in Warrington,301000,13/04/2022,5100493013,890,Beamont Collegiate Academy,111598
WARRINGTON BOROUGH COUNCIL,http://opendatacommunities.org/id/unitary-authority/warrington,PIO,People & Improvement Other,85002,Minor Adaptations<750,400700,13/04/2022,5100493015,3745,The Excellent Ramp System,100407
WARRINGTON BOROUGH COUNCIL,http://opendatacommunities.org/id/unitary-authority/warrington,ET0,Taxi and Private Hire Licensing,44450,Consult.& Prof. Serv,440000,13/04/2022,5100493022,3648,Radius Security Ltd,116645
WARRINGTON BOROUGH COUNCIL,http://opendatacommunities.org/id/unitary-authority/warrington,FWB,Prison Substance Misuse Services,53840,Drug Action,443600,13/04/2022,5100493047,1046.61,MOJ Shared Service Centre,102024
WARRINGTON BOROUGH COUNCIL,http://opendatacommunities.org/id/unitary-authority/warrington,RSC,Translation Service,52202,Agency Supply - GF,180000,14/04/2022,5100493053,4345.98,DA Languages Ltd,115660
WARRINGTON BOROUGH COUNCIL,http://opendatacommunities.org/id/unitary-authority/warrington,FWB,Rapid Response  NHSE,57300,Consult.& Prof. Serv,440000,28/04/2022,5100493056,8460,Xylem Resourcing,117981
WARRINGTON BOROUGH COUNCIL,http://opendatacommunities.org/id/unitary-authority/warrington,ET0,New Bus Depot Dallam Lane,40048,Consult.& Prof. Serv,440000,28/04/2022,5100493057,7750,4ward Management Ltd,118056
WARRINGTON BOROUGH COUNCIL,http://opendatacommunities.org/id/unitary-authority/warrington,IGO,Property & Estates,86001,Building Work,200850,18/04/2022,5100493270,713453,Walter Carefoot & Sons Construction,118517
WARRINGTON BOROUGH COUNCIL,http://opendatacommunities.org/id/unitary-authority/warrington,ENO,Priority Infrastructure,82009,Environmental Works,531050,18/04/2022,5100493271,169104.57,Dowhigh Ltd,105350
WARRINGTON BOROUGH COUNCIL,http://opendatacommunities.org/id/unitary-authority/warrington,COR,Corporate Adjustments,60120,Consult.& Prof. Serv,440000,18/04/2022,5100493272,554019,Cheshire East Council,410116
WARRINGTON BOROUGH COUNCIL,http://opendatacommunities.org/id/unitary-authority/warrington,ET0,Waste Disposal,41830,Residual Waste Disposal,530500,18/04/2022,5100493273,89494.6,Viridor Energy Limited,118588
WARRINGTON BOROUGH COUNCIL,http://opendatacommunities.org/id/unitary-authority/warrington,ET0,Waste Disposal,41830,Residual Waste Disposal,530500,18/04/2022,5100493274,92981.64,Viridor Energy Limited,118588
WARRINGTON BOROUGH COUNCIL,http://opendatacommunities.org/id/unitary-authority/warrington,ENO,Highways LTP,82004,Carriageway-Resurfacing,532250,18/04/2022,5100493275,51386.26,Tarmac,100489
WARRINGTON BOROUGH COUNCIL,http://opendatacommunities.org/id/unitary-authority/warrington,ENO,Highways LTP,82004,Environmental Works,531050,18/04/2022,5100493276,44563.75,Tarmac,100489
WARRINGTON BOROUGH COUNCIL,http://opendatacommunities.org/id/unitary-authority/warrington,ET0,Dropped Crossings,44211,Equipment Purchase & Contract,400000,18/04/2022,5100493277,1624.51,Tarmac,100489
WARRINGTON BOROUGH COUNCIL,http://opendatacommunities.org/id/unitary-authority/warrington,ET0,Or Rm C'way & F'way,44260,M.C.R.Flexible Cat1,530850,18/04/2022,5100493277,12589.16,Tarmac,100489
WARRINGTON BOROUGH COUNCIL,http://opendatacommunities.org/id/unitary-authority/warrington,ET0,Or Rm C'way & F'way,44260,Fct Cat1,530950,18/04/2022,5100493277,2104.93,Tarmac,100489
WARRINGTON BOROUGH COUNCIL,http://opendatacommunities.org/id/unitary-authority/warrington,ET0,Or Winter Maint,44280,Winter Maint.Labour,531700,18/04/2022,5100493277,9292.85,Tarmac,100489
WARRINGTON BOROUGH COUNCIL,http://opendatacommunities.org/id/unitary-authority/warrington,ENO,Highways LTP,82004,Patching Cat2,532300,18/04/2022,5100493277,27837.75,Tarmac,100489
WARRINGTON BOROUGH COUNCIL,http://opendatacommunities.org/id/unitary-authority/warrington,ENO,Highways Other,82005,Patching Cat2,532300,18/04/2022,5100493277,9221.89,Tarmac,100489
WARRINGTON BOROUGH COUNCIL,http://opendatacommunities.org/id/unitary-authority/warrington,ENO,Highways LTP,82004,Consult.& Prof. Serv,440000,18/04/2022,5100493278,161579.24,Tarmac,100489
WARRINGTON BOROUGH COUNCIL,http://opendatacommunities.org/id/unitary-authority/warrington,ET0,Dropped Crossings,44211,Equipment Purchase & Contract,400000,18/04/2022,5100493279,20388.03,Tarmac,100489
WARRINGTON BOROUGH COUNCIL,http://opendatacommunities.org/id/unitary-authority/warrington,ET0,Engineering,44210,Equipment Purchase & Contract,400000,18/04/2022,5100493279,531.41,Tarmac,100489
WARRINGTON BOROUGH COUNCIL,http://opendatacommunities.org/id/unitary-authority/warrington,ET0,Or Rm C'way & F'way,44260,M.C.R.Flexible Cat1,530850,18/04/2022,5100493279,23066.81,Tarmac,100489
WARRINGTON BOROUGH COUNCIL,http://opendatacommunities.org/id/unitary-authority/warrington,ET0,Or Rm C'way & F'way,44260,Fct Cat1,530950,18/04/2022,5100493279,30372.58,Tarmac,100489
WARRINGTON BOROUGH COUNCIL,http://opendatacommunities.org/id/unitary-authority/warrington,ET0,Or Rm C'way & F'way,44260,Safety Fences Cat1,531100,18/04/2022,5100493279,2896.69,Tarmac,100489
WARRINGTON BOROUGH COUNCIL,http://opendatacommunities.org/id/unitary-authority/warrington,ET0,Or Rm C'way & F'way,44260,Sign Maint Cat1,531300,18/04/2022,5100493279,4654.86,Tarmac,100489
WARRINGTON BOROUGH COUNCIL,http://opendatacommunities.org/id/unitary-authority/warrington,ET0,Or Rm C'way & F'way,44260,Street Naming,532000,18/04/2022,5100493279,1409.85,Tarmac,100489
WARRINGTON BOROUGH COUNCIL,http://opendatacommunities.org/id/unitary-authority/warrington,ENO,Highways Other,82005,Patching Cat2,532300,18/04/2022,5100493279,29036.47,Tarmac,100489
WARRINGTON BOROUGH COUNCIL,http://opendatacommunities.org/id/unitary-authority/warrington,ENO,Highways LTP,82004,Patching Cat2,532300,18/04/2022,5100493279,17491.46,Tarmac,100489
WARRINGTON BOROUGH COUNCIL,http://opendatacommunities.org/id/unitary-authority/warrington,ENO,Highways LTP,82004,Patching Cat2,532300,18/04/2022,5100493279,3967.37,Tarmac,100489
WARRINGTON BOROUGH COUNCIL,http://opendatacommunities.org/id/unitary-authority/warrington,ET0,Or Rm C'way & F'way,44260,Patching Cat2,532300,18/04/2022,5100493279,1886.47,Tarmac,100489
WARRINGTON BOROUGH COUNCIL,http://opendatacommunities.org/id/unitary-authority/warrington,ET0,Highways Drainage,44270,Materials,400500,18/04/2022,5100493280,43431.5,Tarmac,100489
WARRINGTON BOROUGH COUNCIL,http://opendatacommunities.org/id/unitary-authority/warrington,ENO,Building Maintenance Environment & Regen,82001,Maintenance of Plant & Machinery,250050,18/04/2022,5100493281,78314.43,Jennings Roofing Limited,118366
WARRINGTON BOROUGH COUNCIL,http://opendatacommunities.org/id/unitary-authority/warrington,DG0,Planning Policy,43440,Consult.& Prof. Serv,440000,18/04/2022,5100493282,62973,Cheshire West And Chester,103357
WARRINGTON BOROUGH COUNCIL,http://opendatacommunities.org/id/unitary-authority/warrington,ENO,Highways LTP,82004,Signal Equipment,531650,18/04/2022,5100493283,62858,Bt Red Care,100411
WARRINGTON BOROUGH COUNCIL,http://opendatacommunities.org/id/unitary-authority/warrington,FWB,Contracts - SM Commissioning Team 1,55910,Public Health Contract Payments,540000,18/04/2022,5100493284,295817.5,Bridgewater Community Healthcare,108932
WARRINGTON BOROUGH COUNCIL,http://opendatacommunities.org/id/unitary-authority/warrington,ET0,Waste Recycling,41820,MRF Recycling,530750,18/04/2022,5100493285,10352.04,Wsr Recycling Ltd,101196
WARRINGTON BOROUGH COUNCIL,http://opendatacommunities.org/id/unitary-authority/warrington,ET0,Waste Recycling,41820,MRF Recycling,530750,18/04/2022,5100493287,131504.86,Wsr Recycling Ltd,101196
WARRINGTON BOROUGH COUNCIL,http://opendatacommunities.org/id/unitary-authority/warrington,ET0,P.F.I.,43630,Fees (Including Agents Fees),441450,19/04/2022,5100493326,71375.2,Your Housing Group,102933
WARRINGTON BOROUGH COUNCIL,http://opendatacommunities.org/id/unitary-authority/warrington,ET0,P.F.I.,43630,Fees (Including Agents Fees),441450,19/04/2022,5100493328,75203,Your Housing Group,102933
WARRINGTON BOROUGH COUNCIL,http://opendatacommunities.org/id/unitary-authority/warrington,FWB,Virtual School,31112,Looked after children in Warrington,301000,19/04/2022,5100493336,2189,Lime Tree Academy,400476
WARRINGTON BOROUGH COUNCIL,http://opendatacommunities.org/id/unitary-authority/warrington,FWB,Virtual School,31112,Looked after children in Warrington,301000,19/04/2022,5100493336,1781,Lime Tree Academy,400476
WARRINGTON BOROUGH COUNCIL,http://opendatacommunities.org/id/unitary-authority/warrington,FWB,Virtual School,31112,Looked after children in Warrington,301000,19/04/2022,5100493337,640.99,Oakwood Avenue Academy,400623
WARRINGTON BOROUGH COUNCIL,http://opendatacommunities.org/id/unitary-authority/warrington,ENO,Highways LTP,82004,Carriageway-Resurfacing,532250,19/04/2022,5100493350,1016.14,A D D Loop Cutting Services Ltd,105312
WARRINGTON BOROUGH COUNCIL,http://opendatacommunities.org/id/unitary-authority/warrington,HOL,Insurance Fund,91100,Insurance Premium,443350,19/04/2022,5100493376,28487.69,Aon Ltd,102117
WARRINGTON BOROUGH COUNCIL,http://opendatacommunities.org/id/unitary-authority/warrington,FWB,Effective Practice,33300,ICT Comms - Equipment Purchase,450100,19/04/2022,5100493391,18667,Halton Borough Council,410008
WARRINGTON BOROUGH COUNCIL,http://opendatacommunities.org/id/unitary-authority/warrington,FWB,BCF - Equipment Store,54930,Equipment Purchase & Contract,400000,19/04/2022,5100493392,4060.75,Healthcare Matters,110751
WARRINGTON BOROUGH COUNCIL,http://opendatacommunities.org/id/unitary-authority/warrington,COR,New Market - Operational Account,47000,Equipment Purchase & Contract,400000,19/04/2022,5100493397,1067.37,Investec Asset Finance PLC,106246
WARRINGTON BOROUGH COUNCIL,http://opendatacommunities.org/id/unitary-authority/warrington,FWB,BCF - Intermediate Care at Home,54520,Furniture & Fittings,400150,19/04/2022,5100493398,2245,H Jenkinson + Co Ltd,104829
WARRINGTON BOROUGH COUNCIL,http://opendatacommunities.org/id/unitary-authority/warrington,COR,Redevelopment Sites,43580,Security Systems,250000,19/04/2022,5100493402,550,South East Guardians (SEG) Lttd,116189
WARRINGTON BOROUGH COUNCIL,http://opendatacommunities.org/id/unitary-authority/warrington,COR,Redevelopment Sites,43580,Security Systems,250000,19/04/2022,5100493402,2569,South East Guardians (SEG) Lttd,116189
WARRINGTON BOROUGH COUNCIL,http://opendatacommunities.org/id/unitary-authority/warrington,FWB,Virtual School,31112,Looked after children in Warrington,301000,19/04/2022,5100493410,1011,Kings Leadership Academy,400191
WARRINGTON BOROUGH COUNCIL,http://opendatacommunities.org/id/unitary-authority/warrington,FWB,Virtual School,31112,Looked after children in Warrington,301000,19/04/2022,5100493410,1120,Kings Leadership Academy,400191
WARRINGTON BOROUGH COUNCIL,http://opendatacommunities.org/id/unitary-authority/warrington,FWB,Virtual School,31112,Looked after children in Warrington,301000,19/04/2022,5100493411,880,Kings Leadership Academy,400191
WARRINGTON BOROUGH COUNCIL,http://opendatacommunities.org/id/unitary-authority/warrington,RSC,Coroners Service,11100,Stationery,430150,19/04/2022,5100493414,7705.6,Banner Group Ltd,111644
WARRINGTON BOROUGH COUNCIL,http://opendatacommunities.org/id/unitary-authority/warrington,RSC,Coroners Service,11100,Stationery,430150,19/04/2022,5100493414,4188.8,Banner Group Ltd,111644
WARRINGTON BOROUGH COUNCIL,http://opendatacommunities.org/id/unitary-authority/warrington,COR,New Market - Operational Account,47000,Subscriptions,470000,19/04/2022,5100493418,960,Nabma,440150
WARRINGTON BOROUGH COUNCIL,http://opendatacommunities.org/id/unitary-authority/warrington,ET0,Street Lighting Client,44241,Lighting Energy Char,531550,19/04/2022,5100493419,93626.71,Npower Electricity,101884
WARRINGTON BOROUGH COUNCIL,http://opendatacommunities.org/id/unitary-authority/warrington,ET0,T Hall Grd Heat Pump,40082,Consult.& Prof. Serv,440000,19/04/2022,5100493420,12500,QBots Energy Ltd,118630
WARRINGTON BOROUGH COUNCIL,http://opendatacommunities.org/id/unitary-authority/warrington,ET0,Trading Standards North West,41564,"Campaigns,  Projects and Events",491950,19/04/2022,5100493428,2333.02,Blackpool Council,410009
WARRINGTON BOROUGH COUNCIL,http://opendatacommunities.org/id/unitary-authority/warrington,RSC,IT - Contracts,23600,Computer Software - Maintenance,450850,19/04/2022,5100493431,4626,Gandlake Limited,104740
WARRINGTON BOROUGH COUNCIL,http://opendatacommunities.org/id/unitary-authority/warrington,ENO,Building Maintenance Environment & Regen,82001,ICT Comms - Equipment Purchase,450100,19/04/2022,5100493441,997.6,BT,104542
WARRINGTON BOROUGH COUNCIL,http://opendatacommunities.org/id/unitary-authority/warrington,ET0,Trading Standards North West,41564,"Campaigns,  Projects and Events",491950,19/04/2022,5100493446,4928.98,Manchester City Council,410005
WARRINGTON BOROUGH COUNCIL,http://opendatacommunities.org/id/unitary-authority/warrington,ET0,Street Lighting Client,44241,Lighting Energy Char,531550,28/04/2022,5100493475,500.95,Npower Electricity,101884
WARRINGTON BOROUGH COUNCIL,http://opendatacommunities.org/id/unitary-authority/warrington,ET0,Crematorium,41411,Maintenance of Plant & Machinery,250050,19/04/2022,5100493477,509.85,Elite Digital Systems Limited,114251
WARRINGTON BOROUGH COUNCIL,http://opendatacommunities.org/id/unitary-authority/warrington,ET0,Core Operational Business,41730,Materials,400500,28/04/2022,5100493479,780,Rigby Taylor Ltd,105070
WARRINGTON BOROUGH COUNCIL,http://opendatacommunities.org/id/unitary-authority/warrington,ET0,Schools (Street Scene),41733,Materials,400500,28/04/2022,5100493479,780,Rigby Taylor Ltd,105070
WARRINGTON BOROUGH COUNCIL,http://opendatacommunities.org/id/unitary-authority/warrington,ET0,Waste Disposal,41830,Diverted Waste,530550,19/04/2022,5100493484,1240.22,The Greener Gardening Company,104283
WARRINGTON BOROUGH COUNCIL,http://opendatacommunities.org/id/unitary-authority/warrington,ET0,Waste Disposal,41830,Diverted Waste,530550,19/04/2022,5100493485,1500,The Greener Gardening Company,104283
WARRINGTON BOROUGH COUNCIL,http://opendatacommunities.org/id/unitary-authority/warrington,FWB,Orford Community Hub,51243,Equipment Purchase & Contract,400000,19/04/2022,5100493488,558.92,Phs Group Ltd,105024
WARRINGTON BOROUGH COUNCIL,http://opendatacommunities.org/id/unitary-authority/warrington,FWB,BCF - Equipment Store,54930,Equipment Purchase & Contract,400000,19/04/2022,5100493497,1292.9,Prism Medical UK,108616
WARRINGTON BOROUGH COUNCIL,http://opendatacommunities.org/id/unitary-authority/warrington,FWB,Virtual School,31112,Looked after children in Warrington,301000,19/04/2022,5100493498,1380.1,Park Road Primary Academy,400487
WARRINGTON BOROUGH COUNCIL,http://opendatacommunities.org/id/unitary-authority/warrington,FWB,Virtual School,31112,Looked after children in Warrington,301000,19/04/2022,5100493498,869.4,Park Road Primary Academy,400487
WARRINGTON BOROUGH COUNCIL,http://opendatacommunities.org/id/unitary-authority/warrington,ET0,Trading Standards North West,41564,"Campaigns,  Projects and Events",491950,19/04/2022,5100493499,756.75,Rochdale Metropolitan Borough Counc,410032
WARRINGTON BOROUGH COUNCIL,http://opendatacommunities.org/id/unitary-authority/warrington,ENO,Environmental Projects,82007,Building Work,200850,25/04/2022,5100493508,4022.79,Complete Home Energy Systems,111861
WARRINGTON BOROUGH COUNCIL,http://opendatacommunities.org/id/unitary-authority/warrington,ENO,Environmental Projects,82007,Building Work,200850,25/04/2022,5100493509,4022.79,Complete Home Energy Systems,111861
WARRINGTON BOROUGH COUNCIL,http://opendatacommunities.org/id/unitary-authority/warrington,ENO,Environmental Projects,82007,Building Work,200850,25/04/2022,5100493510,4629.05,Complete Home Energy Systems,111861
WARRINGTON BOROUGH COUNCIL,http://opendatacommunities.org/id/unitary-authority/warrington,ENO,Environmental Projects,82007,Building Work,200850,25/04/2022,5100493511,4629.05,Complete Home Energy Systems,111861
WARRINGTON BOROUGH COUNCIL,http://opendatacommunities.org/id/unitary-authority/warrington,ENO,Environmental Projects,82007,Building Work,200850,25/04/2022,5100493512,4314.9,Complete Home Energy Systems,111861
WARRINGTON BOROUGH COUNCIL,http://opendatacommunities.org/id/unitary-authority/warrington,ENO,Environmental Projects,82007,Building Work,200850,25/04/2022,5100493513,4629.05,Complete Home Energy Systems,111861
WARRINGTON BOROUGH COUNCIL,http://opendatacommunities.org/id/unitary-authority/warrington,ENO,Environmental Projects,82007,Building Work,200850,25/04/2022,5100493514,2080.48,Complete Home Energy Systems,111861
WARRINGTON BOROUGH COUNCIL,http://opendatacommunities.org/id/unitary-authority/warrington,ENO,Environmental Projects,82007,Building Work,200850,25/04/2022,5100493515,4629.05,Complete Home Energy Systems,111861
WARRINGTON BOROUGH COUNCIL,http://opendatacommunities.org/id/unitary-authority/warrington,ENO,Environmental Projects,82007,Building Work,200850,25/04/2022,5100493516,5254.05,Complete Home Energy Systems,111861
WARRINGTON BOROUGH COUNCIL,http://opendatacommunities.org/id/unitary-authority/warrington,ENO,Environmental Projects,82007,Building Work,200850,25/04/2022,5100493517,4629.05,Complete Home Energy Systems,111861
WARRINGTON BOROUGH COUNCIL,http://opendatacommunities.org/id/unitary-authority/warrington,ENO,Environmental Projects,82007,Building Work,200850,25/04/2022,5100493518,4022.79,Complete Home Energy Systems,111861
WARRINGTON BOROUGH COUNCIL,http://opendatacommunities.org/id/unitary-authority/warrington,ENO,Environmental Projects,82007,Building Work,200850,25/04/2022,5100493519,4629.05,Complete Home Energy Systems,111861
WARRINGTON BOROUGH COUNCIL,http://opendatacommunities.org/id/unitary-authority/warrington,ENO,Environmental Projects,82007,Building Work,200850,25/04/2022,5100493520,5254.05,Complete Home Energy Systems,111861
WARRINGTON BOROUGH COUNCIL,http://opendatacommunities.org/id/unitary-authority/warrington,ENO,Environmental Projects,82007,Building Work,200850,25/04/2022,5100493521,2105,Complete Home Energy Systems,111861
WARRINGTON BOROUGH COUNCIL,http://opendatacommunities.org/id/unitary-authority/warrington,DG0,Kickstart,22244,"Campaigns,  Projects and Events",491950,20/04/2022,5100493537,941.16,MKM Building Supplies Ltd,118088
WARRINGTON BOROUGH COUNCIL,http://opendatacommunities.org/id/unitary-authority/warrington,FWB,Contracts - SM Commissioning Team 1,55910,Drug Action,443600,20/04/2022,5100493573,4144,Greater Mcr Mental Health NHS,117528
WARRINGTON BOROUGH COUNCIL,http://opendatacommunities.org/id/unitary-authority/warrington,ENO,Environmental Projects,82007,Building Work,200850,25/04/2022,5100493578,1064.8,Complete Home Energy Systems,111861
WARRINGTON BOROUGH COUNCIL,http://opendatacommunities.org/id/unitary-authority/warrington,ENO,Environmental Projects,82007,Building Work,200850,25/04/2022,5100493579,1960.6,Complete Home Energy Systems,111861
WARRINGTON BOROUGH COUNCIL,http://opendatacommunities.org/id/unitary-authority/warrington,ENO,Environmental Projects,82007,Building Work,200850,25/04/2022,5100493580,1167,Complete Home Energy Systems,111861
WARRINGTON BOROUGH COUNCIL,http://opendatacommunities.org/id/unitary-authority/warrington,ENO,Environmental Projects,82007,Building Work,200850,25/04/2022,5100493581,3338,Complete Home Energy Systems,111861
WARRINGTON BOROUGH COUNCIL,http://opendatacommunities.org/id/unitary-authority/warrington,ENO,Environmental Projects,82007,Building Work,200850,25/04/2022,5100493582,1491,Complete Home Energy Systems,111861
WARRINGTON BOROUGH COUNCIL,http://opendatacommunities.org/id/unitary-authority/warrington,ENO,Environmental Projects,82007,Building Work,200850,25/04/2022,5100493583,1750,Complete Home Energy Systems,111861
WARRINGTON BOROUGH COUNCIL,http://opendatacommunities.org/id/unitary-authority/warrington,COR,Industrial Estates,43570,Consult.& Prof. Serv,440000,20/04/2022,5100493585,1250,Legat Owen Limited,117432
WARRINGTON BOROUGH COUNCIL,http://opendatacommunities.org/id/unitary-authority/warrington,ENO,Priority Infrastructure,82009,Consult.& Prof. Serv,440000,20/04/2022,5100493591,24291.25,Mott Macdonald Ltd,104950
WARRINGTON BOROUGH COUNCIL,http://opendatacommunities.org/id/unitary-authority/warrington,ENO,Priority Infrastructure,82009,Consult.& Prof. Serv,440000,28/04/2022,5100493597,584,TLT Solicitors,115669
WARRINGTON BOROUGH COUNCIL,http://opendatacommunities.org/id/unitary-authority/warrington,ET0,Transport Holding Account,41311,Vehicle Hire Charges,320000,20/04/2022,5100493619,540,P S D Vehicle Rental,100551
WARRINGTON BOROUGH COUNCIL,http://opendatacommunities.org/id/unitary-authority/warrington,RSC,ICT Centralised Budget,23100,Computer Software - Maintenance,450850,20/04/2022,5100493620,3275,Management Computer Systems Ltd,104915
WARRINGTON BOROUGH COUNCIL,http://opendatacommunities.org/id/unitary-authority/warrington,DG0,Kickstart,22244,"Campaigns,  Projects and Events",491950,20/04/2022,5100493626,716.39,Twinfix Ltd,114231
WARRINGTON BOROUGH COUNCIL,http://opendatacommunities.org/id/unitary-authority/warrington,DG0,Kickstart,22244,"Campaigns,  Projects and Events",491950,20/04/2022,5100493627,941.16,JJ Bear t/a Sigma,118224
WARRINGTON BOROUGH COUNCIL,http://opendatacommunities.org/id/unitary-authority/warrington,ET0,Waste Recycling,41820,Diverted Waste,530550,20/04/2022,5100493628,19458.46,The Greener Gardening Company,104283
WARRINGTON BOROUGH COUNCIL,http://opendatacommunities.org/id/unitary-authority/warrington,DG0,Kickstart,22244,"Campaigns,  Projects and Events",491950,20/04/2022,5100493629,1010.75,JJ Bear t/a Sigma,118224
WARRINGTON BOROUGH COUNCIL,http://opendatacommunities.org/id/unitary-authority/warrington,DG0,Kickstart,22244,"Campaigns,  Projects and Events",491950,20/04/2022,5100493630,2737.89,JJ Bear t/a Sigma,118224
WARRINGTON BOROUGH COUNCIL,http://opendatacommunities.org/id/unitary-authority/warrington,ET0,Waste Recycling,41820,Diverted Waste,530550,20/04/2022,5100493632,3179.55,The Greener Gardening Company,104283
WARRINGTON BOROUGH COUNCIL,http://opendatacommunities.org/id/unitary-authority/warrington,ET0,Waste Recycling,41820,CRC Contract,530450,20/04/2022,5100493634,3188.31,The Greener Gardening Company,104283
WARRINGTON BOROUGH COUNCIL,http://opendatacommunities.org/id/unitary-authority/warrington,RSC,Printing & Graphics,23040,External Printing,430100,20/04/2022,5100493638,1070,Hcc Promotions Ltd,103915
WARRINGTON BOROUGH COUNCIL,http://opendatacommunities.org/id/unitary-authority/warrington,FWB,BCF - Telecare/Sensory,54560,Health Awareness,441950,20/04/2022,5100493648,1500,Buddi Ltd,108559
WARRINGTON BOROUGH COUNCIL,http://opendatacommunities.org/id/unitary-authority/warrington,FWB,BCF - Padgate House,54760,Annual Maintenance,442100,20/04/2022,5100493651,881.47,Adt Fire And Security Plc,100549
WARRINGTON BOROUGH COUNCIL,http://opendatacommunities.org/id/unitary-authority/warrington,FWB,Aspire Holiday Scheme,32213,"Campaigns,  Projects and Events",491950,20/04/2022,5100493657,30000,Warrington Youth Club,440059
WARRINGTON BOROUGH COUNCIL,http://opendatacommunities.org/id/unitary-authority/warrington,ENO,Environmental Projects,82007,Building Work,200850,25/04/2022,5100493663,4314.9,Complete Home Energy Systems,111861
WARRINGTON BOROUGH COUNCIL,http://opendatacommunities.org/id/unitary-authority/warrington,ENO,Environmental Projects,82007,Building Work,200850,25/04/2022,5100493669,4022.79,Complete Home Energy Systems,111861
WARRINGTON BOROUGH COUNCIL,http://opendatacommunities.org/id/unitary-authority/warrington,ENO,Environmental Projects,82007,Building Work,200850,25/04/2022,5100493673,4168.23,Complete Home Energy Systems,111861
WARRINGTON BOROUGH COUNCIL,http://opendatacommunities.org/id/unitary-authority/warrington,ENO,Environmental Projects,82007,Building Work,200850,25/04/2022,5100493676,4471.97,Complete Home Energy Systems,111861
WARRINGTON BOROUGH COUNCIL,http://opendatacommunities.org/id/unitary-authority/warrington,ENO,Environmental Projects,82007,Building Work,200850,25/04/2022,5100493677,4629.05,Complete Home Energy Systems,111861
WARRINGTON BOROUGH COUNCIL,http://opendatacommunities.org/id/unitary-authority/warrington,ENO,Environmental Projects,82007,Building Work,200850,25/04/2022,5100493678,4168.23,Complete Home Energy Systems,111861
WARRINGTON BOROUGH COUNCIL,http://opendatacommunities.org/id/unitary-authority/warrington,ET0,Waste Disposal,41830,Residual Waste Disposal,530500,20/04/2022,5100493679,149184.05,Viridor Energy Limited,118588
WARRINGTON BOROUGH COUNCIL,http://opendatacommunities.org/id/unitary-authority/warrington,ET0,Waste Disposal,41830,Residual Waste Disposal,530500,20/04/2022,5100493680,114250.75,Viridor Energy Limited,118588
WARRINGTON BOROUGH COUNCIL,http://opendatacommunities.org/id/unitary-authority/warrington,ET0,Waste Disposal,41830,Residual Waste Disposal,530500,20/04/2022,5100493681,112234.88,Viridor Energy Limited,118588
WARRINGTON BOROUGH COUNCIL,http://opendatacommunities.org/id/unitary-authority/warrington,ENO,Environmental Projects,82007,Building Work,200850,25/04/2022,5100493682,4314.9,Complete Home Energy Systems,111861
WARRINGTON BOROUGH COUNCIL,http://opendatacommunities.org/id/unitary-authority/warrington,COR,Investment Property Acquisitions,62095,Consult.& Prof. Serv,440000,20/04/2022,5100493684,5260,Jones Lang La Salle Ltd,103883
WARRINGTON BOROUGH COUNCIL,http://opendatacommunities.org/id/unitary-authority/warrington,ENO,Environmental Projects,82007,Building Work,200850,25/04/2022,5100493685,4629.05,Complete Home Energy Systems,111861
WARRINGTON BOROUGH COUNCIL,http://opendatacommunities.org/id/unitary-authority/warrington,ENO,Environmental Projects,82007,Building Work,200850,25/04/2022,5100493686,4629.05,Complete Home Energy Systems,111861
WARRINGTON BOROUGH COUNCIL,http://opendatacommunities.org/id/unitary-authority/warrington,ENO,Environmental Projects,82007,Building Work,200850,25/04/2022,5100493687,4314.9,Complete Home Energy Systems,111861
WARRINGTON BOROUGH COUNCIL,http://opendatacommunities.org/id/unitary-authority/warrington,ENO,Environmental Projects,82007,Building Work,200850,25/04/2022,5100493693,4314.9,Complete Home Energy Systems,111861
WARRINGTON BOROUGH COUNCIL,http://opendatacommunities.org/id/unitary-authority/warrington,ET0,Waste Recycling,41820,MRF Recycling,530750,28/04/2022,5100493694,3161.9,Wsr Recycling Ltd,101196
WARRINGTON BOROUGH COUNCIL,http://opendatacommunities.org/id/unitary-authority/warrington,IGO,Property & Estates,86001,Building Work,200850,20/04/2022,5100493695,497643,Walter Carefoot & Sons Construction,118517
WARRINGTON BOROUGH COUNCIL,http://opendatacommunities.org/id/unitary-authority/warrington,RSC,Professional Development Centre,21000,Computer Hardware - Purchase,450700,20/04/2022,5100493696,617.82,Back Care Solutions Ltd,115385
WARRINGTON BOROUGH COUNCIL,http://opendatacommunities.org/id/unitary-authority/warrington,ET0,Waste Recycling,41820,CRC Contract,530450,20/04/2022,5100493698,59749.15,Environmental Waste Controls Ltd,102474
WARRINGTON BOROUGH COUNCIL,http://opendatacommunities.org/id/unitary-authority/warrington,ENO,Highways Other,82005,Environmental Works,531050,20/04/2022,5100493710,171912.82,A E Yates Ltd,109758
WARRINGTON BOROUGH COUNCIL,http://opendatacommunities.org/id/unitary-authority/warrington,ET0,Local Bus Contracts,44430,Payments To Operator,530150,21/04/2022,5100493754,1887.67,Warrington Borough Transport Ltd,105226
WARRINGTON BOROUGH COUNCIL,http://opendatacommunities.org/id/unitary-authority/warrington,ET0,Local Bus Contracts,44430,Payments To Operator,530150,21/04/2022,5100493755,1697.41,Warrington Borough Transport Ltd,105226
WARRINGTON BOROUGH COUNCIL,http://opendatacommunities.org/id/unitary-authority/warrington,ET0,Local Bus Contracts,44430,Payments To Operator,530150,21/04/2022,5100493756,4810,Warrington Borough Transport Ltd,105226
WARRINGTON BOROUGH COUNCIL,http://opendatacommunities.org/id/unitary-authority/warrington,ET0,Local Bus Contracts,44430,Payments To Operator,530150,21/04/2022,5100493757,4083.33,Warrington Borough Transport Ltd,105226
WARRINGTON BOROUGH COUNCIL,http://opendatacommunities.org/id/unitary-authority/warrington,ET0,Local Bus Contracts,44430,Payments To Operator,530150,21/04/2022,5100493758,732.48,Warrington Borough Transport Ltd,105226
WARRINGTON BOROUGH COUNCIL,http://opendatacommunities.org/id/unitary-authority/warrington,ET0,Local Bus Contracts,44430,Payments To Operator,530150,21/04/2022,5100493759,1512.5,Warrington Borough Transport Ltd,105226
WARRINGTON BOROUGH COUNCIL,http://opendatacommunities.org/id/unitary-authority/warrington,FWB,DSG Miscellaneous Licences&Subscription,32408,Subscriptions,470000,21/04/2022,5100493770,11469.08,FFT Education Ltd,115484
WARRINGTON BOROUGH COUNCIL,http://opendatacommunities.org/id/unitary-authority/warrington,RSC,Coroners Service,11100,ICT Comms - Line Purchase,450150,21/04/2022,5100493771,3375,TNP - The Networking People,110271
WARRINGTON BOROUGH COUNCIL,http://opendatacommunities.org/id/unitary-authority/warrington,FWB,DSG Post-16 Special Educational Needs,32309,Fees (Including Agents Fees),441450,21/04/2022,5100493773,6007.17,Pontville School,109772
WARRINGTON BOROUGH COUNCIL,http://opendatacommunities.org/id/unitary-authority/warrington,FWB,Winter Preventions,53140,Security Systems,250000,21/04/2022,5100493775,900,Torus,101005
WARRINGTON BOROUGH COUNCIL,http://opendatacommunities.org/id/unitary-authority/warrington,FWB,Winter Preventions,53140,Security Systems,250000,21/04/2022,5100493776,2717.36,Arena Housing,102199
WARRINGTON BOROUGH COUNCIL,http://opendatacommunities.org/id/unitary-authority/warrington,ET0,Trading Standards North West,41564,Training,190150,21/04/2022,5100493777,3037.5,Lafoje Limited,111024
WARRINGTON BOROUGH COUNCIL,http://opendatacommunities.org/id/unitary-authority/warrington,FWB,DSG Miscellaneous Licences&Subscription,32408,Subscriptions,470000,21/04/2022,5100493779,750,Derbyshire County Council,410036
WARRINGTON BOROUGH COUNCIL,http://opendatacommunities.org/id/unitary-authority/warrington,FWB,DSG - Medical Needs,32002,Eotas Pupil Funding,490350,21/04/2022,5100493781,900,Warrington Education Centre,118354
WARRINGTON BOROUGH COUNCIL,http://opendatacommunities.org/id/unitary-authority/warrington,DG0,Kickstart,22244,"Campaigns,  Projects and Events",491950,21/04/2022,5100493786,2021.5,Go Earth Ltd,118059
WARRINGTON BOROUGH COUNCIL,http://opendatacommunities.org/id/unitary-authority/warrington,DG0,Kickstart,22244,"Campaigns,  Projects and Events",491950,21/04/2022,5100493787,6000,Go Earth Ltd,118059
WARRINGTON BOROUGH COUNCIL,http://opendatacommunities.org/id/unitary-authority/warrington,DG0,Kickstart,22244,"Campaigns,  Projects and Events",491950,21/04/2022,5100493788,12000,Go Earth Ltd,118059
WARRINGTON BOROUGH COUNCIL,http://opendatacommunities.org/id/unitary-authority/warrington,DG0,Kickstart,22244,"Campaigns,  Projects and Events",491950,21/04/2022,5100493789,1500,Go Earth Ltd,118059
WARRINGTON BOROUGH COUNCIL,http://opendatacommunities.org/id/unitary-authority/warrington,FWB,Appropriate Adults Project,33314,Consult.& Prof. Serv,440000,21/04/2022,5100493791,2039.92,Child Action North West,109412
WARRINGTON BOROUGH COUNCIL,http://opendatacommunities.org/id/unitary-authority/warrington,ENO,Highways Other,82005,Environmental Works,531050,21/04/2022,5100493793,141744.56,George Cox & Sons,105471
WARRINGTON BOROUGH COUNCIL,http://opendatacommunities.org/id/unitary-authority/warrington,CYP,Secondary,81002,Building Work,200850,21/04/2022,5100493794,228226.57,Bridgewater High School Academy,400251
WARRINGTON BOROUGH COUNCIL,http://opendatacommunities.org/id/unitary-authority/warrington,ET0,Local Bus Contracts,44430,Payments To Operator,530150,21/04/2022,5100493800,728.58,Warrington Borough Transport Ltd,105226
WARRINGTON BOROUGH COUNCIL,http://opendatacommunities.org/id/unitary-authority/warrington,ET0,Local Bus Contracts,44430,Payments To Operator,530150,21/04/2022,5100493801,858.33,Warrington Borough Transport Ltd,105226
WARRINGTON BOROUGH COUNCIL,http://opendatacommunities.org/id/unitary-authority/warrington,ET0,Local Bus Contracts,44430,Payments To Operator,530150,21/04/2022,5100493804,2500,Warrington Borough Transport Ltd,105226
WARRINGTON BOROUGH COUNCIL,http://opendatacommunities.org/id/unitary-authority/warrington,ET0,Waste Disposal,41830,Residual Waste Disposal,530500,21/04/2022,5100493809,40125.32,VIRIDOR EFW (Runcorn),117566
WARRINGTON BOROUGH COUNCIL,http://opendatacommunities.org/id/unitary-authority/warrington,ET0,Waste Disposal,41830,Residual Waste Disposal,530500,21/04/2022,5100493810,149778.08,VIRIDOR EFW (Runcorn),117566
WARRINGTON BOROUGH COUNCIL,http://opendatacommunities.org/id/unitary-authority/warrington,ET0,NTH/Quattro Re-Dvelopment,40063,Consult.& Prof. Serv,440000,27/04/2022,5100493824,3963.75,Nathaniel Lichfield & Partners Ltd,116860
WARRINGTON BOROUGH COUNCIL,http://opendatacommunities.org/id/unitary-authority/warrington,FWB,Special Schools Transport,33208,Mainstream Pupil Transport,300800,21/04/2022,5100493825,767.42,MD Bus & Coach Ltd,116003
WARRINGTON BOROUGH COUNCIL,http://opendatacommunities.org/id/unitary-authority/warrington,DG0,B.U.M Warrington & Co,43835,Advertisings-Jobs,190000,21/04/2022,5100493838,1800,Spacehouse Ltd,112008
WARRINGTON BOROUGH COUNCIL,http://opendatacommunities.org/id/unitary-authority/warrington,FWB,BCF - Equipment Store,54930,Equipment Purchase & Contract,400000,21/04/2022,5100493850,940,Aidapt Bathrooms Ltd,100366
WARRINGTON BOROUGH COUNCIL,http://opendatacommunities.org/id/unitary-authority/warrington,FWB,Collaborative Training Group,33301,Training,190150,21/04/2022,5100493859,2222.55,Aim Training Project,105546
WARRINGTON BOROUGH COUNCIL,http://opendatacommunities.org/id/unitary-authority/warrington,FWB,Collaborative Training Group,33301,Training,190150,21/04/2022,5100493860,1700,Aim Training Project,105546
WARRINGTON BOROUGH COUNCIL,http://opendatacommunities.org/id/unitary-authority/warrington,ET0,NTH/Quattro Re-Dvelopment,40063,Consult.& Prof. Serv,440000,27/04/2022,5100493871,4511.25,Nathaniel Lichfield & Partners Ltd,116860
WARRINGTON BOROUGH COUNCIL,http://opendatacommunities.org/id/unitary-authority/warrington,FWB,Contracts - SM Commissioning Team 1,55910,Drug Action,443600,21/04/2022,5100493880,4144,Greater Mcr Mental Health NHS,117528
WARRINGTON BOROUGH COUNCIL,http://opendatacommunities.org/id/unitary-authority/warrington,FWB,Contracts - SM Commissioning Team 1,55910,Drug Action,443600,21/04/2022,5100493881,4620,Kaleidoscope Project,112092
WARRINGTON BOROUGH COUNCIL,http://opendatacommunities.org/id/unitary-authority/warrington,ET0,Street Lighting Client,44241,Lighting Energy Char,531550,22/04/2022,5100493882,670.44,Npower Electricity,101884
WARRINGTON BOROUGH COUNCIL,http://opendatacommunities.org/id/unitary-authority/warrington,ENO,Environmental Projects,82007,Building Work,200850,25/04/2022,5100493883,5990,Complete Home Energy Systems,111861
WARRINGTON BOROUGH COUNCIL,http://opendatacommunities.org/id/unitary-authority/warrington,ENO,Environmental Projects,82007,Building Work,200850,25/04/2022,5100493884,5594,Complete Home Energy Systems,111861
WARRINGTON BOROUGH COUNCIL,http://opendatacommunities.org/id/unitary-authority/warrington,ENO,Environmental Projects,82007,Building Work,200850,25/04/2022,5100493885,5099,Complete Home Energy Systems,111861
WARRINGTON BOROUGH COUNCIL,http://opendatacommunities.org/id/unitary-authority/warrington,ENO,Environmental Projects,82007,Building Work,200850,25/04/2022,5100493886,12890,Complete Home Energy Systems,111861
WARRINGTON BOROUGH COUNCIL,http://opendatacommunities.org/id/unitary-authority/warrington,ENO,Environmental Projects,82007,Building Work,200850,25/04/2022,5100493887,12890,Complete Home Energy Systems,111861
WARRINGTON BOROUGH COUNCIL,http://opendatacommunities.org/id/unitary-authority/warrington,ET0,Dial A Ride,44420,Payment of Grants,470050,22/04/2022,5100493888,48000,Warrington Community Transport,440161
WARRINGTON BOROUGH COUNCIL,http://opendatacommunities.org/id/unitary-authority/warrington,DG0,Kickstart,22244,"Campaigns,  Projects and Events",491950,22/04/2022,5100493931,716.39,JDG Media Ltd,118370
WARRINGTON BOROUGH COUNCIL,http://opendatacommunities.org/id/unitary-authority/warrington,FWB,BCF - Padgate House,54760,Equipment Purchase & Contract,400000,22/04/2022,5100493934,2531,Medicare Systems Limited,112910
WARRINGTON BOROUGH COUNCIL,http://opendatacommunities.org/id/unitary-authority/warrington,FWB,Community Champions,55060,Consult.& Prof. Serv,440000,22/04/2022,5100493953,80635,Warrington Disability Partnership,440066
WARRINGTON BOROUGH COUNCIL,http://opendatacommunities.org/id/unitary-authority/warrington,ET0,New Bus Depot Dallam Lane,40048,Consult.& Prof. Serv,440000,26/04/2022,5100493964,1700,Wsp Uk Ltd,103007
WARRINGTON BOROUGH COUNCIL,http://opendatacommunities.org/id/unitary-authority/warrington,IGO,Property & Estates,86001,Consult.& Prof. Serv,440000,26/04/2022,5100493965,5967,Wsp Uk Ltd,103007
WARRINGTON BOROUGH COUNCIL,http://opendatacommunities.org/id/unitary-authority/warrington,CYP,Secondary,81002,Building Work,200850,22/04/2022,5100494006,228226.57,Bridgewater High School Academy,400251
WARRINGTON BOROUGH COUNCIL,http://opendatacommunities.org/id/unitary-authority/warrington,CYP,Secondary,81002,Building Work,200850,22/04/2022,5100494006,60000,Bridgewater High School Academy,400251
WARRINGTON BOROUGH COUNCIL,http://opendatacommunities.org/id/unitary-authority/warrington,FWB,Supporting People Contracts,53260,Sheltd/Xtra Care Hsing and Comm Alarms,535050,23/04/2022,5100494057,5972.4,Catalyst Choice Management Services,115078
WARRINGTON BOROUGH COUNCIL,http://opendatacommunities.org/id/unitary-authority/warrington,ENO,Environmental Projects,82007,Building Work,200850,26/04/2022,5100494160,4314.9,Complete Home Energy Systems,111861
WARRINGTON BOROUGH COUNCIL,http://opendatacommunities.org/id/unitary-authority/warrington,ENO,Environmental Projects,82007,Building Work,200850,26/04/2022,5100494162,4168.23,Complete Home Energy Systems,111861
WARRINGTON BOROUGH COUNCIL,http://opendatacommunities.org/id/unitary-authority/warrington,ENO,Environmental Projects,82007,Building Work,200850,26/04/2022,5100494163,4022.79,Complete Home Energy Systems,111861
WARRINGTON BOROUGH COUNCIL,http://opendatacommunities.org/id/unitary-authority/warrington,ENO,Environmental Projects,82007,Building Work,200850,26/04/2022,5100494165,4314.9,Complete Home Energy Systems,111861
WARRINGTON BOROUGH COUNCIL,http://opendatacommunities.org/id/unitary-authority/warrington,ENO,Environmental Projects,82007,Building Work,200850,26/04/2022,5100494166,4168.23,Complete Home Energy Systems,111861
WARRINGTON BOROUGH COUNCIL,http://opendatacommunities.org/id/unitary-authority/warrington,ENO,Environmental Projects,82007,Building Work,200850,26/04/2022,5100494167,4629.05,Complete Home Energy Systems,111861
WARRINGTON BOROUGH COUNCIL,http://opendatacommunities.org/id/unitary-authority/warrington,ENO,Environmental Projects,82007,Building Work,200850,26/04/2022,5100494168,4168.23,Complete Home Energy Systems,111861
WARRINGTON BOROUGH COUNCIL,http://opendatacommunities.org/id/unitary-authority/warrington,ENO,Environmental Projects,82007,Building Work,200850,26/04/2022,5100494169,4629.05,Complete Home Energy Systems,111861
WARRINGTON BOROUGH COUNCIL,http://opendatacommunities.org/id/unitary-authority/warrington,ENO,Environmental Projects,82007,Building Work,200850,26/04/2022,5100494170,4314.9,Complete Home Energy Systems,111861
WARRINGTON BOROUGH COUNCIL,http://opendatacommunities.org/id/unitary-authority/warrington,ENO,Environmental Projects,82007,Building Work,200850,25/04/2022,5100494171,1601.5,Complete Home Energy Systems,111861
WARRINGTON BOROUGH COUNCIL,http://opendatacommunities.org/id/unitary-authority/warrington,ENO,Environmental Projects,82007,Building Work,200850,25/04/2022,5100494172,1002.4,Complete Home Energy Systems,111861
WARRINGTON BOROUGH COUNCIL,http://opendatacommunities.org/id/unitary-authority/warrington,ENO,Environmental Projects,82007,Building Work,200850,25/04/2022,5100494173,1292.8,Complete Home Energy Systems,111861
WARRINGTON BOROUGH COUNCIL,http://opendatacommunities.org/id/unitary-authority/warrington,ENO,Environmental Projects,82007,Building Work,200850,25/04/2022,5100494174,883.6,Complete Home Energy Systems,111861
WARRINGTON BOROUGH COUNCIL,http://opendatacommunities.org/id/unitary-authority/warrington,ENO,Environmental Projects,82007,Building Work,200850,25/04/2022,5100494175,2570.2,Complete Home Energy Systems,111861
WARRINGTON BOROUGH COUNCIL,http://opendatacommunities.org/id/unitary-authority/warrington,ENO,Environmental Projects,82007,Building Work,200850,25/04/2022,5100494176,1192,Complete Home Energy Systems,111861
WARRINGTON BOROUGH COUNCIL,http://opendatacommunities.org/id/unitary-authority/warrington,ENO,Environmental Projects,82007,Building Work,200850,25/04/2022,5100494177,1459.12,Complete Home Energy Systems,111861
WARRINGTON BOROUGH COUNCIL,http://opendatacommunities.org/id/unitary-authority/warrington,ENO,Environmental Projects,82007,Building Work,200850,25/04/2022,5100494178,1660,Complete Home Energy Systems,111861
WARRINGTON BOROUGH COUNCIL,http://opendatacommunities.org/id/unitary-authority/warrington,DG0,Kickstart,22244,"Campaigns,  Projects and Events",491950,25/04/2022,5100494182,6727.3,Go Earth Ltd,118059
WARRINGTON BOROUGH COUNCIL,http://opendatacommunities.org/id/unitary-authority/warrington,DG0,Kickstart,22244,"Campaigns,  Projects and Events",491950,25/04/2022,5100494183,4395.44,Go Earth Ltd,118059
WARRINGTON BOROUGH COUNCIL,http://opendatacommunities.org/id/unitary-authority/warrington,ET0,Domestic (Drivers & Collectors),41840,Bulky Waste Collections,442600,25/04/2022,5100494193,10252,Changing Lives Together,111607
WARRINGTON BOROUGH COUNCIL,http://opendatacommunities.org/id/unitary-authority/warrington,ENO,Highways LTP,82004,CRA2 Site Maintenance,531950,25/04/2022,5100494194,12750,Tarmac,100489
WARRINGTON BOROUGH COUNCIL,http://opendatacommunities.org/id/unitary-authority/warrington,ENO,Highways LTP,82004,Consult.& Prof. Serv,440000,25/04/2022,5100494200,1635,Mott Macdonald Ltd,104950
WARRINGTON BOROUGH COUNCIL,http://opendatacommunities.org/id/unitary-authority/warrington,ENO,Highways LTP,82004,Permanent Traffic Regulation Orders,442350,25/04/2022,5100494200,12317,Mott Macdonald Ltd,104950
WARRINGTON BOROUGH COUNCIL,http://opendatacommunities.org/id/unitary-authority/warrington,ENO,Environmental Projects,82007,Building Work,200850,25/04/2022,5100494201,3889,Complete Home Energy Systems,111861
WARRINGTON BOROUGH COUNCIL,http://opendatacommunities.org/id/unitary-authority/warrington,ENO,Environmental Projects,82007,Building Work,200850,25/04/2022,5100494202,4087,Complete Home Energy Systems,111861
WARRINGTON BOROUGH COUNCIL,http://opendatacommunities.org/id/unitary-authority/warrington,RSC,Professional Development Centre,21000,Materials,400500,25/04/2022,5100494204,1105.5,Qualsafe,104058
WARRINGTON BOROUGH COUNCIL,http://opendatacommunities.org/id/unitary-authority/warrington,ENO,Environmental Projects,82007,Building Work,200850,25/04/2022,5100494206,4629.05,Complete Home Energy Systems,111861
WARRINGTON BOROUGH COUNCIL,http://opendatacommunities.org/id/unitary-authority/warrington,ENO,Environmental Projects,82007,Building Work,200850,25/04/2022,5100494207,6771,Complete Home Energy Systems,111861
WARRINGTON BOROUGH COUNCIL,http://opendatacommunities.org/id/unitary-authority/warrington,ENO,Environmental Projects,82007,Building Work,200850,25/04/2022,5100494208,12890,Complete Home Energy Systems,111861
WARRINGTON BOROUGH COUNCIL,http://opendatacommunities.org/id/unitary-authority/warrington,ENO,Environmental Projects,82007,Building Work,200850,25/04/2022,5100494210,4629.05,Complete Home Energy Systems,111861
WARRINGTON BOROUGH COUNCIL,http://opendatacommunities.org/id/unitary-authority/warrington,ENO,Environmental Projects,82007,Building Work,200850,25/04/2022,5100494211,12890,Complete Home Energy Systems,111861
WARRINGTON BOROUGH COUNCIL,http://opendatacommunities.org/id/unitary-authority/warrington,ENO,Environmental Projects,82007,Building Work,200850,25/04/2022,5100494212,12890,Complete Home Energy Systems,111861
WARRINGTON BOROUGH COUNCIL,http://opendatacommunities.org/id/unitary-authority/warrington,ENO,Environmental Projects,82007,Building Work,200850,25/04/2022,5100494213,4314.9,Complete Home Energy Systems,111861
WARRINGTON BOROUGH COUNCIL,http://opendatacommunities.org/id/unitary-authority/warrington,ENO,Environmental Projects,82007,Building Work,200850,25/04/2022,5100494214,4629.05,Complete Home Energy Systems,111861
WARRINGTON BOROUGH COUNCIL,http://opendatacommunities.org/id/unitary-authority/warrington,ENO,Environmental Projects,82007,Building Work,200850,25/04/2022,5100494215,2195,Complete Home Energy Systems,111861
WARRINGTON BOROUGH COUNCIL,http://opendatacommunities.org/id/unitary-authority/warrington,ENO,Environmental Projects,82007,Building Work,200850,25/04/2022,5100494216,3675,Complete Home Energy Systems,111861
WARRINGTON BOROUGH COUNCIL,http://opendatacommunities.org/id/unitary-authority/warrington,ENO,Environmental Projects,82007,Building Work,200850,25/04/2022,5100494217,3141,Complete Home Energy Systems,111861
WARRINGTON BOROUGH COUNCIL,http://opendatacommunities.org/id/unitary-authority/warrington,ENO,Environmental Projects,82007,Building Work,200850,25/04/2022,5100494218,7695,Complete Home Energy Systems,111861
WARRINGTON BOROUGH COUNCIL,http://opendatacommunities.org/id/unitary-authority/warrington,ENO,Environmental Projects,82007,Building Work,200850,25/04/2022,5100494219,5385,Complete Home Energy Systems,111861
WARRINGTON BOROUGH COUNCIL,http://opendatacommunities.org/id/unitary-authority/warrington,ENO,Environmental Projects,82007,Building Work,200850,25/04/2022,5100494220,7369,Complete Home Energy Systems,111861
WARRINGTON BOROUGH COUNCIL,http://opendatacommunities.org/id/unitary-authority/warrington,ENO,Environmental Projects,82007,Building Work,200850,25/04/2022,5100494221,6320,Complete Home Energy Systems,111861
WARRINGTON BOROUGH COUNCIL,http://opendatacommunities.org/id/unitary-authority/warrington,ENO,Environmental Projects,82007,Building Work,200850,25/04/2022,5100494222,6716,Complete Home Energy Systems,111861
WARRINGTON BOROUGH COUNCIL,http://opendatacommunities.org/id/unitary-authority/warrington,ENO,Environmental Projects,82007,Building Work,200850,25/04/2022,5100494223,8860,Complete Home Energy Systems,111861
WARRINGTON BOROUGH COUNCIL,http://opendatacommunities.org/id/unitary-authority/warrington,ENO,Environmental Projects,82007,Building Work,200850,25/04/2022,5100494224,1260,Complete Home Energy Systems,111861
WARRINGTON BOROUGH COUNCIL,http://opendatacommunities.org/id/unitary-authority/warrington,ENO,Environmental Projects,82007,Building Work,200850,25/04/2022,5100494225,7713,Complete Home Energy Systems,111861
WARRINGTON BOROUGH COUNCIL,http://opendatacommunities.org/id/unitary-authority/warrington,ENO,Environmental Projects,82007,Building Work,200850,25/04/2022,5100494226,6120,Complete Home Energy Systems,111861
WARRINGTON BOROUGH COUNCIL,http://opendatacommunities.org/id/unitary-authority/warrington,ENO,Environmental Projects,82007,Building Work,200850,25/04/2022,5100494227,2382,Complete Home Energy Systems,111861
WARRINGTON BOROUGH COUNCIL,http://opendatacommunities.org/id/unitary-authority/warrington,ENO,Environmental Projects,82007,Building Work,200850,25/04/2022,5100494228,715,Complete Home Energy Systems,111861
WARRINGTON BOROUGH COUNCIL,http://opendatacommunities.org/id/unitary-authority/warrington,ENO,Environmental Projects,82007,Building Work,200850,25/04/2022,5100494229,6894,Complete Home Energy Systems,111861
WARRINGTON BOROUGH COUNCIL,http://opendatacommunities.org/id/unitary-authority/warrington,ENO,Environmental Projects,82007,Building Work,200850,25/04/2022,5100494230,1920,Complete Home Energy Systems,111861
WARRINGTON BOROUGH COUNCIL,http://opendatacommunities.org/id/unitary-authority/warrington,ENO,Environmental Projects,82007,Building Work,200850,25/04/2022,5100494231,2128,Complete Home Energy Systems,111861
WARRINGTON BOROUGH COUNCIL,http://opendatacommunities.org/id/unitary-authority/warrington,ENO,Environmental Projects,82007,Building Work,200850,25/04/2022,5100494232,1876,Complete Home Energy Systems,111861
WARRINGTON BOROUGH COUNCIL,http://opendatacommunities.org/id/unitary-authority/warrington,ENO,Environmental Projects,82007,Building Work,200850,25/04/2022,5100494233,2155.36,Complete Home Energy Systems,111861
WARRINGTON BOROUGH COUNCIL,http://opendatacommunities.org/id/unitary-authority/warrington,ENO,Environmental Projects,82007,Building Work,200850,25/04/2022,5100494234,1760.8,Complete Home Energy Systems,111861
WARRINGTON BOROUGH COUNCIL,http://opendatacommunities.org/id/unitary-authority/warrington,ENO,Environmental Projects,82007,Building Work,200850,25/04/2022,5100494235,1201.1,Complete Home Energy Systems,111861
WARRINGTON BOROUGH COUNCIL,http://opendatacommunities.org/id/unitary-authority/warrington,ENO,Environmental Projects,82007,Building Work,200850,25/04/2022,5100494235,882.8,Complete Home Energy Systems,111861
WARRINGTON BOROUGH COUNCIL,http://opendatacommunities.org/id/unitary-authority/warrington,ENO,Environmental Projects,82007,Building Work,200850,25/04/2022,5100494236,2440,Complete Home Energy Systems,111861
WARRINGTON BOROUGH COUNCIL,http://opendatacommunities.org/id/unitary-authority/warrington,FWB,Virtual School,31112,Looked after children in Warrington,301000,25/04/2022,5100494255,540,Flakefeet Primary School,400666
WARRINGTON BOROUGH COUNCIL,http://opendatacommunities.org/id/unitary-authority/warrington,FWB,Virtual School,31112,Looked after children in Warrington,301000,25/04/2022,5100494271,2439.54,The Thinking Schools Academy,400571
WARRINGTON BOROUGH COUNCIL,http://opendatacommunities.org/id/unitary-authority/warrington,FWB,Virtual School,31112,Looked after children in Warrington,301000,25/04/2022,5100494271,800,The Thinking Schools Academy,400571
WARRINGTON BOROUGH COUNCIL,http://opendatacommunities.org/id/unitary-authority/warrington,IGO,Property & Estates,86001,Consult.& Prof. Serv,440000,26/04/2022,5100494316,538,Uniqwin UK,105210
WARRINGTON BOROUGH COUNCIL,http://opendatacommunities.org/id/unitary-authority/warrington,ET0,Walton Estate,41430,Materials,400500,26/04/2022,5100494317,900,Neil Pink J & E Decorators,114414
WARRINGTON BOROUGH COUNCIL,http://opendatacommunities.org/id/unitary-authority/warrington,FWB,BCF - Equipment Store,54930,Equipment Purchase & Contract,400000,26/04/2022,5100494318,533.1,Langham Products,103643
WARRINGTON BOROUGH COUNCIL,http://opendatacommunities.org/id/unitary-authority/warrington,DG0,Kickstart,22244,"Campaigns,  Projects and Events",491950,26/04/2022,5100494326,941.16,Top Print Ltd,118063
WARRINGTON BOROUGH COUNCIL,http://opendatacommunities.org/id/unitary-authority/warrington,ET0,Transport Holding Account,41311,Accidental Damage - Sub Contractors,301200,26/04/2022,5100494347,518.73,Bentleys Motors Warrington Ltd,104511
WARRINGTON BOROUGH COUNCIL,http://opendatacommunities.org/id/unitary-authority/warrington,DG0,Project Delivery & Communications,43830,Consult.& Prof. Serv,440000,26/04/2022,5100494353,4450,Arc4 Limited,118684
WARRINGTON BOROUGH COUNCIL,http://opendatacommunities.org/id/unitary-authority/warrington,FWB,CYPS - Rents & Charges,32422,Maintenance Work - Sub Contractors,301150,26/04/2022,5100494356,660,General Utilities Services Ltd,101975
WARRINGTON BOROUGH COUNCIL,http://opendatacommunities.org/id/unitary-authority/warrington,FWB,DSG Support for SEN,32013,Fees (Including Agents Fees),441450,26/04/2022,5100494378,1200,Heathfield House Day Nursery,400138
WARRINGTON BOROUGH COUNCIL,http://opendatacommunities.org/id/unitary-authority/warrington,FWB,Inclusion,32207,Fees (Including Agents Fees),441450,26/04/2022,5100494381,1000,Lightbulb EMDR Ltd,118581
WARRINGTON BOROUGH COUNCIL,http://opendatacommunities.org/id/unitary-authority/warrington,FWB,Winter Preventions,53140,Security Systems,250000,26/04/2022,5100494389,2638.43,Arena Housing,102199
WARRINGTON BOROUGH COUNCIL,http://opendatacommunities.org/id/unitary-authority/warrington,FWB,Winter Preventions,53140,Security Systems,250000,26/04/2022,5100494396,3026.43,Torus,101005
WARRINGTON BOROUGH COUNCIL,http://opendatacommunities.org/id/unitary-authority/warrington,FWB,Winter Preventions,53140,Security Systems,250000,26/04/2022,5100494397,3387.64,Torus,101005
WARRINGTON BOROUGH COUNCIL,http://opendatacommunities.org/id/unitary-authority/warrington,FWB,Winter Preventions,53140,Security Systems,250000,26/04/2022,5100494398,2002.44,Torus,101005
WARRINGTON BOROUGH COUNCIL,http://opendatacommunities.org/id/unitary-authority/warrington,FWB,Winter Preventions,53140,Security Systems,250000,26/04/2022,5100494399,1794.91,Torus,101005
WARRINGTON BOROUGH COUNCIL,http://opendatacommunities.org/id/unitary-authority/warrington,FWB,Winter Preventions,53140,Security Systems,250000,26/04/2022,5100494400,3633.02,Torus,101005
WARRINGTON BOROUGH COUNCIL,http://opendatacommunities.org/id/unitary-authority/warrington,COR,New Market - Operational Account,47000,Other Advertising & Publicity,450050,27/04/2022,5100494450,5000,Orbit News Ltd,104995
WARRINGTON BOROUGH COUNCIL,http://opendatacommunities.org/id/unitary-authority/warrington,FWB,Free Hol act. and healthy food for CIN,31501,"Campaigns,  Projects and Events",491950,27/04/2022,5100494482,600,Zap Graffiti Arts,105563
WARRINGTON BOROUGH COUNCIL,http://opendatacommunities.org/id/unitary-authority/warrington,FWB,BCF - Equipment Store,54930,Equipment Purchase & Contract,400000,27/04/2022,5100494484,1900,Prism Medical UK,108616
WARRINGTON BOROUGH COUNCIL,http://opendatacommunities.org/id/unitary-authority/warrington,FWB,BCF - Equipment Store,54930,Equipment Purchase & Contract,400000,27/04/2022,5100494485,1196,Prism Medical UK,108616
WARRINGTON BOROUGH COUNCIL,http://opendatacommunities.org/id/unitary-authority/warrington,FWB,BCF - Equipment Store,54930,Equipment Purchase & Contract,400000,27/04/2022,5100494487,3289,Prism Medical UK,108616
WARRINGTON BOROUGH COUNCIL,http://opendatacommunities.org/id/unitary-authority/warrington,FWB,Free Hol act. and healthy food for CIN,31501,"Campaigns,  Projects and Events",491950,27/04/2022,5100494488,3260,Funky Friends Link Club Ltd,400691
WARRINGTON BOROUGH COUNCIL,http://opendatacommunities.org/id/unitary-authority/warrington,HOL,Insurance Fund,91100,Consult.& Prof. Serv,440000,27/04/2022,5100494493,14297,Gallagher Bassett International Ltd,104739
WARRINGTON BOROUGH COUNCIL,http://opendatacommunities.org/id/unitary-authority/warrington,FWB,BCF - Equipment Store,54930,Annual Maintenance,442100,27/04/2022,5100494512,587.22,TK Access Solutions Limited,105382
WARRINGTON BOROUGH COUNCIL,http://opendatacommunities.org/id/unitary-authority/warrington,FWB,BCF - Equipment Store,54930,Annual Maintenance,442100,27/04/2022,5100494513,729.8,TK Access Solutions Limited,105382
WARRINGTON BOROUGH COUNCIL,http://opendatacommunities.org/id/unitary-authority/warrington,FWB,Care Purchase - Central,54050,CP-Domicil.External,440950,28/04/2022,5100494624,22047.56,Making Space,104913
WARRINGTON BOROUGH COUNCIL,http://opendatacommunities.org/id/unitary-authority/warrington,ET0,Crematorium,41411,Medical & Hygiene Supplies,401050,28/04/2022,5100494648,885.16,Phs Group Ltd,105024
WARRINGTON BOROUGH COUNCIL,http://opendatacommunities.org/id/unitary-authority/warrington,FWB,Virtual School,31112,Looked after children in Warrington,301000,28/04/2022,5100494653,721.9,Alderman Bolton (WPAT),400511
WARRINGTON BOROUGH COUNCIL,http://opendatacommunities.org/id/unitary-authority/warrington,FWB,Virtual School,31112,Looked after children in Warrington,301000,28/04/2022,5100494657,962,Sir Thomas Boteler (Academy),400428
WARRINGTON BOROUGH COUNCIL,http://opendatacommunities.org/id/unitary-authority/warrington,FWB,Virtual School,31112,Looked after children in Warrington,301000,28/04/2022,5100494657,2310,Sir Thomas Boteler (Academy),400428
WARRINGTON BOROUGH COUNCIL,http://opendatacommunities.org/id/unitary-authority/warrington,FWB,Virtual School,31112,Looked after children in Warrington,301000,28/04/2022,5100494657,800,Sir Thomas Boteler (Academy),400428
WARRINGTON BOROUGH COUNCIL,http://opendatacommunities.org/id/unitary-authority/warrington,COR,Solar,63623,Equipment Purchase & Contract,400000,28/04/2022,5100494660,14158.8,Orsis UK Ltd,112365
WARRINGTON BOROUGH COUNCIL,http://opendatacommunities.org/id/unitary-authority/warrington,ET0,Trading Standards North West,41564,"Campaigns,  Projects and Events",491950,28/04/2022,5100494665,700,Wagtail UK Limited,108156
WARRINGTON BOROUGH COUNCIL,http://opendatacommunities.org/id/unitary-authority/warrington,FWB,Staffing - Cluster Central & East,31520,Materials,400500,28/04/2022,5100494666,600,British Youth Council,110826
WARRINGTON BOROUGH COUNCIL,http://opendatacommunities.org/id/unitary-authority/warrington,IGO,Property & Estates,86001,Consult.& Prof. Serv,440000,28/04/2022,5100494688,610.5,Uniqwin UK,105210
WARRINGTON BOROUGH COUNCIL,http://opendatacommunities.org/id/unitary-authority/warrington,IGO,Property & Estates,86001,Consult.& Prof. Serv,440000,28/04/2022,5100494689,925,Uniqwin UK,105210
WARRINGTON BOROUGH COUNCIL,http://opendatacommunities.org/id/unitary-authority/warrington,ET0,Transport Holding Account,41311,Maintenance Work - Sub Contractors,301150,28/04/2022,5100494720,731.06,Gibsons Garden Machinery Ltd,100164
WARRINGTON BOROUGH COUNCIL,http://opendatacommunities.org/id/unitary-authority/warrington,FWB,Special Guardianship Support Fund,31118,Fees (Including Agents Fees),441450,27/04/2022,1900833328,629.5,(t/a Pebble Play Therapy),118761
WARRINGTON BOROUGH COUNCIL,http://opendatacommunities.org/id/unitary-authority/warrington,COR,Refugees,60300,Consult.& Prof. Serv,440000,18/03/2022,1900812104,518,3 R's Tuition Ltd,118574
WARRINGTON BOROUGH COUNCIL,http://opendatacommunities.org/id/unitary-authority/warrington,FWB,Care Purchase - Central,54050,CP-Nursing Care-External,441200,25/04/2022,1900832856,16497.88,3L Care Limited,118335
WARRINGTON BOROUGH COUNCIL,http://opendatacommunities.org/id/unitary-authority/warrington,FWB,Special Schools Transport,33208,Statemented - Special Unit Pupil Transpo,300750,21/04/2022,1900830448,2654.4,Abba Cars,105302
WARRINGTON BOROUGH COUNCIL,http://opendatacommunities.org/id/unitary-authority/warrington,FWB,Special Schools Transport,33208,Statemented - Special Unit Pupil Transpo,300750,21/04/2022,1900830457,1516.9,Abba Cars,105302
WARRINGTON BOROUGH COUNCIL,http://opendatacommunities.org/id/unitary-authority/warrington,FWB,Special Schools Transport,33208,Statemented - Special Unit Pupil Transpo,300750,21/04/2022,1900830449,1494.72,Abba Cars,105302
WARRINGTON BOROUGH COUNCIL,http://opendatacommunities.org/id/unitary-authority/warrington,FWB,Special Schools Transport,33208,Statemented - Special Unit Pupil Transpo,300750,21/04/2022,1900830451,1213.63,Abba Cars,105302
WARRINGTON BOROUGH COUNCIL,http://opendatacommunities.org/id/unitary-authority/warrington,FWB,Special Schools Transport,33208,Statemented - Special Unit Pupil Transpo,300750,21/04/2022,1900830452,1059.84,Abba Cars,105302
WARRINGTON BOROUGH COUNCIL,http://opendatacommunities.org/id/unitary-authority/warrington,FWB,Special Schools Transport,33208,Statemented - Special Unit Pupil Transpo,300750,21/04/2022,1900830455,1008,Abba Cars,105302
WARRINGTON BOROUGH COUNCIL,http://opendatacommunities.org/id/unitary-authority/warrington,FWB,Special Schools Transport,33208,Statemented - Special Unit Pupil Transpo,300750,21/04/2022,1900830456,699.2,Abba Cars,105302
WARRINGTON BOROUGH COUNCIL,http://opendatacommunities.org/id/unitary-authority/warrington,FWB,Special Schools Transport,33208,Statemented - Special Unit Pupil Transpo,300750,05/04/2022,1900826080,682.64,Abba Cars,105302
WARRINGTON BOROUGH COUNCIL,http://opendatacommunities.org/id/unitary-authority/warrington,FWB,Special Schools Transport,33208,Statemented - Special Unit Pupil Transpo,300750,21/04/2022,1900830448,663.6,Abba Cars,105302
WARRINGTON BOROUGH COUNCIL,http://opendatacommunities.org/id/unitary-authority/warrington,FWB,Special Schools Transport,33208,Statemented - Special Unit Pupil Transpo,300750,21/04/2022,1900830453,607.2,Abba Cars,105302
WARRINGTON BOROUGH COUNCIL,http://opendatacommunities.org/id/unitary-authority/warrington,FWB,Special Schools Transport,33208,Statemented - Special Unit Pupil Transpo,300750,21/04/2022,1900830447,503.2,Abba Cars,105302
WARRINGTON BOROUGH COUNCIL,http://opendatacommunities.org/id/unitary-authority/warrington,FWB,Care Purchase - Central,54050,CP-Nursing Care-External,441200,25/04/2022,1900832947,4136,Abbey Lawns Care Home Ltd,101816
WARRINGTON BOROUGH COUNCIL,http://opendatacommunities.org/id/unitary-authority/warrington,FWB,DSG Early Years PVI Settings,32417,Private & Voluntary 3 Year Olds,470100,25/04/2022,1900831836,3256.2,Abc 123 Day Nursery Ltd,400152
WARRINGTON BOROUGH COUNCIL,http://opendatacommunities.org/id/unitary-authority/warrington,FWB,DSG Early Years PVI Settings,32417,Private & Voluntary 3 Year Olds,470100,25/04/2022,1900831582,2996.4,Abc Pre-School Limited,400009
WARRINGTON BOROUGH COUNCIL,http://opendatacommunities.org/id/unitary-authority/warrington,FWB,DSG Early Years PVI Settings,32417,Private & Voluntary 4 Year Olds,470150,25/04/2022,1900831706,803.58,Abc Pre-School Limited,400009
WARRINGTON BOROUGH COUNCIL,http://opendatacommunities.org/id/unitary-authority/warrington,FWB,BCF - Intermediate Care at Home,54520,Equipment Purchase & Contract,400000,09/03/2022,1900809467,3434.17,Access UK Ltd,118542
WARRINGTON BOROUGH COUNCIL,http://opendatacommunities.org/id/unitary-authority/warrington,FWB,Early Help Management,31500,ICT Comms - Device Rental,450400,24/03/2022,1900814482,32758.26,Access UK Ltd,118542
WARRINGTON BOROUGH COUNCIL,http://opendatacommunities.org/id/unitary-authority/warrington,FWB,CiC Management,30200,Fees (Including Agents Fees),441450,25/04/2022,1900831974,2740,Adcs,101956
WARRINGTON BOROUGH COUNCIL,http://opendatacommunities.org/id/unitary-authority/warrington,FWB,Legal Fees - Safeguarding,30100,Legal Costs Incurred,440200,01/04/2022,1900825581,1196.25,Advanced Child Care Assessments Ltd,111069
WARRINGTON BOROUGH COUNCIL,http://opendatacommunities.org/id/unitary-authority/warrington,FWB,Care Purchase - East,54060,CP Nursing EMI,441105,25/04/2022,1900833050,9238.29,Advinia Care Homes Ltd,116534
WARRINGTON BOROUGH COUNCIL,http://opendatacommunities.org/id/unitary-authority/warrington,FWB,Care Purchase - East,54060,CP-Nursing Care-External,441200,25/04/2022,1900832924,1972,Advinia Care Homes Ltd,116534
WARRINGTON BOROUGH COUNCIL,http://opendatacommunities.org/id/unitary-authority/warrington,FWB,Care Purchase - East,54060,CP Free Nursing Care External,443500,25/04/2022,1900832924,777.2,Advinia Care Homes Ltd,116534
WARRINGTON BOROUGH COUNCIL,http://opendatacommunities.org/id/unitary-authority/warrington,FWB,Care Purchase - East,54060,Supplies & Services - Covid 19,499919,28/03/2022,1900823917,704.22,Advinia Care Homes Ltd,116534
WARRINGTON BOROUGH COUNCIL,http://opendatacommunities.org/id/unitary-authority/warrington,FWB,Residential Placements,30102,CP-LongStayExternal,441150,22/04/2022,1900831476,11667.94,After Care (NW) Limited,117323
WARRINGTON BOROUGH COUNCIL,http://opendatacommunities.org/id/unitary-authority/warrington,FWB,Care Purchase Budget,54490,CP ExternalOther Exp,440800,21/03/2022,1900812645,557.14,AG Force Limited,118140
WARRINGTON BOROUGH COUNCIL,http://opendatacommunities.org/id/unitary-authority/warrington,FWB,Special Schools Transport,33208,Statemented - Special Unit Pupil Transpo,300750,07/04/2022,1900826705,2530,Alan Delooze Premier Travel,100727
WARRINGTON BOROUGH COUNCIL,http://opendatacommunities.org/id/unitary-authority/warrington,FWB,Special Schools Transport,33208,Statemented - Special Unit Pupil Transpo,300750,07/04/2022,1900826704,1725,Alan Delooze Premier Travel,100727
WARRINGTON BOROUGH COUNCIL,http://opendatacommunities.org/id/unitary-authority/warrington,FWB,DSG 2 Year Old Fund,31601,Payment of Grants,470050,25/04/2022,1900831511,1890,Alderman Bolton (WPAT),400511
WARRINGTON BOROUGH COUNCIL,http://opendatacommunities.org/id/unitary-authority/warrington,FWB,DSG Early Years PVI Settings,32417,Private & Voluntary 3 Year Olds,470100,25/04/2022,1900831583,3881.7,Alderman Bolton (WPAT),400511
WARRINGTON BOROUGH COUNCIL,http://opendatacommunities.org/id/unitary-authority/warrington,FWB,DSG Early Years PVI Settings,32417,Private & Voluntary 4 Year Olds,470150,25/04/2022,1900831707,3473.1,Alderman Bolton (WPAT),400511
WARRINGTON BOROUGH COUNCIL,http://opendatacommunities.org/id/unitary-authority/warrington,FWB,Care Purchase - West,54080,CP-LongStayExternal,441150,25/04/2022,1900833126,2140,Alexandra Care Home,100708
WARRINGTON BOROUGH COUNCIL,http://opendatacommunities.org/id/unitary-authority/warrington,FWB,Fostering Placements,30003,Fostering Accommodation,441050,22/04/2022,1900831485,2537.42,Alpha Plus Fostering Ltd,109098
WARRINGTON BOROUGH COUNCIL,http://opendatacommunities.org/id/unitary-authority/warrington,FWB,Fostering Placements,30003,Fostering Accommodation,441050,22/04/2022,1900831484,2461.44,Alpha Plus Fostering Ltd,109098
WARRINGTON BOROUGH COUNCIL,http://opendatacommunities.org/id/unitary-authority/warrington,COR,Multi Area Cases,31004,Fees (Including Agents Fees),441450,05/04/2022,1900826073,864,AlphaBiolabs,109403
WARRINGTON BOROUGH COUNCIL,http://opendatacommunities.org/id/unitary-authority/warrington,FWB,CIN Team 3,31003,Fees (Including Agents Fees),441450,05/04/2022,1900826070,744,AlphaBiolabs,109403
WARRINGTON BOROUGH COUNCIL,http://opendatacommunities.org/id/unitary-authority/warrington,COR,Debt Management Expenses,62080,Consult.& Prof. Serv,440000,09/03/2022,1900809469,28033.13,Altana Wealth Limited,118430
WARRINGTON BOROUGH COUNCIL,http://opendatacommunities.org/id/unitary-authority/warrington,COR,Debt Management Expenses,62080,Consult.& Prof. Serv,440000,09/03/2022,1900809470,11456.55,Altana Wealth Limited,118430
WARRINGTON BOROUGH COUNCIL,http://opendatacommunities.org/id/unitary-authority/warrington,FWB,Care Purchase - West,54080,Supported Accommodation,440975,13/04/2022,1900828642,36960,Alternative Futures Group,104468
WARRINGTON BOROUGH COUNCIL,http://opendatacommunities.org/id/unitary-authority/warrington,FWB,Care Purchase - West,54080,Supported Accommodation,440975,13/04/2022,1900828634,6552,Alternative Futures Group,104468
WARRINGTON BOROUGH COUNCIL,http://opendatacommunities.org/id/unitary-authority/warrington,FWB,Care Purchase - West,54080,Supported Accommodation,440975,13/04/2022,1900828630,4870.8,Alternative Futures Group,104468
WARRINGTON BOROUGH COUNCIL,http://opendatacommunities.org/id/unitary-authority/warrington,FWB,Care Purchase - South,54070,Supported Accommodation,440975,13/04/2022,1900828623,4620,Alternative Futures Group,104468
WARRINGTON BOROUGH COUNCIL,http://opendatacommunities.org/id/unitary-authority/warrington,FWB,Care Purchase - East,54060,Supported Accommodation,440975,13/04/2022,1900828636,4620,Alternative Futures Group,104468
WARRINGTON BOROUGH COUNCIL,http://opendatacommunities.org/id/unitary-authority/warrington,FWB,Care Purchase - West,54080,Supported Accommodation,440975,13/04/2022,1900828629,3846.8,Alternative Futures Group,104468
WARRINGTON BOROUGH COUNCIL,http://opendatacommunities.org/id/unitary-authority/warrington,FWB,Care Purchase - West,54080,Supported Accommodation,440975,13/04/2022,1900828637,3718.8,Alternative Futures Group,104468
WARRINGTON BOROUGH COUNCIL,http://opendatacommunities.org/id/unitary-authority/warrington,FWB,Care Purchase - East,54060,Supported Accommodation,440975,13/04/2022,1900828622,2502.8,Alternative Futures Group,104468
WARRINGTON BOROUGH COUNCIL,http://opendatacommunities.org/id/unitary-authority/warrington,FWB,Care Purchase - Central,54050,Supported Accommodation,440975,13/04/2022,1900828638,2502.8,Alternative Futures Group,104468
WARRINGTON BOROUGH COUNCIL,http://opendatacommunities.org/id/unitary-authority/warrington,FWB,Care Purchase - Central,54050,Supported Accommodation,440975,13/04/2022,1900828641,1648,Alternative Futures Group,104468
WARRINGTON BOROUGH COUNCIL,http://opendatacommunities.org/id/unitary-authority/warrington,FWB,Care Purchase - East,54060,Supported Accommodation,440975,13/04/2022,1900828628,1329.12,Alternative Futures Group,104468
WARRINGTON BOROUGH COUNCIL,http://opendatacommunities.org/id/unitary-authority/warrington,FWB,Care Purchase - Central,54050,Supported Accommodation,440975,13/04/2022,1900828625,922.88,Alternative Futures Group,104468
WARRINGTON BOROUGH COUNCIL,http://opendatacommunities.org/id/unitary-authority/warrington,FWB,Care Purchase - East,54060,Supported Accommodation,440975,13/04/2022,1900828627,922.88,Alternative Futures Group,104468
WARRINGTON BOROUGH COUNCIL,http://opendatacommunities.org/id/unitary-authority/warrington,FWB,Care Purchase - Central,54050,Supported Accommodation,440975,13/04/2022,1900828633,922.88,Alternative Futures Group,104468
WARRINGTON BOROUGH COUNCIL,http://opendatacommunities.org/id/unitary-authority/warrington,FWB,Care Purchase - South,54070,Supported Accommodation,440975,13/04/2022,1900828632,659.2,Alternative Futures Group,104468
WARRINGTON BOROUGH COUNCIL,http://opendatacommunities.org/id/unitary-authority/warrington,FWB,Care Purchase - West,54080,Supported Accommodation,440975,13/04/2022,1900828639,659.2,Alternative Futures Group,104468
WARRINGTON BOROUGH COUNCIL,http://opendatacommunities.org/id/unitary-authority/warrington,FWB,Care Purchase - South,54070,Supported Accommodation,440975,13/04/2022,1900828640,659.2,Alternative Futures Group,104468
WARRINGTON BOROUGH COUNCIL,http://opendatacommunities.org/id/unitary-authority/warrington,FWB,Care Purchase - Central,54050,Supported Accommodation,440975,13/04/2022,1900828621,621.36,Alternative Futures Group,104468
WARRINGTON BOROUGH COUNCIL,http://opendatacommunities.org/id/unitary-authority/warrington,FWB,Care Purchase - East,54060,Supported Accommodation,440975,13/04/2022,1900828620,609.76,Alternative Futures Group,104468
WARRINGTON BOROUGH COUNCIL,http://opendatacommunities.org/id/unitary-authority/warrington,FWB,Care Purchase - West,54080,CP-LongStayExternal,441150,25/04/2022,1900833100,9585.84,Ambito Care and Education,105109
WARRINGTON BOROUGH COUNCIL,http://opendatacommunities.org/id/unitary-authority/warrington,FWB,Care Purchase - West,54080,CP-LongStayExternal,441150,25/04/2022,1900832717,5535,Ambito Care and Education,105109
WARRINGTON BOROUGH COUNCIL,http://opendatacommunities.org/id/unitary-authority/warrington,FWB,Fostering Placements,30003,Fostering Accommodation,441050,04/04/2022,1900825955,3985.67,Anchor Foster Care Services Ltd,117653
WARRINGTON BOROUGH COUNCIL,http://opendatacommunities.org/id/unitary-authority/warrington,FWB,Special Schools Transport,33208,Statemented - Special Unit Pupil Transpo,300750,07/04/2022,1900826708,3689.89,Andys Bus Company,100654
WARRINGTON BOROUGH COUNCIL,http://opendatacommunities.org/id/unitary-authority/warrington,FWB,Special Schools Transport,33208,Statemented - Special Unit Pupil Transpo,300750,07/04/2022,1900826706,3093.5,Andys Bus Company,100654
WARRINGTON BOROUGH COUNCIL,http://opendatacommunities.org/id/unitary-authority/warrington,FWB,Special Schools Transport,33208,Statemented - Special Unit Pupil Transpo,300750,07/04/2022,1900826707,2346,Andys Bus Company,100654
WARRINGTON BOROUGH COUNCIL,http://opendatacommunities.org/id/unitary-authority/warrington,COL,Council Tax Surplus/Deficit Account,71080,Parish Precepts,525100,27/04/2022,1900833359,169588,Appleton Parish Council,430000
WARRINGTON BOROUGH COUNCIL,http://opendatacommunities.org/id/unitary-authority/warrington,FWB,DSG Early Years PVI Settings,32417,Private & Voluntary 3 Year Olds,470100,25/04/2022,1900831589,1389.24,Appleton Thorn Pre School,400111
WARRINGTON BOROUGH COUNCIL,http://opendatacommunities.org/id/unitary-authority/warrington,FWB,DSG Early Years PVI Settings,32417,Private & Voluntary 3 Year Olds,470100,25/04/2022,1900831838,632.16,Appleton Thorn Pre School,400111
WARRINGTON BOROUGH COUNCIL,http://opendatacommunities.org/id/unitary-authority/warrington,FWB,DSG Early Years PVI Settings,32417,Private & Voluntary 4 Year Olds,470150,25/04/2022,1900831711,612.9,Appleton Thorn Pre School,400111
WARRINGTON BOROUGH COUNCIL,http://opendatacommunities.org/id/unitary-authority/warrington,ACP,Assistant Chief Executive,84000,Consult.& Prof. Serv,440000,01/04/2022,1900825580,1937,APSE,110706
WARRINGTON BOROUGH COUNCIL,http://opendatacommunities.org/id/unitary-authority/warrington,ACP,Assistant Chief Executive,84000,Consult.& Prof. Serv,440000,01/04/2022,1900825580,786.5,APSE,110706
WARRINGTON BOROUGH COUNCIL,http://opendatacommunities.org/id/unitary-authority/warrington,FWB,Care Purchase Budget,54490,Rent Of Premises,220000,13/04/2022,1900828474,4755.13,Arena Housing,102199
WARRINGTON BOROUGH COUNCIL,http://opendatacommunities.org/id/unitary-authority/warrington,FWB,Care Purchase Budget,54490,Rent Of Premises,220000,25/04/2022,1900831987,1784.85,Arena Housing,102199
WARRINGTON BOROUGH COUNCIL,http://opendatacommunities.org/id/unitary-authority/warrington,FWB,BCF - Intermediate Care at Home,54520,Car Leasing Charges,350000,17/03/2022,1900811853,1140.84,Arnold Clark Finance Ltd,117439
WARRINGTON BOROUGH COUNCIL,http://opendatacommunities.org/id/unitary-authority/warrington,FWB,Special Schools Transport,33208,Statemented - Special Unit Pupil Transpo,300750,19/04/2022,1900829430,2810.07,Arrivals Star,101879
WARRINGTON BOROUGH COUNCIL,http://opendatacommunities.org/id/unitary-authority/warrington,FWB,Special Schools Transport,33208,Statemented - Special Unit Pupil Transpo,300750,20/04/2022,1900830203,2565,Arrivals Star,101879
WARRINGTON BOROUGH COUNCIL,http://opendatacommunities.org/id/unitary-authority/warrington,FWB,Special Schools Transport,33208,Statemented - Special Unit Pupil Transpo,300750,20/04/2022,1900830202,1948.52,Arrivals Star,101879
WARRINGTON BOROUGH COUNCIL,http://opendatacommunities.org/id/unitary-authority/warrington,FWB,Special Schools Transport,33208,Statemented - Special Unit Pupil Transpo,300750,05/04/2022,1900826068,1728.48,Arrivals Star,101879
WARRINGTON BOROUGH COUNCIL,http://opendatacommunities.org/id/unitary-authority/warrington,FWB,Special Schools Transport,33208,Statemented - Special Unit Pupil Transpo,300750,20/04/2022,1900830201,1225,Arrivals Star,101879
WARRINGTON BOROUGH COUNCIL,http://opendatacommunities.org/id/unitary-authority/warrington,FWB,Special Schools Transport,33208,Statemented - Special Unit Pupil Transpo,300750,20/04/2022,1900830204,750,Arrivals Star,101879
WARRINGTON BOROUGH COUNCIL,http://opendatacommunities.org/id/unitary-authority/warrington,FWB,Care Purchase - West,54080,CP Residential EMI,441110,25/04/2022,1900833139,2545,Ashberry Healthcare,101061
WARRINGTON BOROUGH COUNCIL,http://opendatacommunities.org/id/unitary-authority/warrington,FWB,Care Purchase - Central,54050,CP Residential EMI,441110,25/04/2022,1900832752,2510,Ashberry Healthcare,101061
WARRINGTON BOROUGH COUNCIL,http://opendatacommunities.org/id/unitary-authority/warrington,FWB,Care Purchase - South,54070,CP Residential EMI,441110,25/04/2022,1900832778,2510,Ashberry Healthcare,101061
WARRINGTON BOROUGH COUNCIL,http://opendatacommunities.org/id/unitary-authority/warrington,FWB,Care Purchase - East,54060,CP Residential EMI,441110,25/04/2022,1900832790,2510,Ashberry Healthcare,101061
WARRINGTON BOROUGH COUNCIL,http://opendatacommunities.org/id/unitary-authority/warrington,FWB,Care Purchase - East,54060,CP Residential EMI,441110,25/04/2022,1900832797,2510,Ashberry Healthcare,101061
WARRINGTON BOROUGH COUNCIL,http://opendatacommunities.org/id/unitary-authority/warrington,FWB,Care Purchase - West,54080,CP Residential EMI,441110,25/04/2022,1900832810,2510,Ashberry Healthcare,101061
WARRINGTON BOROUGH COUNCIL,http://opendatacommunities.org/id/unitary-authority/warrington,FWB,Care Purchase - West,54080,CP Residential EMI,441110,25/04/2022,1900832816,2510,Ashberry Healthcare,101061
WARRINGTON BOROUGH COUNCIL,http://opendatacommunities.org/id/unitary-authority/warrington,FWB,Care Purchase - East,54060,CP Residential EMI,441110,25/04/2022,1900832843,2510,Ashberry Healthcare,101061
WARRINGTON BOROUGH COUNCIL,http://opendatacommunities.org/id/unitary-authority/warrington,FWB,Care Purchase - Central,54050,CP Residential EMI,441110,25/04/2022,1900832958,2510,Ashberry Healthcare,101061
WARRINGTON BOROUGH COUNCIL,http://opendatacommunities.org/id/unitary-authority/warrington,FWB,Care Purchase - South,54070,CP Residential EMI,441110,25/04/2022,1900832970,2510,Ashberry Healthcare,101061
WARRINGTON BOROUGH COUNCIL,http://opendatacommunities.org/id/unitary-authority/warrington,FWB,Care Purchase - West,54080,CP Residential EMI,441110,25/04/2022,1900832976,2510,Ashberry Healthcare,101061
WARRINGTON BOROUGH COUNCIL,http://opendatacommunities.org/id/unitary-authority/warrington,FWB,Care Purchase - Central,54050,CP Residential EMI,441110,25/04/2022,1900832992,2510,Ashberry Healthcare,101061
WARRINGTON BOROUGH COUNCIL,http://opendatacommunities.org/id/unitary-authority/warrington,FWB,Care Purchase - East,54060,CP Residential EMI,441110,25/04/2022,1900833058,2510,Ashberry Healthcare,101061
WARRINGTON BOROUGH COUNCIL,http://opendatacommunities.org/id/unitary-authority/warrington,FWB,Care Purchase - West,54080,CP Residential EMI,441110,25/04/2022,1900833078,2510,Ashberry Healthcare,101061
WARRINGTON BOROUGH COUNCIL,http://opendatacommunities.org/id/unitary-authority/warrington,FWB,Care Purchase - West,54080,CP Residential EMI,441110,25/04/2022,1900833141,2510,Ashberry Healthcare,101061
WARRINGTON BOROUGH COUNCIL,http://opendatacommunities.org/id/unitary-authority/warrington,FWB,Care Purchase - West,54080,CP Residential EMI,441110,25/04/2022,1900832721,2384,Ashberry Healthcare,101061
WARRINGTON BOROUGH COUNCIL,http://opendatacommunities.org/id/unitary-authority/warrington,FWB,Care Purchase - West,54080,CP Residential EMI,441110,25/04/2022,1900832722,2384,Ashberry Healthcare,101061
WARRINGTON BOROUGH COUNCIL,http://opendatacommunities.org/id/unitary-authority/warrington,FWB,Care Purchase - West,54080,CP Residential EMI,441110,25/04/2022,1900832739,2384,Ashberry Healthcare,101061
WARRINGTON BOROUGH COUNCIL,http://opendatacommunities.org/id/unitary-authority/warrington,FWB,Care Purchase - West,54080,CP Residential EMI,441110,25/04/2022,1900833143,721,Ashberry Healthcare,101061
WARRINGTON BOROUGH COUNCIL,http://opendatacommunities.org/id/unitary-authority/warrington,FWB,Care Purchase - South,54070,CP Residential EMI,441110,25/04/2022,1900832927,540.86,Ashberry Healthcare,101061
WARRINGTON BOROUGH COUNCIL,http://opendatacommunities.org/id/unitary-authority/warrington,FWB,Care Purchase - East,54060,CP-LongStayExternal,441150,25/04/2022,1900832864,3844,Ashberry Healthcare,101061
WARRINGTON BOROUGH COUNCIL,http://opendatacommunities.org/id/unitary-authority/warrington,FWB,Care Purchase - West,54080,Supplies & Services - Covid 19,499919,25/04/2022,1900833158,2454.57,Ashberry Healthcare,101061
WARRINGTON BOROUGH COUNCIL,http://opendatacommunities.org/id/unitary-authority/warrington,FWB,Care Purchase - South,54070,Supplies & Services - Covid 19,499919,25/04/2022,1900832930,1450.43,Ashberry Healthcare,101061
WARRINGTON BOROUGH COUNCIL,http://opendatacommunities.org/id/unitary-authority/warrington,FWB,Care Purchase - West,54080,CP-Domicil.External,440950,06/04/2022,1900826669,8992.76,Aspirations Care Limited,113707
WARRINGTON BOROUGH COUNCIL,http://opendatacommunities.org/id/unitary-authority/warrington,FWB,Care Purchase - West,54080,CP-Domicil.External,440950,21/04/2022,1900830845,8992.76,Aspirations Care Limited,113707
WARRINGTON BOROUGH COUNCIL,http://opendatacommunities.org/id/unitary-authority/warrington,CYP,Childrens & Young People,81000,Specific Work,200200,24/03/2022,1900814476,2505.28,ATG Airports Limited,118433
WARRINGTON BOROUGH COUNCIL,http://opendatacommunities.org/id/unitary-authority/warrington,COR,Concessionary Travel,60000,Railcards,505050,12/04/2022,1900828228,984,ATOC Ltd,112615
WARRINGTON BOROUGH COUNCIL,http://opendatacommunities.org/id/unitary-authority/warrington,FWB,Care Purchase - South,54070,CP-LongStayExternal,441150,25/04/2022,1900832787,10976.76,Autism Care UK North West Ltd,116043
WARRINGTON BOROUGH COUNCIL,http://opendatacommunities.org/id/unitary-authority/warrington,FWB,Care Purchase - West,54080,CP-Domicil.External,440950,12/04/2022,1900828422,1468,Autism Initiatives,104503
WARRINGTON BOROUGH COUNCIL,http://opendatacommunities.org/id/unitary-authority/warrington,FWB,Care Purchase - East,54060,Supported Accommodation,440975,12/04/2022,1900828421,10440.92,Autism Initiatives,104503
WARRINGTON BOROUGH COUNCIL,http://opendatacommunities.org/id/unitary-authority/warrington,FWB,Care Purchase - East,54060,Supported Accommodation,440975,12/04/2022,1900828417,10276,Autism Initiatives,104503
WARRINGTON BOROUGH COUNCIL,http://opendatacommunities.org/id/unitary-authority/warrington,FWB,Care Purchase - West,54080,Supported Accommodation,440975,12/04/2022,1900828418,7897.84,Autism Initiatives,104503
WARRINGTON BOROUGH COUNCIL,http://opendatacommunities.org/id/unitary-authority/warrington,FWB,Care Purchase - Central,54050,Supported Accommodation,440975,12/04/2022,1900828423,7275.68,Autism Initiatives,104503
WARRINGTON BOROUGH COUNCIL,http://opendatacommunities.org/id/unitary-authority/warrington,FWB,Care Purchase - Central,54050,Supported Accommodation,440975,13/04/2022,1900828576,7275.68,Autism Initiatives,104503
WARRINGTON BOROUGH COUNCIL,http://opendatacommunities.org/id/unitary-authority/warrington,FWB,Care Purchase - Central,54050,Supported Accommodation,440975,12/04/2022,1900828420,6165.6,Autism Initiatives,104503
WARRINGTON BOROUGH COUNCIL,http://opendatacommunities.org/id/unitary-authority/warrington,FWB,Care Purchase - West,54080,Supported Accommodation,440975,12/04/2022,1900828419,5901.36,Autism Initiatives,104503
WARRINGTON BOROUGH COUNCIL,http://opendatacommunities.org/id/unitary-authority/warrington,FWB,Care Purchase - West,54080,CP-Day Care-External,441100,13/04/2022,1900828589,2918.2,Autism Initiatives,104503
WARRINGTON BOROUGH COUNCIL,http://opendatacommunities.org/id/unitary-authority/warrington,FWB,Care Purchase - East,54060,CP-LongStayExternal,441150,25/04/2022,1900832936,6207.04,Autism Initiatives,104503
WARRINGTON BOROUGH COUNCIL,http://opendatacommunities.org/id/unitary-authority/warrington,FWB,Special Schools Transport,33208,Statemented - Special Unit Pupil Transpo,300750,13/04/2022,1900828454,1916.82,Avatar Exectutive Travel,117555
WARRINGTON BOROUGH COUNCIL,http://opendatacommunities.org/id/unitary-authority/warrington,FWB,Care Purchase - South,54070,CP Nursing EMI,441105,25/04/2022,1900833095,3270.4,Barchester Healthcare (Iddenshall),118341
WARRINGTON BOROUGH COUNCIL,http://opendatacommunities.org/id/unitary-authority/warrington,FWB,Care Purchase - South,54070,CP-Nursing Care-External,441200,25/04/2022,1900833095,1529.6,Barchester Healthcare (Iddenshall),118341
WARRINGTON BOROUGH COUNCIL,http://opendatacommunities.org/id/unitary-authority/warrington,FWB,Care Purchase - East,54060,CP-LongStayExternal,441150,25/04/2022,1900832926,2620,Barchester Healthcare Brookfield,104548
WARRINGTON BOROUGH COUNCIL,http://opendatacommunities.org/id/unitary-authority/warrington,FWB,Care Purchase - Central,54050,CP-LongStayExternal,441150,25/04/2022,1900832873,2207,Barchester Healthcare Brookfield,104548
WARRINGTON BOROUGH COUNCIL,http://opendatacommunities.org/id/unitary-authority/warrington,FWB,Care Purchase - East,54060,CP-LongStayExternal,441150,25/04/2022,1900833137,2156.14,Barchester Healthcare Brookfield,104548
WARRINGTON BOROUGH COUNCIL,http://opendatacommunities.org/id/unitary-authority/warrington,FWB,Care Purchase - South,54070,CP Nursing EMI,441105,25/04/2022,1900833118,5382,Barchester Healthcare Cheshire Gran,111378
WARRINGTON BOROUGH COUNCIL,http://opendatacommunities.org/id/unitary-authority/warrington,FWB,Care Purchase - South,54070,CP Nursing EMI,441105,25/04/2022,1900832991,2668,Barchester Healthcare Cheshire Gran,111378
WARRINGTON BOROUGH COUNCIL,http://opendatacommunities.org/id/unitary-authority/warrington,FWB,Care Purchase - South,54070,CP Residential EMI,441110,25/04/2022,1900832757,2832,Barchester Healthcare Cheshire Gran,111378
